date,department/service,beneficiary,amount,summary of purpose,category,transaction number
01.11.2017,BERMONDSEY AND ROTHERHITHE COMMUNITY COUNCIL,THE REDEEMED CHRISTIAN CHURCH OF GOD BETHEL,"2,000.00",HOMELESS PROJECTS,GRANT,CHEQUE PAYMENT
01.11.2017,CUSTOMER EXPERIENCE HGF,SG PATH LTD,-415.8,CORONER'S,PROFESSIONAL FEES,5902275303
01.11.2017,CUSTOMER EXPERIENCE HGF,SG PATH LTD,415.8,CORONER'S,PROFESSIONAL FEES,5902260218
02.11.2017,ADULT SOCIAL CARE,YOUTH GRACES (UK) LTD,261.98,MEM LTS 65+,HOMECARE - SPOT,2102740526
02.11.2017,ADULT SOCIAL CARE,YOUTH GRACES (UK) LTD,675.64,MEM LTS 65+,HOMECARE - C&V,2102740550
02.11.2017,ADULT SOCIAL CARE,CROWN HOUSING LTD,"1,085.00",MH CARE&SUPPORT TEAM,ADDITIONAL PAYMENTS TO AGENCIES/CARERS,5902275083
02.11.2017,ADULT SOCIAL CARE,YOUTH GRACES (UK) LTD,263.16,MH LTS 65+,HOMECARE - SPOT,2102740556
02.11.2017,ADULT SOCIAL CARE,YOUTH GRACES (UK) LTD,255.15,PHY LTS 18-64,HOMECARE - SPOT,2102740678
02.11.2017,ADULT SOCIAL CARE,YOUTH GRACES (UK) LTD,261.98,PHY LTS 18-64,HOMECARE - SPOT,2102740608
02.11.2017,ADULT SOCIAL CARE,YOUTH GRACES (UK) LTD,338,PHY LTS 18-64,HOMECARE - SPOT,2102740636
02.11.2017,ADULT SOCIAL CARE,YOUTH GRACES (UK) LTD,351.64,PHY LTS 18-64,HOMECARE - C&V,2102740542
02.11.2017,ADULT SOCIAL CARE,YOUTH GRACES (UK) LTD,413.68,PHY LTS 18-64,HOMECARE - C&V,2102740606
02.11.2017,ADULT SOCIAL CARE,YOUTH GRACES (UK) LTD,482.72,PHY LTS 18-64,HOMECARE - SPOT,2102740610
02.11.2017,ADULT SOCIAL CARE,YOUTH GRACES (UK) LTD,255.18,PHY LTS 65+,HOMECARE - C&V,2102740616
02.11.2017,ADULT SOCIAL CARE,YOUTH GRACES (UK) LTD,255.22,PHY LTS 65+,HOMECARE - SPOT,2102740570
02.11.2017,ADULT SOCIAL CARE,YOUTH GRACES (UK) LTD,282.66,PHY LTS 65+,HOMECARE - SPOT,2102740552
02.11.2017,ADULT SOCIAL CARE,YOUTH GRACES (UK) LTD,399.91,PHY LTS 65+,HOMECARE - SPOT,2102740530
02.11.2017,ADULT SOCIAL CARE,YOUTH GRACES (UK) LTD,434.56,PHY LTS 65+,HOMECARE - SPOT,2102740594
02.11.2017,ADULT SOCIAL CARE,YOUTH GRACES (UK) LTD,475.82,PHY LTS 65+,HOMECARE - SPOT,2102740686
02.11.2017,ADULT SOCIAL CARE,YOUTH GRACES (UK) LTD,544.76,PHY LTS 65+,HOMECARE - C&V,2102740566
02.11.2017,ADULT SOCIAL CARE,JANE RAMSAY,750,SAFEGUARDING TEAM,OTHER CONTRACTORS,5902274537
02.11.2017,ADULT SOCIAL CARE,YOUTH GRACES (UK) LTD,489.75,SOCIAL ISOLATION,HOMECARE - SPOT,2102740693
02.11.2017,ADULT SOCIAL CARE,CONTACT PROFESSIONALS,722,TRANSITION 14 - 18 YEARS,SECTION 17 PAYMENTS TO AGENCIES/CARERS,2102740795
02.11.2017,ADULT SOCIAL CARE,CONTACT PROFESSIONALS,"1,577.00",TRANSITION 14 - 18 YEARS,SECTION 17 PAYMENTS TO AGENCIES/CARERS,2102740805
02.11.2017,ASSET MANAGEMENT,HIGHER ELEVATION LTD,"5,473.88",ADAPTATIONS,BUILDING R&M,5902274122
02.11.2017,ASSET MANAGEMENT,ANTHONY GOLD SOLICITORS,"2,000.00",DISREPAIR,LEGAL FEES & COURT COSTS,5902274989
02.11.2017,CENTRAL FUNCTIONS,VPS (UK) LTD,"17,280.00",AYLESBURY,SECURITY SERVICES,5902274984
02.11.2017,CENTRAL FUNCTIONS,BRITISH GAS BUSINESS,407.64,COMMERCIAL PROPERTIES,GAS,5902275017
02.11.2017,CENTRAL FUNCTIONS,BRITISH GAS BUSINESS,459.54,COMMERCIAL PROPERTIES,GAS,5902275016
02.11.2017,CENTRAL FUNCTIONS,BRITISH GAS BUSINESS,466.8,COMMERCIAL PROPERTIES,GAS,5902275031
02.11.2017,CENTRAL FUNCTIONS,BRITISH GAS BUSINESS,591.75,COMMERCIAL PROPERTIES,GAS,5902275013
02.11.2017,CENTRAL FUNCTIONS,INVICTA BUILDING SERVICES LTD,"13,634.49",LEDBURY ESTATE,PLANNED MAINTENANCE,2102740434
02.11.2017,CHIEF EXECUTIVE,JERRAM FALKUS CONSTRUCTION,"30,359.83",CAPITAL PS (REGEN),CONSTRUCTION,5902274990
02.11.2017,CHILDREN AND ADULT,BLAKEDOWN LANDSCAPES,"118,362.88",CAPITAL PS (EDUCATION),CONSTRUCTION MAIN CONTRACT,2102740917
02.11.2017,CHILDREN AND ADULT,BOLT & HEEKS LIMITED,"1,404.54",CAPITAL PS (EDUCATION),CONSTRUCTION MAIN CONTRACT -CERTIFICATED,2102740431
02.11.2017,CHILDREN AND ADULT,FAITHFUL & GOULD,"3,394.00",CAPITAL PS (EDUCATION),CONSTRUCTION FEES,5902274641
02.11.2017,CHILDREN AND ADULT,FIELD & SONS (CPS) LTD,"5,809.97",CAPITAL PS (EDUCATION),CONSTRUCTION FEES - LEGAL,5902274381
02.11.2017,CHILDREN AND ADULT,FIELD & SONS (CPS) LTD,"11,595.90",CAPITAL PS (EDUCATION),CONSTRUCTION FEES - LEGAL,5902274381
02.11.2017,CHILDREN AND ADULT,MLM CONSULTING ENGINEERS LTD,"1,500.00",CAPITAL PS (EDUCATION),CONSTRUCTION FEES,5902274074
02.11.2017,CHILDREN AND ADULT,MORGAN SINDALL PLC,"198,059.21",CAPITAL PS (EDUCATION),CONSTRUCTION MAIN CONTRACT -CERTIFICATED,2102740443
02.11.2017,CHILDREN AND ADULT,MORGAN SINDALL PLC,"986,352.92",CAPITAL PS (EDUCATION),CONSTRUCTION MAIN CONTRACT -CERTIFICATED,2102740442
02.11.2017,CHILDREN AND ADULT,GLS EDUCATIONAL SUPPLIES LTD,849.91,CAPITAL PS (SOC SERV),FIT-OUT,5902275105
02.11.2017,CHILDREN AND ADULT,NUMBER 10 INTERIM LTD,"2,625.00",CAPITAL PS (STRAT SERV),ICT ACQUISITION FEES,5902274126
02.11.2017,CHILDREN'S SERVICES,REVIVAL,660,ADMIN CURLEW,OTHER PAYMENTS FOR CLIENTS,5902275049
02.11.2017,CHILDREN'S SERVICES,DIAGRAMA FOUNDATION CHILDREN SERVICES,"19,800.00",ADOPTION PLACEMENTS & INTER AGENCY,EXTERNAL AGENCIES AND BODIES,5902275171
02.11.2017,CHILDREN'S SERVICES,PETE CRONIN PHOTOGRAPHY & VIDEO,775,ADOPTION PLACEMENTS & INTER AGENCY,EXTERNAL AGENCIES AND BODIES,5902275178
02.11.2017,CHILDREN'S SERVICES,PETE CRONIN PHOTOGRAPHY & VIDEO,775,ADOPTION PLACEMENTS & INTER AGENCY,EXTERNAL AGENCIES AND BODIES,5902275179
02.11.2017,CHILDREN'S SERVICES,PETE CRONIN PHOTOGRAPHY & VIDEO,775,ADOPTION PLACEMENTS & INTER AGENCY,EXTERNAL AGENCIES AND BODIES,5902275182
02.11.2017,CHILDREN'S SERVICES,REDACTED PERSONAL DATA,"1,650.00",ADOPTION REFORM GRANT (PART B),EXTERNAL AGENCIES AND BODIES,5902275185
02.11.2017,CHILDREN'S SERVICES,SOUTH LONDON  MAUDSLEY NHS FOUNDATION TRUST,324,ADOPTION REFORM GRANT (PART B),EXTERNAL AGENCIES AND BODIES,5902275175
02.11.2017,CHILDREN'S SERVICES,SOUTH LONDON  MAUDSLEY NHS FOUNDATION TRUST,648,ADOPTION REFORM GRANT (PART B),EXTERNAL AGENCIES AND BODIES,5902275176
02.11.2017,CHILDREN'S SERVICES,REDACTED PERSONAL DATA,-342.05,DISABILITY & HIV,PAYMENTS TO CARERS,2102740760
02.11.2017,CHILDREN'S SERVICES,REDACTED PERSONAL DATA,400,DISABILITY & HIV,PAYMENTS TO CARERS,2102740716
02.11.2017,CHILDREN'S SERVICES,REDACTED PERSONAL DATA,435,DISABILITY & HIV,PAYMENTS TO CARERS,2102740726
02.11.2017,CHILDREN'S SERVICES,REDACTED PERSONAL DATA,498.91,DISABILITY & HIV,PAYMENTS TO CARERS,2102740709
02.11.2017,CHILDREN'S SERVICES,REDACTED PERSONAL DATA,500,DISABILITY & HIV,PAYMENTS TO CARERS,2102740752
02.11.2017,CHILDREN'S SERVICES,REDACTED PERSONAL DATA,600,DISABILITY & HIV,ADDITIONAL PAYMENTS TO AGENCIES/CARERS,2102740718
02.11.2017,CHILDREN'S SERVICES,REDACTED PERSONAL DATA,863.66,DISABILITY & HIV,PAYMENTS TO CARERS,2102740736
02.11.2017,CHILDREN'S SERVICES,REDACTED PERSONAL DATA,913.25,DISABILITY & HIV,PAYMENTS TO CARERS,2102740734
02.11.2017,CHILDREN'S SERVICES,REDACTED PERSONAL DATA,"1,283.16",DISABILITY & HIV,PAYMENTS TO CARERS,2102740758
02.11.2017,CHILDREN'S SERVICES,HILARY KENNEDY,660,EDUCATIONAL PSYCHOLOGY - SEND,TRAINING,5902275189
02.11.2017,CHILDREN'S SERVICES,REDACTED PERSONAL DATA,300,FURTHER EDUCATION SUPPORT,CLIENT TRANSPORT,2102740756
02.11.2017,CHILDREN'S SERVICES,REDACTED PERSONAL DATA,400,FURTHER EDUCATION SUPPORT,OTHER PAYMENTS FOR CLIENTS,2102740754
02.11.2017,CHILDREN'S SERVICES,REDACTED PERSONAL DATA,270,HOME 2 SCHOOL TRANSPORT,CAR MILEAGE EXPENSES,5902274987
02.11.2017,CHILDREN'S SERVICES,THE DRIVE CARE HOMES LTD,"1,215.00",HOME 2 SCHOOL TRANSPORT,RECOUPMENT,5902275024
02.11.2017,CHILDREN'S SERVICES,THE PERFORMING RIGHT SOCIETY LTD,457.2,MANAGEMENT AND SUPPORT,SUBSCRIPTIONS,5902275039
02.11.2017,CHILDREN'S SERVICES,FLEET TUTORS,"12,695.00",PUPIL PREMIUM CURRENT YEAR,EXTERNAL AGENCIES AND BODIES,5902274978
02.11.2017,CHILDREN'S SERVICES,RELA SUPPORT SERVICES LTD,"1,746.80",S24 CLA,OTHER PAYMENTS FOR CLIENTS,5902275043
02.11.2017,CHILDREN'S SERVICES,HEXAGON HOUSING ASSOCIATION LTD,594.6,SEMI INDEPENDENT,EXTERNAL AGENCIES AND BODIES,5902275046
02.11.2017,CHILDREN'S SERVICES,PURPLE PEBBLES(CHILD CARE) SERVICES,"1,285.71",SEMI INDEPENDENT,EXTERNAL AGENCIES AND BODIES,5902275058
02.11.2017,CHILDREN'S SERVICES,PURPLE PEBBLES(CHILD CARE) SERVICES,"2,000.00",SEMI INDEPENDENT,EXTERNAL AGENCIES AND BODIES,5902275057
02.11.2017,CHILDREN'S SERVICES,REDACTED PERSONAL DATA,403.29,SEMI INDEPENDENT,OTHER PAYMENTS FOR CLIENTS,2102740703
02.11.2017,CHILDREN'S SERVICES,PULSE HEALTHCARE LTD,358.8,SEN TRANSPORT,STATEMENTED FEES,5902274544
02.11.2017,CHILDREN'S SERVICES,PULSE HEALTHCARE LTD,538.2,SEN TRANSPORT,STATEMENTED FEES,5902274549
02.11.2017,CHILDREN'S SERVICES,CONTACT PROFESSIONALS,285,SPECIALIST CARE,SECTION 17 PAYMENTS TO AGENCIES/CARERS,2102740811
02.11.2017,CHILDREN'S SERVICES,CONTACT PROFESSIONALS,304,SPECIALIST CARE,SECTION 17 PAYMENTS TO AGENCIES/CARERS,2102740853
02.11.2017,CHILDREN'S SERVICES,CONTACT PROFESSIONALS,388,SPECIALIST CARE,SECTION 17 PAYMENTS TO AGENCIES/CARERS,2102740837
02.11.2017,CHILDREN'S SERVICES,CONTACT PROFESSIONALS,475,SPECIALIST CARE,SECTION 17 PAYMENTS TO AGENCIES/CARERS,2102740809
02.11.2017,CHILDREN'S SERVICES,CONTACT PROFESSIONALS,475,SPECIALIST CARE,SECTION 17 PAYMENTS TO AGENCIES/CARERS,2102740831
02.11.2017,CHILDREN'S SERVICES,REDACTED PERSONAL DATA,"1,214.29",STAYING PUT,PAYMENTS TO CARERS,2102740712
02.11.2017,CHILDREN'S SERVICES,REDACTED PERSONAL DATA,"1,285.72",STAYING PUT,PAYMENTS TO CARERS,2102740746
02.11.2017,CHILDREN'S SERVICES,K3 PROPERTY MANAGEMENT LTD,"3,450.00",TEMPORARY ACCOMMODATION,EXTERNAL AGENCIES AND BODIES,5902275035
02.11.2017,CHILDREN'S SERVICES,REDACTED PERSONAL DATA,300,UASC FURTHER EDUCATION SUPPORT,CLIENT TRANSPORT,2102740714
02.11.2017,CHILDREN'S SERVICES,READY STEADY MOVE LTD,260,UASC SECTION 24,OTHER PAYMENTS FOR CLIENTS,5902275048
02.11.2017,CHILDREN'S SERVICES,REDACTED PERSONAL DATA,346,UASC SECTION 24,RESIDENTIAL CARE,2102740706
02.11.2017,CHILDREN'S SERVICES,REDACTED PERSONAL DATA,"1,750.00",UNIVERSITY SUPPORT,OTHER PAYMENTS FOR CLIENTS,2102740700
02.11.2017,COMMUNITIES,FAIR COMMUNITY HSG SERVICES LTD,"12,601.00",FAIR CHS TMO,M&M ALLOWANCE CO-OPS,5902274284
02.11.2017,COMMUNITIES,WILLOWBROOK TENANT MANAGEMENT CO-OP LTD,"1,300.00",TENANTS FUND,GRANTS,5902274587
02.11.2017,CORPORATE & DEMOCRATIC CORE,LONDON COUNCILS,750,CORPORATE & DEPARTMENTAL EXP.,TRAINING,5902275172
02.11.2017,CUSTOMER EXPERIENCE,TONY MARTIN,375,HOUSING NEEDS,MARKETING & PUBLICITY SERVICES,5902275169
02.11.2017,CUSTOMER EXPERIENCE HGF,REDACTED PERSONAL DATA,"1,033.44",HOMELESS PROJECTS,GRANTS,5902275150
02.11.2017,CUSTOMER EXPERIENCE HGF,REDACTED PERSONAL DATA,"1,224.48",HOMELESS PROJECTS,GRANTS,5902275140
02.11.2017,CUSTOMER EXPERIENCE HGF,REDACTED PERSONAL DATA,"1,224.48",HOMELESS PROJECTS,GRANTS,5902275143
02.11.2017,CUSTOMER EXPERIENCE HGF,REDACTED PERSONAL DATA,"1,224.48",HOMELESS PROJECTS,GRANTS,5902275147
02.11.2017,CUSTOMER EXPERIENCE HGF,REDACTED PERSONAL DATA,"3,000.00",HOMELESS PROJECTS,GRANTS,5902275071
02.11.2017,CUSTOMER EXPERIENCE HGF,REDACTED PERSONAL DATA,"3,000.00",HOMELESS PROJECTS,GRANTS,5902275071
02.11.2017,CUSTOMER EXPERIENCE HGF,K3 PROPERTY MANAGEMENT LTD,"19,134.00",NIGHTLY TA (NSC),EXTERNAL AGENCIES AND BODIES,5902275002
02.11.2017,CUSTOMER EXPERIENCE HGF,WEB-LABS LTD,"1,800.00",PROJECTS,SOFTWARE,5902275065
02.11.2017,CUSTOMER EXPERIENCE HGF,OAK HOUSING LTD,"2,463.00",PSL PLACEMENTS,EXTERNAL AGENCIES AND BODIES,5902275047
02.11.2017,ENVIRONMENT AND LEISURE,CONNICK TREE CARE REIGATE LTD,825,CAPITAL PS (LEISURE),CONSTRUCTION FEES  - EXTERNAL,5902275078
02.11.2017,ENVIRONMENT AND LEISURE,CONWAY AECOM LTD,"8,571.74",CAPITAL PS (LEISURE),CONSTR'N SUB CONTRACT - NON CERTIFICATED,2102740435
02.11.2017,ENVIRONMENT AND LEISURE,CONWAY AECOM LTD,"104,367.42",CAPITAL PS (LEISURE),CONSTR'N SUB CONTRACT - NON CERTIFICATED,2102740436
02.11.2017,ENVIRONMENT AND LEISURE,MORGANICO,500,CAPITAL PS (LEISURE),CONST'N MAIN CONTRACT - NON CERTIFICATED,5902274107
02.11.2017,ENVIRONMENT AND LEISURE,OCO HEATING & MECHANICAL,"3,585.29",CAPITAL PS (LEISURE),CONST'N MAIN CONTRACT - NON CERTIFICATED,2102740438
02.11.2017,ENVIRONMENT AND LEISURE,T LOUGHMAN & CO LTD,298.2,CAPITAL PS (LEISURE),CONST'N MAIN CONTRACT - NON CERTIFICATED,5902275183
02.11.2017,ENVIRONMENT AND LEISURE,T LOUGHMAN & CO LTD,"11,847.37",CAPITAL PS (LEISURE),CONSTRUCTION SITE COSTS,5902275183
02.11.2017,ENVIRONMENT DIRECTORATE,LEX AUTOLEASE,288,CAR LEASING CTRL A/C,VEHICLE LEASING CHARGES,5902275212
02.11.2017,ENVIRONMENT DIRECTORATE,LEX AUTOLEASE,"1,311.03",CAR LEASING CTRL A/C,VEHICLE LEASING CHARGES,5902275221
02.11.2017,ENVIRONMENT DIRECTORATE,VOLKSWAGEN FINANCIAL SERVICES (UK),268.71,CAR LEASING CTRL A/C,VEHICLE LEASING CHARGES,5902275174
02.11.2017,ENVIRONMENT DIRECTORATE,CLOSE BROTHERS VEHICLE HIRE LTD,268.4,COMMERCIAL VEH CTRL A/C,HIRED VEHICLES,5902275056
02.11.2017,ENVIRONMENT DIRECTORATE,CLOSE BROTHERS VEHICLE HIRE LTD,268.4,COMMERCIAL VEH CTRL A/C,HIRED VEHICLES,5902275114
02.11.2017,ENVIRONMENT DIRECTORATE,CLOSE BROTHERS VEHICLE HIRE LTD,286,COMMERCIAL VEH CTRL A/C,HIRED VEHICLES,5902275063
02.11.2017,ENVIRONMENT DIRECTORATE,CLOSE BROTHERS VEHICLE HIRE LTD,303.6,COMMERCIAL VEH CTRL A/C,HIRED VEHICLES,5902275062
02.11.2017,ENVIRONMENT DIRECTORATE,CLOSE BROTHERS VEHICLE HIRE LTD,316.8,COMMERCIAL VEH CTRL A/C,HIRED VEHICLES,5902275066
02.11.2017,ENVIRONMENT DIRECTORATE,CLOSE BROTHERS VEHICLE HIRE LTD,316.8,COMMERCIAL VEH CTRL A/C,HIRED VEHICLES,5902275111
02.11.2017,ENVIRONMENT DIRECTORATE,CLOSE BROTHERS VEHICLE HIRE LTD,316.8,COMMERCIAL VEH CTRL A/C,HIRED VEHICLES,5902275113
02.11.2017,ENVIRONMENT DIRECTORATE,CLOSE BROTHERS VEHICLE HIRE LTD,368.5,COMMERCIAL VEH CTRL A/C,HIRED VEHICLES,5902275059
02.11.2017,ENVIRONMENT DIRECTORATE,CLOSE BROTHERS VEHICLE HIRE LTD,494.56,COMMERCIAL VEH CTRL A/C,HIRED VEHICLES,5902275060
02.11.2017,ENVIRONMENT DIRECTORATE,DAGENHAM MOTORS,364,COMMERCIAL VEH CTRL A/C,HIRED VEHICLES,5902275219
02.11.2017,ENVIRONMENT DIRECTORATE,FIVEWAYS MUNICIPAL VEHICLE HIRE LTD,725,COMMERCIAL VEH CTRL A/C,HIRED VEHICLES,5902275164
02.11.2017,ENVIRONMENT DIRECTORATE,FIVEWAYS MUNICIPAL VEHICLE HIRE LTD,725,COMMERCIAL VEH CTRL A/C,HIRED VEHICLES,5902275168
02.11.2017,ENVIRONMENT DIRECTORATE,FIVEWAYS MUNICIPAL VEHICLE HIRE LTD,725,COMMERCIAL VEH CTRL A/C,HIRED VEHICLES,5902275170
02.11.2017,ENVIRONMENT DIRECTORATE,FIVEWAYS MUNICIPAL VEHICLE HIRE LTD,725,COMMERCIAL VEH CTRL A/C,HIRED VEHICLES,5902275192
02.11.2017,ENVIRONMENT DIRECTORATE,FIVEWAYS MUNICIPAL VEHICLE HIRE LTD,"1,025.00",COMMERCIAL VEH CTRL A/C,HIRED VEHICLES,5902275184
02.11.2017,ENVIRONMENT DIRECTORATE,GULLIVERS TRUCK HIRE LTD,265,COMMERCIAL VEH CTRL A/C,HIRED VEHICLES,5902275166
02.11.2017,ENVIRONMENT DIRECTORATE,GULLIVERS TRUCK HIRE LTD,915,COMMERCIAL VEH CTRL A/C,HIRED VEHICLES,5902275162
02.11.2017,ENVIRONMENT DIRECTORATE,TASK  ENFORCEMENT LTD,278,COMMERCIAL VEH CTRL A/C,PARKING CHARGES,5902275180
02.11.2017,ENVIRONMENT DIRECTORATE,UNIVERSAL TYRE & AUTOCENTRES,281,COMMERCIAL VEH CTRL A/C,OTHER VEHICLE RUNNING COSTS,5902275208
02.11.2017,ENVIRONMENT DIRECTORATE,GREENHAM TRADING LTD,412.98,ESTATE CLEANING-GENERAL,MATERIALS,5902275081
02.11.2017,ENVIRONMENT DIRECTORATE,M H COACHWORKS & SONS LTD,416.75,FLEET INSURANCE WORKS,TRANSPORT INSURANCE COSTS,5902275133
02.11.2017,ENVIRONMENT DIRECTORATE,M H COACHWORKS & SONS LTD,610.5,FLEET INSURANCE WORKS,TRANSPORT INSURANCE COSTS,5902275134
02.11.2017,ENVIRONMENT DIRECTORATE,M H COACHWORKS & SONS LTD,628,FLEET INSURANCE WORKS,TRANSPORT INSURANCE COSTS,5902275131
02.11.2017,ENVIRONMENT DIRECTORATE,M H COACHWORKS & SONS LTD,838,FLEET INSURANCE WORKS,TRANSPORT INSURANCE COSTS,5902275135
02.11.2017,ENVIRONMENT DIRECTORATE,M H COACHWORKS & SONS LTD,"1,511.87",FLEET INSURANCE WORKS,TRANSPORT INSURANCE COSTS,5902275130
02.11.2017,ENVIRONMENT DIRECTORATE,SOUTHWARK NEWSPAPER LTD,276,HIGHWAYS DEVELOPMENT,MARKETING & PUBLICITY SERVICES,5902275225
02.11.2017,ENVIRONMENT DIRECTORATE,SOUTHWARK NEWSPAPER LTD,408,HIGHWAYS DEVELOPMENT,MARKETING & PUBLICITY SERVICES,5902275228
02.11.2017,ENVIRONMENT DIRECTORATE,SOUTHWARK NEWSPAPER LTD,612,HIGHWAYS DEVELOPMENT,MARKETING & PUBLICITY SERVICES,5902275132
02.11.2017,ENVIRONMENT DIRECTORATE,IMPERIAL POLYTHENE PRODUCTS LTD,"1,176.60",MANAGEMENT TEAM,MATERIALS,5902274776
02.11.2017,ENVIRONMENT DIRECTORATE,ELLIOT ENVIRONMENTAL LTD,400,STREET CLEANING-GENERAL,OTHER CONTRACTORS,5902274640
02.11.2017,ENVIRONMENT DIRECTORATE,LIBERTY SERVICES LTD,648,STREET WORKS OVERHEADS,BOOKS & PUBLICATIONS,5902275102
02.11.2017,F & C S EXCLUDING CORPORATE BUDGETS,NORTHGATE PUBLIC SERVICES (UK) LTD,401.25,ADMINISTRATIVE SUPPORT,POSTAGES,5902275067
02.11.2017,F & C S EXCLUDING CORPORATE BUDGETS,HAMMICKS,337,LEGAL SVCES MANAGEMENT,SUBSCRIPTIONS,5902275068
02.11.2017,F & C S EXCLUDING CORPORATE BUDGETS,LEXISNEXIS UK,"6,650.00",LEGAL SVCES MANAGEMENT,SOFTWARE,5902275069
02.11.2017,F & C S EXCLUDING CORPORATE BUDGETS,THOMSON REUTERS PROFESSIONAL UK LTD,337,LEGAL SVCES MANAGEMENT,SUBSCRIPTIONS,5902275029
02.11.2017,F & C S EXCLUDING CORPORATE BUDGETS,WILDY & SONS LTD,"1,771.00",LEGAL SVCES MANAGEMENT,SUBSCRIPTIONS,5902275051
02.11.2017,HOUSING,PENNINGTON CHOICE LTD,"10,778.48",PENNINGTON,MANUAL CREDITORS,5902275045
02.11.2017,HOUSING,SMITH & BYFORD LTD,"320,355.45",SMITH AND BYFORD,MANUAL CREDITORS,2102740433
02.11.2017,HOUSING GENERAL FUND,ACCESSIBLE SOLUTIONS LTD,"5,267.00",CAPITAL PS (HOUSING GF),CAPITAL GRANTS,2102740918
02.11.2017,HOUSING GENERAL FUND,RSM BUILDING CONTRACTORS,"8,390.00",CAPITAL PS (HOUSING GF),CAPITAL GRANTS,5902275236
02.11.2017,HOUSING GENERAL FUND,STANNAH LIFT SERVICES LTD,"5,120.00",CAPITAL PS (HOUSING GF),CAPITAL GRANTS,5902275149
02.11.2017,HOUSING HRA,A & E ELKINS LTD,"155,133.00",CAPITAL PS (HRA),CONSTRUCTION MAIN CONTRACT -CERTIFICATED,2102740441
02.11.2017,HOUSING HRA,A & E ELKINS LTD,"201,028.20",CAPITAL PS (HRA),CONSTRUCTION MAIN CONTRACT -CERTIFICATED,2102740916
02.11.2017,HOUSING HRA,C&C BUILDERS LTD,"7,150.00",CAPITAL PS (HRA),CONST'N MAIN CONTRACT - NON CERTIFICATED,2102740432
02.11.2017,HOUSING HRA,CALFORD SEADEN LLP,"1,170.22",CAPITAL PS (HRA),CONSTRUCTION FEES  - EXTERNAL,5902275124
02.11.2017,HOUSING HRA,CALFORD SEADEN LLP,"15,535.50",CAPITAL PS (HRA),CONSTRUCTION FEES  - EXTERNAL,5902275097
02.11.2017,HOUSING HRA,CALFORD SEADEN LLP,"55,326.77",CAPITAL PS (HRA),CONSTRUCTION FEES  - EXTERNAL,5902275124
02.11.2017,HOUSING HRA,KEEPMOAT REGENERATION (APOLLO) LTD,"106,975.57",CAPITAL PS (HRA),CONSTRUCTION MAIN CONTRACT -CERTIFICATED,2102740440
02.11.2017,HOUSING HRA,MEARS LTD,"23,737.23",CAPITAL PS (HRA),CONSTRUCTION MAIN CONTRACT -CERTIFICATED,2102740437
02.11.2017,HOUSING HRA,MLM CONSULTING ENGINEERS LTD,"2,565.00",CAPITAL PS (HRA),CONSTRUCTION FEES  - EXTERNAL,5902274713
02.11.2017,HOUSING HRA,MLM CONSULTING ENGINEERS LTD,"2,565.00",CAPITAL PS (HRA),CONSTRUCTION FEES  - EXTERNAL,5902275195
02.11.2017,HOUSING HRA,MLM CONSULTING ENGINEERS LTD,"2,565.00",CAPITAL PS (HRA),CONSTRUCTION FEES  - EXTERNAL,5902275197
02.11.2017,HOUSING HRA,POTTER RAPER AND PARTNERS,"9,630.43",CAPITAL PS (HRA),CONSTRUCTION FEES - QUANTITY SURVEYOR,5902275139
02.11.2017,HOUSING HRA,WESSEX LIFT CO LTD,330,CAPITAL PS (HRA),CONST'N MAIN CONTRACT - NON CERTIFICATED,2102740914
02.11.2017,HOUSING HRA,WESSEX LIFT CO LTD,"9,430.40",CAPITAL PS (HRA),CONST'N MAIN CONTRACT - NON CERTIFICATED,2102740915
02.11.2017,LEISURE DIRECTORATE,BUSINESS OF CULTURE LTD,"7,500.00",ADMINISTRATION,PROFESSIONAL FEES,5902274608
02.11.2017,LEISURE DIRECTORATE,ALDO RINALDI,"2,400.00",ARTS SERVICES,CONSULTANTS SERVICES,5902275121
02.11.2017,LEISURE DIRECTORATE,TECHNICAL SURFACES,413.75,DAMILOLA TAYLOR CENTRE,EQUIPMENT PURCHASE & REPAIR,5902275157
02.11.2017,LEISURE DIRECTORATE,GROVE VALE YOUTH CLUB,"1,112.50",GRANTS COMMISSIONING,GRANTS,5902275146
02.11.2017,LEISURE DIRECTORATE,THE SALMON YOUTH CENTRE,"15,450.00",GRANTS COMMISSIONING,GRANTS,5902274698
02.11.2017,LEISURE DIRECTORATE,ASKEWS & HOLTS LIBRARY SERVICES LTD,"1,297.60",STOCK SERVICES,BOOKS & PUBLICATIONS,5902274274
02.11.2017,LEISURE DIRECTORATE,ASKEWS & HOLTS LIBRARY SERVICES LTD,"8,947.38",STOCK SERVICES,BOOKS & PUBLICATIONS,5902274276
02.11.2017,LEISURE DIRECTORATE,EDF ENERGY PLC,"2,375.23",STOCK SERVICES,ELECTRICITY,5902275122
02.11.2017,MODERNISATION HGF,CALL OF THE WILD LTD,"2,090.00","CSC - PROF DEV, QUALIFICATIONS AND CONSU",TRAINING,5902274981
02.11.2017,MODERNISATION HGF,CALL OF THE WILD LTD,"2,090.00","CSC - PROF DEV, QUALIFICATIONS AND CONSU",TRAINING,5902274981
02.11.2017,MODERNISATION HGF,COMENSURA LTD,"3,301.29",MONTHLY ADMIN FEE,AGENCY STAFF,5902275224
02.11.2017,MODERNISATION HGF,KIER FACILITIES SERVICES LTD,"13,717.28",PLANNED FM SERVICES BY KIER,BUILDING R&M,5902274567
02.11.2017,MODERNISATION HGF,KIER FACILITIES SERVICES LTD,"22,805.00",PLANNED FM SERVICES BY KIER,BUILDING R&M,5902274567
02.11.2017,MODERNISATION HGF,KIER FACILITIES SERVICES LTD,"38,635.67",PLANNED FM SERVICES BY KIER,INTEGRATED FACILITIES MANAGEMENT CONTRACT,5902274482
02.11.2017,MODERNISATION HGF,KIER FACILITIES SERVICES LTD,"129,790.08",PLANNED FM SERVICES BY KIER,BUILDING R&M,5902274299
02.11.2017,MODERNISATION HGF,BROMLEY COLLEGE OF FURTHER AND HIGHER EDUCATION,"1,895.00",SUPPORT SERVICES,TRAINING,5902275123
02.11.2017,MODERNISATION HGF,COMENSURA LTD,"426,627.11",WEEKLY PAYMENTS,AGENCY STAFF,5902275224
02.11.2017,PLANNING AND TRANSPORT,SOUTHWARK NEWSPAPER LTD,504,DEVELOPMENT CONTROL ADMINSTRATION,MARKETING & PUBLICITY SERVICES,5902275034
02.11.2017,PLANNING AND TRANSPORT,SOUTHWARK NEWSPAPER LTD,672,DEVELOPMENT CONTROL ADMINSTRATION,MARKETING & PUBLICITY SERVICES,5902275028
02.11.2017,PLANNING AND TRANSPORT,SOUTHWARK NEWSPAPER LTD,840,DEVELOPMENT CONTROL ADMINSTRATION,MARKETING & PUBLICITY SERVICES,5902275036
02.11.2017,PLANNING AND TRANSPORT,SOUTHWARK NEWSPAPER LTD,840,DEVELOPMENT CONTROL ADMINSTRATION,MARKETING & PUBLICITY SERVICES,5902275041
02.11.2017,PUBLIC HEALTH,BARTS HEALTH NHS TRUST,"18,958.67",SEXUAL HEALTH - STI,EXTERNAL AGENCIES AND BODIES,5902275205
02.11.2017,PUBLIC HEALTH,BARTS HEALTH NHS TRUST,"18,958.67",SEXUAL HEALTH - STI,EXTERNAL AGENCIES AND BODIES,5902275207
02.11.2017,PUBLIC HEALTH,IMPERIAL COLLEGE HEALTHCARE NHS TRUST,"15,060.00",SEXUAL HEALTH - STI,EXTERNAL AGENCIES AND BODIES,5902275159
02.11.2017,REGENERATION,THE MILO WLADEK CO LTD,"2,999.80",BLACKFRIARS ROAD PROJECT,MARKETING & PUBLICITY SERVICES,5902274378
02.11.2017,REGENERATION,DR MICHAEL LEARY-OWHIN,"1,710.00",PROFESSIONAL SERVICES (GENERAL),PROFESSIONAL FEES,5902274164
02.11.2017,RESIDENT SERVICES,CARLISLE SECURITY SERVICES LTD,"10,569.60",CAMBERWELL,SECURITY SERVICES,5902275094
02.11.2017,RESIDENT SERVICES,KONE PLC,411.45,NORTHCOTT HOUSE,BUILDING R&M,2102740865
02.11.2017,RESIDENT SERVICES,BRITISH GAS TRADING LTD,301.8,OPERATIONS/OFFICES ACCOMMODATION,ELECTRICITY,5902275014
02.11.2017,RESIDENT SERVICES,HARROW GREEN LTD,-528,OPERATIONS/OFFICES ACCOMMODATION,REMOVAL EXPENSES,5902275158
02.11.2017,RESIDENT SERVICES,HARROW GREEN LTD,801.35,OPERATIONS/OFFICES ACCOMMODATION,REMOVAL EXPENSES,5902275118
02.11.2017,RESIDENT SERVICES,HARROW GREEN LTD,"2,901.32",OPERATIONS/OFFICES ACCOMMODATION,REMOVAL EXPENSES,5902275103
02.11.2017,RESIDENT SERVICES,HARROW GREEN LTD,"2,922.08",OPERATIONS/OFFICES ACCOMMODATION,REMOVAL EXPENSES,5902275092
02.11.2017,RESIDENT SERVICES,HARROW GREEN LTD,"9,801.28",OPERATIONS/OFFICES ACCOMMODATION,REMOVAL EXPENSES,5902275129
02.11.2017,RESIDENT SERVICES,HARROW GREEN LTD,"9,873.12",OPERATIONS/OFFICES ACCOMMODATION,REMOVAL EXPENSES,5902275125
02.11.2017,RESIDENT SERVICES,HARROW GREEN LTD,"11,556.00",OPERATIONS/OFFICES ACCOMMODATION,REMOVAL EXPENSES,5902275154
02.11.2017,RESIDENT SERVICES,WEB-LABS LTD,750,STRATEGIC BUSINESS PLANNING,PROFESSIONAL FEES,5902275233
02.11.2017,RESIDENT SERVICES,GOLDSTONE ESTATES LTD,"3,177.00",TA PLACEMENTS,EXTERNAL AGENCIES AND BODIES,5902275082
02.11.2017,RESIDENT SERVICES,PPROPERTYPLACEBOOK LTD,420,TA PLACEMENTS,EXTERNAL AGENCIES AND BODIES,5902275037
02.11.2017,RESIDENT SERVICES HGF,CASTLE WATER LTD,652.16,BRIDEALE,WATER,5902275038
03.11.2017,ADULT SOCIAL CARE,CARE UNLIMITED GROUP LTD,338.28,APPOINTEESHIPS,OTHER PAYMENTS FOR CLIENTS,2102741454
03.11.2017,ADULT SOCIAL CARE,CARE UNLIMITED GROUP LTD,338.28,APPOINTEESHIPS,OTHER PAYMENTS FOR CLIENTS,2102741455
03.11.2017,ADULT SOCIAL CARE,CARE UNLIMITED GROUP LTD,338.28,APPOINTEESHIPS,OTHER PAYMENTS FOR CLIENTS,2102741456
03.11.2017,ADULT SOCIAL CARE,DANSHELL GROUP,500,APPOINTEESHIPS,OTHER PAYMENTS FOR CLIENTS,2102741462
03.11.2017,ADULT SOCIAL CARE,EQUINOX CARE,"1,636.95",APPOINTEESHIPS,OTHER PAYMENTS FOR CLIENTS,2102741450
03.11.2017,ADULT SOCIAL CARE,METROPOLITAN SUPPORT TRUST,"2,723.43",APPOINTEESHIPS,OTHER PAYMENTS FOR CLIENTS,2102741461
03.11.2017,ADULT SOCIAL CARE,PEABODY TRUST,351.3,APPOINTEESHIPS,OTHER PAYMENTS FOR CLIENTS,2102741448
03.11.2017,ADULT SOCIAL CARE,REDACTED PERSONAL DATA,264.8,APPOINTEESHIPS,OTHER PAYMENTS FOR CLIENTS,5902275360
03.11.2017,ADULT SOCIAL CARE,BRANDON TRUST,292.77,CARERS SERVICES,PLACEMENTS - RESPITE,2102741206
03.11.2017,ADULT SOCIAL CARE,BRANDON TRUST,444.86,CARERS SERVICES,PLACEMENTS - RESPITE,2102741197
03.11.2017,ADULT SOCIAL CARE,BRANDON TRUST,683.12,CARERS SERVICES,PLACEMENTS - RESPITE,2102741198
03.11.2017,ADULT SOCIAL CARE,BRANDON TRUST,"1,107.00",CARERS SERVICES,PLACEMENTS - RESPITE,2102741195
03.11.2017,ADULT SOCIAL CARE,BRANDON TRUST,"1,107.00",CARERS SERVICES,PLACEMENTS - RESPITE,2102741204
03.11.2017,ADULT SOCIAL CARE,BRANDON TRUST,"1,206.12",CARERS SERVICES,PLACEMENTS - RESPITE,2102741200
03.11.2017,ADULT SOCIAL CARE,BRANDON TRUST,"1,290.00",CARERS SERVICES,PLACEMENTS - RESPITE,2102741202
03.11.2017,ADULT SOCIAL CARE,BRANDON TRUST,"1,557.00",CARERS SERVICES,PLACEMENTS - RESPITE,2102741201
03.11.2017,ADULT SOCIAL CARE,BRANDON TRUST,390.35,LD LTS 18-64,RESIDENTIAL CARE,2102741205
03.11.2017,ADULT SOCIAL CARE,BRANDON TRUST,593.14,LD LTS 18-64,RESIDENTIAL CARE,2102741196
03.11.2017,ADULT SOCIAL CARE,BRANDON TRUST,"1,557.00",LD LTS 18-64,RESIDENTIAL CARE,2102741199
03.11.2017,ADULT SOCIAL CARE,LAMBETH MENCAP,756,LD LTS 18-64,DAYCARE,2102741104
03.11.2017,ADULT SOCIAL CARE,LAMBETH MENCAP,"1,445.06",LD LTS 18-64,DAYCARE,2102741141
03.11.2017,ADULT SOCIAL CARE,LAMBETH MENCAP,"1,740.38",LD LTS 18-64,DAYCARE,2102741111
03.11.2017,ADULT SOCIAL CARE,LAMBETH MENCAP,"1,807.31",LD LTS 18-64,DAYCARE,2102741094
03.11.2017,ADULT SOCIAL CARE,LAMBETH MENCAP,"2,016.00",LD LTS 18-64,DAYCARE,2102741121
03.11.2017,ADULT SOCIAL CARE,BRANDON TRUST,645,LD LTS 65+,RESIDENTIAL CARE,2102741203
03.11.2017,ADULT SOCIAL CARE,CARE DIRECT UK LTD,565.39,MEM LTS 65+,HOMECARE - SPOT,2102741043
03.11.2017,ADULT SOCIAL CARE,FIRST CHOICE SOCIAL CARE & HOUSING,"1,351.84",MEM LTS 65+,HOMECARE - SPOT,2102741070
03.11.2017,ADULT SOCIAL CARE,HUMBLE HEALTH CARE LTD,661.52,MEM LTS 65+,HOMECARE - SPOT,2102740997
03.11.2017,ADULT SOCIAL CARE,METRO HOMECARE LTD,675.71,MEM LTS 65+,HOMECARE - SPOT,2102741150
03.11.2017,ADULT SOCIAL CARE,METRO HOMECARE LTD,923.93,MEM LTS 65+,HOMECARE - SPOT,2102741162
03.11.2017,ADULT SOCIAL CARE,CARE DIRECT UK LTD,372.33,MH LTS 65+,HOMECARE - SPOT,2102741224
03.11.2017,ADULT SOCIAL CARE,HUMBLE HEALTH CARE LTD,675,MH LTS 65+,HOMECARE - SPOT,2102741066
03.11.2017,ADULT SOCIAL CARE,METRO HOMECARE LTD,406.81,MH LTS 65+,HOMECARE - SPOT,2102741156
03.11.2017,ADULT SOCIAL CARE,HC-ONE LTD (TOWER BRIDGE CARE HOME),"-6,475.40",OP CARE PACKAGES,"MAND STATUTORY CHARGES, NURSING",2102740978
03.11.2017,ADULT SOCIAL CARE,HC-ONE LTD (TOWER BRIDGE CARE HOME),"-1,699.09",OP CARE PACKAGES,"MAND STATUTORY CHARGES, RESIDENTIAL",2102740978
03.11.2017,ADULT SOCIAL CARE,HC-ONE LTD (TOWER BRIDGE CARE HOME),"12,053.84",OP CARE PACKAGES,"MAND STATUTORY CHARGES, NURSING",2102740978
03.11.2017,ADULT SOCIAL CARE,CARE DIRECT UK LTD,268.91,PHY LTS 18-64,HOMECARE - SPOT,2102741071
03.11.2017,ADULT SOCIAL CARE,CARE DIRECT UK LTD,310.28,PHY LTS 18-64,HOMECARE - SPOT,2102741036
03.11.2017,ADULT SOCIAL CARE,CARE DIRECT UK LTD,317.17,PHY LTS 18-64,HOMECARE - SPOT,2102741112
03.11.2017,ADULT SOCIAL CARE,CARE DIRECT UK LTD,641.24,PHY LTS 18-64,HOMECARE - C&V,2102741120
03.11.2017,ADULT SOCIAL CARE,CARE DIRECT UK LTD,727.42,PHY LTS 18-64,HOMECARE - SPOT,2102741230
03.11.2017,ADULT SOCIAL CARE,FIRST CHOICE SOCIAL CARE & HOUSING,427.48,PHY LTS 18-64,HOMECARE - SPOT,2102741033
03.11.2017,ADULT SOCIAL CARE,FIRST CHOICE SOCIAL CARE & HOUSING,717.24,PHY LTS 18-64,HOMECARE - SPOT,2102741013
03.11.2017,ADULT SOCIAL CARE,FIRST CHOICE SOCIAL CARE & HOUSING,731.08,PHY LTS 18-64,HOMECARE - C&V,2102741044
03.11.2017,ADULT SOCIAL CARE,HEADWAY S E,488.96,PHY LTS 18-64,DAYCARE,2102741189
03.11.2017,ADULT SOCIAL CARE,HUMBLE HEALTH CARE LTD,580.52,PHY LTS 18-64,HOMECARE - SPOT,2102741032
03.11.2017,ADULT SOCIAL CARE,HUMBLE HEALTH CARE LTD,"2,862.00",PHY LTS 18-64,HOMECARE - SPOT,2102741028
03.11.2017,ADULT SOCIAL CARE,LIFECARE CONSULTING LTD,482.64,PHY LTS 18-64,HOMECARE - SPOT,2102741079
03.11.2017,ADULT SOCIAL CARE,METRO HOMECARE LTD,296.49,PHY LTS 18-64,HOMECARE - SPOT,2102741326
03.11.2017,ADULT SOCIAL CARE,METRO HOMECARE LTD,317.17,PHY LTS 18-64,HOMECARE - C&V,2102741312
03.11.2017,ADULT SOCIAL CARE,METRO HOMECARE LTD,372.33,PHY LTS 18-64,HOMECARE - SPOT,2102741291
03.11.2017,ADULT SOCIAL CARE,METRO HOMECARE LTD,379.23,PHY LTS 18-64,HOMECARE - SPOT,2102741309
03.11.2017,ADULT SOCIAL CARE,METRO HOMECARE LTD,455.07,PHY LTS 18-64,HOMECARE - SPOT,2102741182
03.11.2017,ADULT SOCIAL CARE,METRO HOMECARE LTD,482.65,PHY LTS 18-64,HOMECARE - SPOT,2102741325
03.11.2017,ADULT SOCIAL CARE,METRO HOMECARE LTD,586.08,PHY LTS 18-64,HOMECARE - SPOT,2102741289
03.11.2017,ADULT SOCIAL CARE,METRO HOMECARE LTD,"1,089.41",PHY LTS 18-64,HOMECARE - SPOT,2102741334
03.11.2017,ADULT SOCIAL CARE,METRO HOMECARE LTD,"1,351.42",PHY LTS 18-64,HOMECARE - SPOT,2102741302
03.11.2017,ADULT SOCIAL CARE,CARE DIRECT UK LTD,256.1,PHY LTS 65+,HOMECARE - SPOT,2102741097
03.11.2017,ADULT SOCIAL CARE,CARE DIRECT UK LTD,262.01,PHY LTS 65+,HOMECARE - SPOT,2102741046
03.11.2017,ADULT SOCIAL CARE,CARE DIRECT UK LTD,265.46,PHY LTS 65+,HOMECARE - SPOT,2102741254
03.11.2017,ADULT SOCIAL CARE,CARE DIRECT UK LTD,268.91,PHY LTS 65+,HOMECARE - SPOT,2102741123
03.11.2017,ADULT SOCIAL CARE,CARE DIRECT UK LTD,272.35,PHY LTS 65+,HOMECARE - SPOT,2102741213
03.11.2017,ADULT SOCIAL CARE,CARE DIRECT UK LTD,282.7,PHY LTS 65+,HOMECARE - SPOT,2102741088
03.11.2017,ADULT SOCIAL CARE,CARE DIRECT UK LTD,286.14,PHY LTS 65+,HOMECARE - C&V,2102741257
03.11.2017,ADULT SOCIAL CARE,CARE DIRECT UK LTD,306.83,PHY LTS 65+,HOMECARE - SPOT,2102741226
03.11.2017,ADULT SOCIAL CARE,CARE DIRECT UK LTD,337.86,PHY LTS 65+,HOMECARE - SPOT,2102741089
03.11.2017,ADULT SOCIAL CARE,CARE DIRECT UK LTD,337.86,PHY LTS 65+,HOMECARE - SPOT,2102741129
03.11.2017,ADULT SOCIAL CARE,CARE DIRECT UK LTD,344.75,PHY LTS 65+,HOMECARE - SPOT,2102741022
03.11.2017,ADULT SOCIAL CARE,CARE DIRECT UK LTD,344.75,PHY LTS 65+,HOMECARE - SPOT,2102741041
03.11.2017,ADULT SOCIAL CARE,CARE DIRECT UK LTD,399.91,PHY LTS 65+,HOMECARE - SPOT,2102741068
03.11.2017,ADULT SOCIAL CARE,CARE DIRECT UK LTD,406.81,PHY LTS 65+,HOMECARE - SPOT,2102740992
03.11.2017,ADULT SOCIAL CARE,CARE DIRECT UK LTD,427.49,PHY LTS 65+,HOMECARE - SPOT,2102741210
03.11.2017,ADULT SOCIAL CARE,CARE DIRECT UK LTD,434.39,PHY LTS 65+,HOMECARE - SPOT,2102741053
03.11.2017,ADULT SOCIAL CARE,CARE DIRECT UK LTD,434.39,PHY LTS 65+,HOMECARE - SPOT,2102741256
03.11.2017,ADULT SOCIAL CARE,CARE DIRECT UK LTD,472.31,PHY LTS 65+,HOMECARE - SPOT,2102741258
03.11.2017,ADULT SOCIAL CARE,CARE DIRECT UK LTD,475.76,PHY LTS 65+,HOMECARE - SPOT,2102741095
03.11.2017,ADULT SOCIAL CARE,CARE DIRECT UK LTD,482.65,PHY LTS 65+,HOMECARE - SPOT,2102741006
03.11.2017,ADULT SOCIAL CARE,CARE DIRECT UK LTD,482.65,PHY LTS 65+,HOMECARE - SPOT,2102741055
03.11.2017,ADULT SOCIAL CARE,CARE DIRECT UK LTD,503.34,PHY LTS 65+,HOMECARE - C&V,2102741072
03.11.2017,ADULT SOCIAL CARE,CARE DIRECT UK LTD,530.92,PHY LTS 65+,HOMECARE - SPOT,2102741015
03.11.2017,ADULT SOCIAL CARE,CARE DIRECT UK LTD,530.92,PHY LTS 65+,HOMECARE - SPOT,2102741084
03.11.2017,ADULT SOCIAL CARE,CARE DIRECT UK LTD,530.92,PHY LTS 65+,HOMECARE - SPOT,2102741236
03.11.2017,ADULT SOCIAL CARE,CARE DIRECT UK LTD,551.6,PHY LTS 65+,HOMECARE - SPOT,2102741237
03.11.2017,ADULT SOCIAL CARE,CARE DIRECT UK LTD,655.03,PHY LTS 65+,HOMECARE - SPOT,2102741039
03.11.2017,ADULT SOCIAL CARE,CARE DIRECT UK LTD,689.5,PHY LTS 65+,HOMECARE - SPOT,2102741113
03.11.2017,ADULT SOCIAL CARE,CARE DIRECT UK LTD,723.98,PHY LTS 65+,HOMECARE - SPOT,2102741090
03.11.2017,ADULT SOCIAL CARE,CARE DIRECT UK LTD,723.98,PHY LTS 65+,HOMECARE - SPOT,2102741220
03.11.2017,ADULT SOCIAL CARE,CARE DIRECT UK LTD,723.98,PHY LTS 65+,HOMECARE - SPOT,2102741238
03.11.2017,ADULT SOCIAL CARE,FIRST CHOICE SOCIAL CARE & HOUSING,689.92,PHY LTS 65+,HOMECARE - SPOT,2102741020
03.11.2017,ADULT SOCIAL CARE,HUMBLE HEALTH CARE LTD,283.52,PHY LTS 65+,HOMECARE - SPOT,2102741001
03.11.2017,ADULT SOCIAL CARE,HUMBLE HEALTH CARE LTD,472.52,PHY LTS 65+,HOMECARE - SPOT,2102741002
03.11.2017,ADULT SOCIAL CARE,HUMBLE HEALTH CARE LTD,472.52,PHY LTS 65+,HOMECARE - SPOT,2102741011
03.11.2017,ADULT SOCIAL CARE,HUMBLE HEALTH CARE LTD,553.52,PHY LTS 65+,HOMECARE - SPOT,2102741058
03.11.2017,ADULT SOCIAL CARE,HUMBLE HEALTH CARE LTD,661.52,PHY LTS 65+,HOMECARE - SPOT,2102741029
03.11.2017,ADULT SOCIAL CARE,HUMBLE HEALTH CARE LTD,661.52,PHY LTS 65+,HOMECARE - SPOT,2102741048
03.11.2017,ADULT SOCIAL CARE,HUMBLE HEALTH CARE LTD,742.52,PHY LTS 65+,HOMECARE - SPOT,2102741024
03.11.2017,ADULT SOCIAL CARE,HUMBLE HEALTH CARE LTD,945,PHY LTS 65+,HOMECARE - SPOT,2102740989
03.11.2017,ADULT SOCIAL CARE,HUMBLE HEALTH CARE LTD,945,PHY LTS 65+,HOMECARE - SPOT,2102740998
03.11.2017,ADULT SOCIAL CARE,HUMBLE HEALTH CARE LTD,"1,323.00",PHY LTS 65+,HOMECARE - SPOT,2102741047
03.11.2017,ADULT SOCIAL CARE,HUMBLE HEALTH CARE LTD,"1,701.00",PHY LTS 65+,HOMECARE - SPOT,2102741018
03.11.2017,ADULT SOCIAL CARE,HUMBLE HEALTH CARE LTD,"2,403.00",PHY LTS 65+,HOMECARE - SPOT,2102741025
03.11.2017,ADULT SOCIAL CARE,HUMBLE HEALTH CARE LTD,"2,470.52",PHY LTS 65+,HOMECARE - SPOT,2102741056
03.11.2017,ADULT SOCIAL CARE,HUMBLE HEALTH CARE LTD,"3,024.00",PHY LTS 65+,HOMECARE - SPOT,2102741069
03.11.2017,ADULT SOCIAL CARE,METRO HOMECARE LTD,272.35,PHY LTS 65+,HOMECARE - SPOT,2102741295
03.11.2017,ADULT SOCIAL CARE,METRO HOMECARE LTD,303.38,PHY LTS 65+,HOMECARE - SPOT,2102741294
03.11.2017,ADULT SOCIAL CARE,METRO HOMECARE LTD,310.28,PHY LTS 65+,HOMECARE - SPOT,2102741300
03.11.2017,ADULT SOCIAL CARE,METRO HOMECARE LTD,310.28,PHY LTS 65+,HOMECARE - SPOT,2102741332
03.11.2017,ADULT SOCIAL CARE,METRO HOMECARE LTD,317.17,PHY LTS 65+,HOMECARE - C&V,2102741178
03.11.2017,ADULT SOCIAL CARE,METRO HOMECARE LTD,317.17,PHY LTS 65+,HOMECARE - SPOT,2102741179
03.11.2017,ADULT SOCIAL CARE,METRO HOMECARE LTD,324.07,PHY LTS 65+,HOMECARE - SPOT,2102741167
03.11.2017,ADULT SOCIAL CARE,METRO HOMECARE LTD,337.86,PHY LTS 65+,HOMECARE - SPOT,2102741164
03.11.2017,ADULT SOCIAL CARE,METRO HOMECARE LTD,337.86,PHY LTS 65+,HOMECARE - SPOT,2102741280
03.11.2017,ADULT SOCIAL CARE,METRO HOMECARE LTD,337.86,PHY LTS 65+,HOMECARE - SPOT,2102741328
03.11.2017,ADULT SOCIAL CARE,METRO HOMECARE LTD,358.54,PHY LTS 65+,HOMECARE - SPOT,2102741149
03.11.2017,ADULT SOCIAL CARE,METRO HOMECARE LTD,358.54,PHY LTS 65+,HOMECARE - C&V,2102741175
03.11.2017,ADULT SOCIAL CARE,METRO HOMECARE LTD,358.54,PHY LTS 65+,HOMECARE - C&V,2102741177
03.11.2017,ADULT SOCIAL CARE,METRO HOMECARE LTD,372.33,PHY LTS 65+,HOMECARE - SPOT,2102741269
03.11.2017,ADULT SOCIAL CARE,METRO HOMECARE LTD,372.33,PHY LTS 65+,HOMECARE - SPOT,2102741290
03.11.2017,ADULT SOCIAL CARE,METRO HOMECARE LTD,386.12,PHY LTS 65+,HOMECARE - SPOT,2102741297
03.11.2017,ADULT SOCIAL CARE,METRO HOMECARE LTD,386.12,PHY LTS 65+,HOMECARE - SPOT,2102741306
03.11.2017,ADULT SOCIAL CARE,METRO HOMECARE LTD,393.02,PHY LTS 65+,HOMECARE - SPOT,2102741311
03.11.2017,ADULT SOCIAL CARE,METRO HOMECARE LTD,406.81,PHY LTS 65+,HOMECARE - SPOT,2102741327
03.11.2017,ADULT SOCIAL CARE,METRO HOMECARE LTD,434.39,PHY LTS 65+,HOMECARE - SPOT,2102741296
03.11.2017,ADULT SOCIAL CARE,METRO HOMECARE LTD,448.18,PHY LTS 65+,HOMECARE - SPOT,2102741158
03.11.2017,ADULT SOCIAL CARE,METRO HOMECARE LTD,448.18,PHY LTS 65+,HOMECARE - SPOT,2102741323
03.11.2017,ADULT SOCIAL CARE,METRO HOMECARE LTD,461.97,PHY LTS 65+,HOMECARE - SPOT,2102741275
03.11.2017,ADULT SOCIAL CARE,METRO HOMECARE LTD,482.65,PHY LTS 65+,HOMECARE - SPOT,2102741310
03.11.2017,ADULT SOCIAL CARE,METRO HOMECARE LTD,489.55,PHY LTS 65+,HOMECARE - SPOT,2102741301
03.11.2017,ADULT SOCIAL CARE,METRO HOMECARE LTD,503.34,PHY LTS 65+,HOMECARE - SPOT,2102741314
03.11.2017,ADULT SOCIAL CARE,METRO HOMECARE LTD,551.6,PHY LTS 65+,HOMECARE - SPOT,2102741288
03.11.2017,ADULT SOCIAL CARE,METRO HOMECARE LTD,551.6,PHY LTS 65+,HOMECARE - SPOT,2102741329
03.11.2017,ADULT SOCIAL CARE,METRO HOMECARE LTD,558.5,PHY LTS 65+,HOMECARE - SPOT,2102741316
03.11.2017,ADULT SOCIAL CARE,METRO HOMECARE LTD,579.18,PHY LTS 65+,HOMECARE - SPOT,2102741303
03.11.2017,ADULT SOCIAL CARE,METRO HOMECARE LTD,620.55,PHY LTS 65+,HOMECARE - SPOT,2102741188
03.11.2017,ADULT SOCIAL CARE,METRO HOMECARE LTD,620.55,PHY LTS 65+,HOMECARE - SPOT,2102741276
03.11.2017,ADULT SOCIAL CARE,METRO HOMECARE LTD,868.77,PHY LTS 65+,HOMECARE - SPOT,2102741155
03.11.2017,ADULT SOCIAL CARE,METRO HOMECARE LTD,923.93,PHY LTS 65+,HOMECARE - SPOT,2102741165
03.11.2017,ADULT SOCIAL CARE,METRO HOMECARE LTD,923.93,PHY LTS 65+,HOMECARE - SPOT,2102741169
03.11.2017,ADULT SOCIAL CARE,METRO HOMECARE LTD,965.3,PHY LTS 65+,HOMECARE - SPOT,2102741171
03.11.2017,ADULT SOCIAL CARE,METRO HOMECARE LTD,965.3,PHY LTS 65+,HOMECARE - SPOT,2102741315
03.11.2017,ADULT SOCIAL CARE,METRO HOMECARE LTD,"1,048.04",PHY LTS 65+,HOMECARE - SPOT,2102741304
03.11.2017,ADULT SOCIAL CARE,METRO HOMECARE LTD,"1,061.83",PHY LTS 65+,HOMECARE - C&V,2102741272
03.11.2017,ADULT SOCIAL CARE,METRO HOMECARE LTD,"1,061.83",PHY LTS 65+,HOMECARE - SPOT,2102741321
03.11.2017,ADULT SOCIAL CARE,METRO HOMECARE LTD,"1,158.36",PHY LTS 65+,HOMECARE - SPOT,2102741166
03.11.2017,ADULT SOCIAL CARE,METRO HOMECARE LTD,"1,179.05",PHY LTS 65+,HOMECARE - SPOT,2102741157
03.11.2017,ADULT SOCIAL CARE,METRO HOMECARE LTD,"1,213.52",PHY LTS 65+,HOMECARE - SPOT,2102741305
03.11.2017,ADULT SOCIAL CARE,METRO HOMECARE LTD,"1,323.84",PHY LTS 65+,HOMECARE - C&V,2102741292
03.11.2017,ADULT SOCIAL CARE,METRO HOMECARE LTD,"1,475.53",PHY LTS 65+,HOMECARE - SPOT,2102741168
03.11.2017,ADULT SOCIAL CARE,METRO HOMECARE LTD,"1,572.06",PHY LTS 65+,HOMECARE - SPOT,2102741287
03.11.2017,ADULT SOCIAL CARE,METRO HOMECARE LTD,"1,627.22",PHY LTS 65+,HOMECARE - SPOT,2102741163
03.11.2017,ADULT SOCIAL CARE,PANCHSHEEL GLOBAL PVT LTD,"1,988.74",SAFEGUARDING TEAM,OTHER CONTRACTORS,5902274546
03.11.2017,ADULT SOCIAL CARE,CARE DIRECT UK LTD,268.91,SOCIAL ISOLATION,HOMECARE - SPOT,2102741034
03.11.2017,ADULT SOCIAL CARE,HUMBLE HEALTH CARE LTD,"1,417.52",SOCIAL ISOLATION,HOMECARE - SPOT,2102741059
03.11.2017,ADULT SOCIAL CARE,LAMBETH MENCAP,378,SOCIAL ISOLATION,SUPPORTED LIVING,2102741127
03.11.2017,ADULT SOCIAL CARE,LAMBETH MENCAP,756,SOCIAL ISOLATION,SUPPORTED LIVING,2102741100
03.11.2017,ADULT SOCIAL CARE,LAMBETH MENCAP,756,SOCIAL ISOLATION,SUPPORTED LIVING,2102741108
03.11.2017,ADULT SOCIAL CARE,LAMBETH MENCAP,756,SOCIAL ISOLATION,SUPPORTED LIVING,2102741109
03.11.2017,ADULT SOCIAL CARE,LAMBETH MENCAP,756,SOCIAL ISOLATION,SUPPORTED LIVING,2102741137
03.11.2017,ADULT SOCIAL CARE,METRO HOMECARE LTD,296.49,SOCIAL ISOLATION,HOMECARE - SPOT,2102741274
03.11.2017,ADULT SOCIAL CARE,FREEDOM RECOVERY CENTRE,"2,680.00",SUB LTS 18-64,PLACEMENTS - REHAB,2102741190
03.11.2017,ADULT SOCIAL CARE,LONDON COUNCILS,"33,750.00",TAXICARD SCHEME,EXTERNAL AGENCIES AND BODIES,5902275260
03.11.2017,ADULT SOCIAL CARE,CARE O LINE,"3,016.25",TRANSITION 14 - 18 YEARS,SECTION 17 PAYMENTS TO AGENCIES/CARERS,2102741372
03.11.2017,ADULT SOCIAL CARE,CARE O LINE,"3,016.25",TRANSITION 14 - 18 YEARS,SECTION 17 PAYMENTS TO AGENCIES/CARERS,2102741373
03.11.2017,ADULT SOCIAL CARE,CARE O LINE,"3,016.25",TRANSITION 14 - 18 YEARS,SECTION 17 PAYMENTS TO AGENCIES/CARERS,2102741384
03.11.2017,ADULT SOCIAL CARE,CARE O LINE,"3,016.25",TRANSITION 14 - 18 YEARS,SECTION 17 PAYMENTS TO AGENCIES/CARERS,2102741385
03.11.2017,ADULT SOCIAL CARE,CARE O LINE,"3,016.25",TRANSITION 14 - 18 YEARS,SECTION 17 PAYMENTS TO AGENCIES/CARERS,2102741390
03.11.2017,ADULT SOCIAL CARE,CARE O LINE,"3,016.25",TRANSITION 14 - 18 YEARS,SECTION 17 PAYMENTS TO AGENCIES/CARERS,2102741395
03.11.2017,ADULT SOCIAL CARE,CARE O LINE,"3,372.50",TRANSITION 14 - 18 YEARS,SECTION 17 PAYMENTS TO AGENCIES/CARERS,2102741366
03.11.2017,ADULT SOCIAL CARE,LAMBETH MENCAP,"3,868.41",TRANSITION 14 - 18 YEARS,SECTION 17 PAYMENTS TO AGENCIES/CARERS,5902275497
03.11.2017,ADULT SOCIAL CARE,LAMBETH MENCAP,"4,761.12",TRANSITION 14 - 18 YEARS,SECTION 17 PAYMENTS TO AGENCIES/CARERS,5902275499
03.11.2017,ADULT SOCIAL CARE,LAMBETH MENCAP,"5,118.75",TRANSITION 14 - 18 YEARS,SECTION 17 PAYMENTS TO AGENCIES/CARERS,5902275500
03.11.2017,ADULT SOCIAL CARE,LAMBETH MENCAP,"5,309.85",TRANSITION 14 - 18 YEARS,SECTION 17 PAYMENTS TO AGENCIES/CARERS,5902275502
03.11.2017,ADULT SOCIAL CARE,LAMBETH MENCAP,"5,319.41",TRANSITION 14 - 18 YEARS,SECTION 17 PAYMENTS TO AGENCIES/CARERS,5902275503
03.11.2017,ADULT SOCIAL CARE,LAMBETH MENCAP,"6,046.95",TRANSITION 14 - 18 YEARS,SECTION 17 PAYMENTS TO AGENCIES/CARERS,5902275501
03.11.2017,ADULT SOCIAL CARE,MEDACS HOMECARE,346.32,TRANSITION 14 - 18 YEARS,SECTION 17 PAYMENTS TO AGENCIES/CARERS,2102741340
03.11.2017,ADULT SOCIAL CARE,MEDACS HOMECARE,346.32,TRANSITION 14 - 18 YEARS,SECTION 17 PAYMENTS TO AGENCIES/CARERS,2102741344
03.11.2017,ADULT SOCIAL CARE,MEDACS HOMECARE,461.76,TRANSITION 14 - 18 YEARS,SECTION 17 PAYMENTS TO AGENCIES/CARERS,2102741350
03.11.2017,ADULT SOCIAL CARE,MEDACS HOMECARE,808.08,TRANSITION 14 - 18 YEARS,SECTION 17 PAYMENTS TO AGENCIES/CARERS,2102741346
03.11.2017,ADULT SOCIAL CARE,MEDACS HOMECARE,"1,616.36",TRANSITION 14 - 18 YEARS,SECTION 17 PAYMENTS TO AGENCIES/CARERS,2102741342
03.11.2017,ADULT SOCIAL CARE,METRO HOMECARE LTD,669.6,TRANSITION 14 - 18 YEARS,SECTION 17 PAYMENTS TO AGENCIES/CARERS,2102741398
03.11.2017,ASSET MANAGEMENT,M C TECHNICIANS LTD,660,ADAPTATIONS,BUILDING R&M,5902274346
03.11.2017,ASSET MANAGEMENT,AIRBOURNE ENVIRONMENTAL CONSULTANTS,375,ENG CONTRACTS,EQUIPMENT PURCHASE & REPAIR,5902275313
03.11.2017,ASSET MANAGEMENT,AIRBOURNE ENVIRONMENTAL CONSULTANTS,660,ENG CONTRACTS,EQUIPMENT PURCHASE & REPAIR,5902275313
03.11.2017,ASSET MANAGEMENT,LONDON FIRE SOLUTIONS LLP,"1,155.40",REPAIRS OPERATIONS,OTHER R&M,5902275509
03.11.2017,CENTRAL FUNCTIONS,WILLIAM BOOTH COLLEGE,500,BUSINESS IMPROVEMENT UNIT,HIRE OF ROOMS/HALLS,5902275235
03.11.2017,CENTRAL FUNCTIONS,WILLIAM BOOTH COLLEGE,600,BUSINESS IMPROVEMENT UNIT,HIRE OF ROOMS/HALLS,5902275235
03.11.2017,CENTRAL FUNCTIONS,VEOLIA ES (UK)LTD,"136,249.13",HEATING ACCOUNT,GAS,5902275365
03.11.2017,CENTRAL FUNCTIONS,FITZPATRICK & CO SOLICITORS,"4,795.37",HOME OWNERSHIP INCOME,HOUSING RESIDENTIAL RENTS,5902275472
03.11.2017,CENTRAL FUNCTIONS,MARGARET ADUWA,"2,280.66",HOME OWNERSHIP INCOME,HOUSING RESIDENTIAL RENTS,5902275466
03.11.2017,CENTRAL FUNCTIONS,REDACTED PERSONAL DATA,"4,553.31",HOME OWNERSHIP INCOME,HOUSING RESIDENTIAL RENTS,5902275445
03.11.2017,CENTRAL FUNCTIONS,RAP INDUSTRIES LTD,"3,468.00",LEDBURY ESTATE,HARDWARE,5902275400
03.11.2017,CENTRAL FUNCTIONS,UK POWER NETWORKS (OPERATIONS) LTD,"72,060.18",LEDBURY ESTATE,OTHER R&M,2102741463
03.11.2017,CENTRAL FUNCTIONS,UK POWER NETWORKS (OPERATIONS) LTD,"76,904.00",LEDBURY ESTATE,OTHER R&M,2102741464
03.11.2017,CHIEF EXECUTIVE'S OFFICE,RENAISI LTD,"33,787.00",CHIEF EXEC'S OFFICE,GRANTS,5902275338
03.11.2017,CHILDREN AND ADULT,ARGOS,290.45,CAPITAL PS (SOC SERV),FIT-OUT,5902275350
03.11.2017,CHILDREN'S SERVICES,REDACTED PERSONAL DATA,408.45,ADOPTION PLACEMENTS & INTER AGENCY,PAYMENTS TO CARERS,5902275362
03.11.2017,CHILDREN'S SERVICES,REDACTED PERSONAL DATA,"3,200.00",ADOPTION PLACEMENTS & INTER AGENCY,OTHER PAYMENTS FOR CLIENTS,5902275354
03.11.2017,CHILDREN'S SERVICES,ACTION FOR CHILDREN,"3,892.67",AGENCY FOSTERING,EXTERNAL AGENCIES AND BODIES,2102741400
03.11.2017,CHILDREN'S SERVICES,ANCHOR FOSTERCARE,"3,268.64",AGENCY FOSTERING,EXTERNAL AGENCIES AND BODIES,2102741413
03.11.2017,CHILDREN'S SERVICES,ANCHOR FOSTERCARE,"3,268.64",AGENCY FOSTERING,EXTERNAL AGENCIES AND BODIES,2102741416
03.11.2017,CHILDREN'S SERVICES,ANCHOR FOSTERCARE,"3,799.67",AGENCY FOSTERING,EXTERNAL AGENCIES AND BODIES,2102741408
03.11.2017,CHILDREN'S SERVICES,ASCENT FOSTERING AGENCY LTD,"5,507.10",AGENCY FOSTERING,EXTERNAL AGENCIES AND BODIES,2102741415
03.11.2017,CHILDREN'S SERVICES,DIAGRAMA FOUNDATION CHILDREN SERVICES,"3,835.14",AGENCY FOSTERING,EXTERNAL AGENCIES AND BODIES,2102741404
03.11.2017,CHILDREN'S SERVICES,FOLLOWING WHISPERS FAMILY SERVICE LTD,"6,525.50",AGENCY FOSTERING,EXTERNAL AGENCIES AND BODIES,2102741417
03.11.2017,CHILDREN'S SERVICES,HELP ME GROW FOSTERING SERVICES LTD,"2,869.67",AGENCY FOSTERING,EXTERNAL AGENCIES AND BODIES,2102741402
03.11.2017,CHILDREN'S SERVICES,HELP ME GROW FOSTERING SERVICES LTD,"2,869.67",AGENCY FOSTERING,EXTERNAL AGENCIES AND BODIES,2102741411
03.11.2017,CHILDREN'S SERVICES,HELP ME GROW FOSTERING SERVICES LTD,"3,188.35",AGENCY FOSTERING,EXTERNAL AGENCIES AND BODIES,2102741401
03.11.2017,CHILDREN'S SERVICES,HELP ME GROW FOSTERING SERVICES LTD,"3,188.50",AGENCY FOSTERING,EXTERNAL AGENCIES AND BODIES,2102741403
03.11.2017,CHILDREN'S SERVICES,NATIONAL FOSTERING AGENCY,"1,487.12",AGENCY FOSTERING,EXTERNAL AGENCIES AND BODIES,2102741418
03.11.2017,CHILDREN'S SERVICES,NATIONAL FOSTERING AGENCY,"2,998.01",AGENCY FOSTERING,EXTERNAL AGENCIES AND BODIES,2102741409
03.11.2017,CHILDREN'S SERVICES,PARENT AND CHILD FOSTERING ASSESSMENTS,"5,314.28",AGENCY FOSTERING,EXTERNAL AGENCIES AND BODIES,2102741420
03.11.2017,CHILDREN'S SERVICES,SANKOFA CARE LTD,"4,392.30",AGENCY FOSTERING,EXTERNAL AGENCIES AND BODIES,2102741414
03.11.2017,CHILDREN'S SERVICES,SELECT FOSTERCARE SERVICES LTD,"2,760.00",AGENCY FOSTERING,EXTERNAL AGENCIES AND BODIES,2102741407
03.11.2017,CHILDREN'S SERVICES,SELECT FOSTERCARE SERVICES LTD,"3,653.66",AGENCY FOSTERING,EXTERNAL AGENCIES AND BODIES,2102741419
03.11.2017,CHILDREN'S SERVICES,SHINING STARS FOSTERING AGENCY LTD,"3,542.68",AGENCY FOSTERING,EXTERNAL AGENCIES AND BODIES,2102741410
03.11.2017,CHILDREN'S SERVICES,SWIIS FOSTER CARE LTD,697.97,AGENCY FOSTERING,EXTERNAL AGENCIES AND BODIES,2102741405
03.11.2017,CHILDREN'S SERVICES,SWIIS FOSTER CARE LTD,697.97,AGENCY FOSTERING,EXTERNAL AGENCIES AND BODIES,2102741406
03.11.2017,CHILDREN'S SERVICES,YOUNG PEOPLE AT HEART LTD,"3,100.00",AGENCY FOSTERING,EXTERNAL AGENCIES AND BODIES,2102741412
03.11.2017,CHILDREN'S SERVICES,BRAKE BROS,360,AYLESBURY EARLY YEARS CENTRE,CATERING MATERIALS & SUPPLIES,5902275412
03.11.2017,CHILDREN'S SERVICES,BRAKE BROS,478.88,AYLESBURY EARLY YEARS CENTRE,CATERING MATERIALS & SUPPLIES,5902275416
03.11.2017,CHILDREN'S SERVICES,GLS EDUCATIONAL SUPPLIES LTD,447.53,AYLESBURY EARLY YEARS CENTRE,PREMISES CLEANING,5902275419
03.11.2017,CHILDREN'S SERVICES,PLAYSAFETY LTD,390,AYLESBURY EARLY YEARS CENTRE,BUILDING R&M,5902275458
03.11.2017,CHILDREN'S SERVICES,REVIVAL,880,CENTRAL SUPPORT,MEDICAL / HEALTH & SAFETY SERVICES,5902275408
03.11.2017,CHILDREN'S SERVICES,REVIEWING OPTIONS LTD,"1,532.90",CLA TEAM SAFEGUARDING,PROFESSIONAL FEES,5902275318
03.11.2017,CHILDREN'S SERVICES,REDACTED PERSONAL DATA,-642.05,DISABILITY & HIV,PAYMENTS TO CARERS,2102741438
03.11.2017,CHILDREN'S SERVICES,REDACTED PERSONAL DATA,300,DISABILITY & HIV,ADDITIONAL PAYMENTS TO AGENCIES/CARERS,2102741423
03.11.2017,CHILDREN'S SERVICES,REDACTED PERSONAL DATA,300,DISABILITY & HIV,ADDITIONAL PAYMENTS TO AGENCIES/CARERS,2102741430
03.11.2017,CHILDREN'S SERVICES,REDACTED PERSONAL DATA,300,DISABILITY & HIV,ADDITIONAL PAYMENTS TO AGENCIES/CARERS,2102741439
03.11.2017,CHILDREN'S SERVICES,REDACTED PERSONAL DATA,320,DISABILITY & HIV,PAYMENTS TO CARERS,2102741437
03.11.2017,CHILDREN'S SERVICES,REDACTED PERSONAL DATA,336,DISABILITY & HIV,PAYMENTS TO CARERS,2102741424
03.11.2017,CHILDREN'S SERVICES,REDACTED PERSONAL DATA,399.06,DISABILITY & HIV,PAYMENTS TO CARERS,2102741433
03.11.2017,CHILDREN'S SERVICES,REDACTED PERSONAL DATA,400,DISABILITY & HIV,ADDITIONAL PAYMENTS TO AGENCIES/CARERS,2102741422
03.11.2017,CHILDREN'S SERVICES,REDACTED PERSONAL DATA,642.05,DISABILITY & HIV,PAYMENTS TO CARERS,2102741440
03.11.2017,CHILDREN'S SERVICES,FRG LTD,450,FAMILY GROUP CONFERENCES,EXTERNAL AGENCIES AND BODIES,5902275298
03.11.2017,CHILDREN'S SERVICES,FRG LTD,600,FAMILY GROUP CONFERENCES,EXTERNAL AGENCIES AND BODIES,5902275299
03.11.2017,CHILDREN'S SERVICES,ALLPAY NET LIMITED,"1,650.00",FINANCE,EXTERNAL AGENCIES AND BODIES,5902275310
03.11.2017,CHILDREN'S SERVICES,ALLPAY NET LIMITED,"1,652.25",FINANCE,EXTERNAL AGENCIES AND BODIES,5902275309
03.11.2017,CHILDREN'S SERVICES,REDACTED PERSONAL DATA,400,FURTHER EDUCATION SUPPORT,OTHER PAYMENTS FOR CLIENTS,2102741194
03.11.2017,CHILDREN'S SERVICES,SIGHT & SOUND TECHNOLOGY,"3,329.95",HEARING AND VISUAL IMPAIRMENT TEAM,OP LEASE/HIRE CHARGES:PLANT/EQUIP/FURNIT,5902274470
03.11.2017,CHILDREN'S SERVICES,REDACTED PERSONAL DATA,312.5,HOME 2 SCHOOL TRANSPORT,CAR MILEAGE EXPENSES,5902274991
03.11.2017,CHILDREN'S SERVICES,REDACTED PERSONAL DATA,312.5,HOME 2 SCHOOL TRANSPORT,CAR MILEAGE EXPENSES,5902274991
03.11.2017,CHILDREN'S SERVICES,REDACTED PERSONAL DATA,433.62,HOME 2 SCHOOL TRANSPORT,CAR MILEAGE EXPENSES,2102740252
03.11.2017,CHILDREN'S SERVICES,REDACTED PERSONAL DATA,600,HOME 2 SCHOOL TRANSPORT,CAB FARES,5902275510
03.11.2017,CHILDREN'S SERVICES,REDACTED PERSONAL DATA,678.9,HOME 2 SCHOOL TRANSPORT,OTHER PAYMENTS FOR CLIENTS,5902275444
03.11.2017,CHILDREN'S SERVICES,WHIPPERSNAPPERS CIC,270,POST ADOPTION ADVISE & SUPPORT,EXTERNAL AGENCIES AND BODIES,5902275319
03.11.2017,CHILDREN'S SERVICES,CARE O LINE,"1,879.98",RESIDENTIAL,HIRED VEHICLES,5902275311
03.11.2017,CHILDREN'S SERVICES,NEWNHAM COLLEGE,"9,250.00",SCHOLARSHIPS AND WRL,EXTERNAL AGENCIES AND BODIES,5902274671
03.11.2017,CHILDREN'S SERVICES,CAMERON SUPPORT SERVICES LTD,"4,227.90",SEMI INDEPENDENT,EXTERNAL AGENCIES AND BODIES,2102741355
03.11.2017,CHILDREN'S SERVICES,CAMERON SUPPORT SERVICES LTD,"4,227.90",SEMI INDEPENDENT,EXTERNAL AGENCIES AND BODIES,2102741357
03.11.2017,CHILDREN'S SERVICES,COMMUNITY BUILDING MANAGEMENT,"10,219.76",SEMI INDEPENDENT,EXTERNAL AGENCIES AND BODIES,2102741353
03.11.2017,CHILDREN'S SERVICES,FRESH START SUPPORT LTD,"8,000.00",SEMI INDEPENDENT,EXTERNAL AGENCIES AND BODIES,2102741358
03.11.2017,CHILDREN'S SERVICES,FRESH START SUPPORT LTD,"8,914.28",SEMI INDEPENDENT,EXTERNAL AGENCIES AND BODIES,2102741351
03.11.2017,CHILDREN'S SERVICES,HOLMDENE HOUSING LTD,"5,197.14",SEMI INDEPENDENT,EXTERNAL AGENCIES AND BODIES,2102741356
03.11.2017,CHILDREN'S SERVICES,LOOK AHEAD CARE AND SUPPORT LTD,"1,816.64",SEMI INDEPENDENT,EXTERNAL AGENCIES AND BODIES,2102741361
03.11.2017,CHILDREN'S SERVICES,STEP AHEAD SERVICES LTD,434.32,SEMI INDEPENDENT,EXTERNAL AGENCIES AND BODIES,2102741352
03.11.2017,CHILDREN'S SERVICES,STEP AHEAD SERVICES LTD,"1,682.99",SEMI INDEPENDENT,EXTERNAL AGENCIES AND BODIES,2102741354
03.11.2017,CHILDREN'S SERVICES,YOUNG LONDON TODAY,"3,707.10",SEMI INDEPENDENT,EXTERNAL AGENCIES AND BODIES,2102741364
03.11.2017,CHILDREN'S SERVICES,LOGICOUS LTD,859.15,SPECIAL GUARDIANSHIP,EXTERNAL AGENCIES AND BODIES,5902275301
03.11.2017,CHILDREN'S SERVICES,REDACTED PERSONAL DATA,"1,398.02",SPECIAL GUARDIANSHIP,PAYMENTS TO CARERS,2102741267
03.11.2017,CHILDREN'S SERVICES,CARE O LINE,330,SPECIALIST CARE,SECTION 17 PAYMENTS TO AGENCIES/CARERS,2102741381
03.11.2017,CHILDREN'S SERVICES,CARE O LINE,330,SPECIALIST CARE,SECTION 17 PAYMENTS TO AGENCIES/CARERS,2102741382
03.11.2017,CHILDREN'S SERVICES,CARE O LINE,330,SPECIALIST CARE,SECTION 17 PAYMENTS TO AGENCIES/CARERS,2102741397
03.11.2017,CHILDREN'S SERVICES,CARE O LINE,605,SPECIALIST CARE,SECTION 17 PAYMENTS TO AGENCIES/CARERS,2102741396
03.11.2017,CHILDREN'S SERVICES,CONTACT PROFESSIONALS,"1,596.00",SPECIALIST CARE,SECTION 17 PAYMENTS TO AGENCIES/CARERS,2102741399
03.11.2017,CHILDREN'S SERVICES,FOCUSED HEALTHCARE LTD,341.76,SPECIALIST CARE,SECTION 17 PAYMENTS TO AGENCIES/CARERS,2102741378
03.11.2017,CHILDREN'S SERVICES,FOCUSED HEALTHCARE LTD,341.76,SPECIALIST CARE,SECTION 17 PAYMENTS TO AGENCIES/CARERS,2102741391
03.11.2017,CHILDREN'S SERVICES,FOCUSED HEALTHCARE LTD,833.04,SPECIALIST CARE,SECTION 17 PAYMENTS TO AGENCIES/CARERS,2102741370
03.11.2017,CHILDREN'S SERVICES,FOCUSED HEALTHCARE LTD,"1,025.28",SPECIALIST CARE,SECTION 17 PAYMENTS TO AGENCIES/CARERS,2102741388
03.11.2017,CHILDREN'S SERVICES,FOCUSED HEALTHCARE LTD,"2,430.40",SPECIALIST CARE,SECTION 17 PAYMENTS TO AGENCIES/CARERS,5902275505
03.11.2017,CHILDREN'S SERVICES,FOCUSED HEALTHCARE LTD,"2,593.10",SPECIALIST CARE,SECTION 17 PAYMENTS TO AGENCIES/CARERS,2102741379
03.11.2017,CHILDREN'S SERVICES,INTERSERVE HEALTHCARE,321.75,SPECIALIST CARE,SECTION 17 PAYMENTS TO AGENCIES/CARERS,5902275507
03.11.2017,CHILDREN'S SERVICES,INTERSERVE HEALTHCARE,463.15,SPECIALIST CARE,SECTION 17 PAYMENTS TO AGENCIES/CARERS,2102741369
03.11.2017,CHILDREN'S SERVICES,INTERSERVE HEALTHCARE,525,SPECIALIST CARE,SECTION 17 PAYMENTS TO AGENCIES/CARERS,5902275508
03.11.2017,CHILDREN'S SERVICES,INTERSERVE HEALTHCARE,663.74,SPECIALIST CARE,SECTION 17 PAYMENTS TO AGENCIES/CARERS,2102741389
03.11.2017,CHILDREN'S SERVICES,INTERSERVE HEALTHCARE,748.85,SPECIALIST CARE,SECTION 17 PAYMENTS TO AGENCIES/CARERS,2102741367
03.11.2017,CHILDREN'S SERVICES,KIDS,339,SPECIALIST CARE,SECTION 17 PAYMENTS TO AGENCIES/CARERS,5902275320
03.11.2017,CHILDREN'S SERVICES,KIDS,339,SPECIALIST CARE,SECTION 17 PAYMENTS TO AGENCIES/CARERS,5902275321
03.11.2017,CHILDREN'S SERVICES,MEDACS HOMECARE,346.32,SPECIALIST CARE,SECTION 17 PAYMENTS TO AGENCIES/CARERS,2102741343
03.11.2017,CHILDREN'S SERVICES,MEDACS HOMECARE,461.77,SPECIALIST CARE,SECTION 17 PAYMENTS TO AGENCIES/CARERS,2102741349
03.11.2017,CHILDREN'S SERVICES,MEDACS HOMECARE,606.06,SPECIALIST CARE,SECTION 17 PAYMENTS TO AGENCIES/CARERS,2102741341
03.11.2017,CHILDREN'S SERVICES,MEDACS HOMECARE,707.07,SPECIALIST CARE,SECTION 17 PAYMENTS TO AGENCIES/CARERS,2102741336
03.11.2017,CHILDREN'S SERVICES,MEDACS HOMECARE,865.8,SPECIALIST CARE,SECTION 17 PAYMENTS TO AGENCIES/CARERS,2102741347
03.11.2017,CHILDREN'S SERVICES,MEDACS HOMECARE,"2,958.15",SPECIALIST CARE,SECTION 17 PAYMENTS TO AGENCIES/CARERS,2102741335
03.11.2017,CHILDREN'S SERVICES,METRO HOMECARE LTD,334.8,SPECIALIST CARE,SECTION 17 PAYMENTS TO AGENCIES/CARERS,2102741371
03.11.2017,CHILDREN'S SERVICES,METRO HOMECARE LTD,390.6,SPECIALIST CARE,SECTION 17 PAYMENTS TO AGENCIES/CARERS,2102741383
03.11.2017,CHILDREN'S SERVICES,METRO HOMECARE LTD,669.6,SPECIALIST CARE,SECTION 17 PAYMENTS TO AGENCIES/CARERS,2102741375
03.11.2017,CHILDREN'S SERVICES,METRO HOMECARE LTD,781.2,SPECIALIST CARE,SECTION 17 PAYMENTS TO AGENCIES/CARERS,2102741387
03.11.2017,CHILDREN'S SERVICES,THE DRIVE CARE HOMES LTD,"1,529.00",SPECIALIST CARE,HIRED VEHICLES,5902275317
03.11.2017,CHILDREN'S SERVICES,THORNBURY NURSING SERVICES,"6,657.58",SPECIALIST CARE,SECTION 17 PAYMENTS TO AGENCIES/CARERS,2102741374
03.11.2017,CHILDREN'S SERVICES,TROWERS & HAMLINS LLP,782,SSF NON SCHOOL SPECIFIC FM,PAYMENTS FOR LEGAL SERVICES,5902275491
03.11.2017,CHILDREN'S SERVICES,TROWERS & HAMLINS LLP,"1,625.00",SSF NON SCHOOL SPECIFIC FM,PAYMENTS FOR LEGAL SERVICES,5902275489
03.11.2017,CHILDREN'S SERVICES,HOLMDENE HOUSING LTD,528.57,UNACCOMPANIED ASYLUM CHILDREN 16-17,EXTERNAL AGENCIES AND BODIES,2102741362
03.11.2017,CHILDREN'S SERVICES,HOLMDENE HOUSING LTD,"1,850.00",UNACCOMPANIED ASYLUM CHILDREN 16-17,EXTERNAL AGENCIES AND BODIES,2102741360
03.11.2017,CHILDREN'S SERVICES,REDACTED PERSONAL DATA,300,UNIVERSITY SUPPORT,CLIENT TRANSPORT,2102741192
03.11.2017,CHILDREN'S SERVICES,REDACTED PERSONAL DATA,500,UNIVERSITY SUPPORT,OTHER PAYMENTS FOR CLIENTS,2102741193
03.11.2017,CHILDREN'S SERVICES,REVIVAL,330,YOS SUPPORT,MEDICAL / HEALTH & SAFETY SERVICES,5902275409
03.11.2017,COMMUNITIES,HUMBLE HEALTH CARE LTD,756,NRPF MENTAL HEALTH,NATIONAL ASSISTANCE,2102741023
03.11.2017,COMMUNITIES,WEBBER AND QUENTIN LTD,"4,350.00",TENANT MGT INITITIVES,DISCRETIONARY AWARDS AND FEES,5902275395
03.11.2017,COMMUNITIES,COSSALL WALK GOLDEN OLDIES,"1,000.00",TENANTS FUND,GRANTS,5902275481
03.11.2017,COMMUNITIES,MANOR ESTATE T&RA,"1,000.00",TENANTS FUND,GRANTS,5902274120
03.11.2017,COMMUNITIES,RUSSELL COURT SHU,"1,000.00",TENANTS FUND,GRANTS,5902275348
03.11.2017,COMMUNITIES,BLENHEIM CDP,"66,499.88",YOUNG PEOPLES SERVICE,OTHER CONTRACTORS,5902275342
03.11.2017,CUSTOMER EXPERIENCE HGF,ACT NOW TRAINING LTD,299,COMPLAINTS,TRAINING,5902274401
03.11.2017,CUSTOMER EXPERIENCE HGF,ACT NOW TRAINING LTD,299,COMPLAINTS,TRAINING,5902274404
03.11.2017,CUSTOMER EXPERIENCE HGF,VICTORIA ASSET FINANCE,355,CORONER'S,CATERING MATERIALS & SUPPLIES,5902275270
03.11.2017,CUSTOMER EXPERIENCE HGF,ACE FAST LETTINGS LTD,"1,658.50",NIGHTLY TA (NSC),EXTERNAL AGENCIES AND BODIES,5902275315
03.11.2017,CUSTOMER EXPERIENCE HGF,OAK HOUSING LTD,"2,545.10",PSL PLACEMENTS,EXTERNAL AGENCIES AND BODIES,5902275386
03.11.2017,CUSTOMER EXPERIENCE HGF,OFFICE DEPOT UK LTD,261.72,REGISTRARS,STATIONERY,5902275308
03.11.2017,ENVIRONMENT AND LEISURE,APPLEYARD & TREW,"7,000.00",CAPITAL PS (LEISURE),CONSTRUCTION FEES  - EXTERNAL,5902275305
03.11.2017,ENVIRONMENT AND LEISURE,BERMONDSEY ARTIST`S GROUP,"5,000.00",CAPITAL PS (LEISURE),CAPITAL GRANTS,5902275414
03.11.2017,ENVIRONMENT AND LEISURE,ELIZABETH INNEMEE,400,CAPITAL PS (LEISURE),CONSTRUCTION FEES - ARCHITECT,5902274765
03.11.2017,ENVIRONMENT AND LEISURE,ELLIOTT J - DESIGN,260,CAPITAL PS (LEISURE),CONSTRUCTION FEES,5902275405
03.11.2017,ENVIRONMENT AND LEISURE,ELLIOTT J - DESIGN,280,CAPITAL PS (LEISURE),CONSTRUCTION FEES,5902275405
03.11.2017,ENVIRONMENT AND LEISURE,ELLIOTT J - DESIGN,320,CAPITAL PS (LEISURE),CONSTRUCTION FEES,5902275405
03.11.2017,ENVIRONMENT AND LEISURE,KATHERINE OLLEY,"4,000.00",CAPITAL PS (LEISURE),CONSTRUCTION FEES  - EXTERNAL,5902275427
03.11.2017,ENVIRONMENT AND LEISURE,RANDALL SHAW BILLINGHAM LTD,"2,749.25",CAPITAL PS (LEISURE),CONSTRUCTION FEES,5902275283
03.11.2017,ENVIRONMENT AND LEISURE,RANDALL SHAW BILLINGHAM LTD,"3,788.25",CAPITAL PS (LEISURE),CONSTRUCTION FEES,5902275283
03.11.2017,ENVIRONMENT AND LEISURE,STANBURY BUILDING SERVICES LTD,495,CAPITAL PS (LEISURE),CONST'N MAIN CONTRACT - NON CERTIFICATED,2102740975
03.11.2017,ENVIRONMENT DIRECTORATE,ARNOLD CLARK VEHICLE MANAGEMENT,316.21,CAR LEASING CTRL A/C,VEHICLE LEASING CHARGES,5902275279
03.11.2017,ENVIRONMENT DIRECTORATE,ARNOLD CLARK VEHICLE MANAGEMENT,319.73,CAR LEASING CTRL A/C,VEHICLE LEASING CHARGES,5902275273
03.11.2017,ENVIRONMENT DIRECTORATE,ARNOLD CLARK VEHICLE MANAGEMENT,426.27,CAR LEASING CTRL A/C,VEHICLE LEASING CHARGES,5902275269
03.11.2017,ENVIRONMENT DIRECTORATE,ARNOLD CLARK VEHICLE MANAGEMENT,445.26,CAR LEASING CTRL A/C,VEHICLE LEASING CHARGES,5902275275
03.11.2017,ENVIRONMENT DIRECTORATE,DAWSON RENTALS SWEEPERS,"2,200.00",COMMERCIAL VEH CTRL A/C,HIRED VEHICLES,5902275477
03.11.2017,ENVIRONMENT DIRECTORATE,SCARAB SWEEPERS LIMITED,365,COMMERCIAL VEH CTRL A/C,VEHICLE REPAIRS & MAINTENANCE,5902275432
03.11.2017,ENVIRONMENT DIRECTORATE,HITACHI CAPITAL VEHICLE SOLN LTD,507.26,FLEET INSURANCE WORKS,TRANSPORT INSURANCE COSTS,5902275244
03.11.2017,ENVIRONMENT DIRECTORATE,M H COACHWORKS & SONS LTD,588.14,FLEET INSURANCE WORKS,TRANSPORT INSURANCE COSTS,5902275337
03.11.2017,ENVIRONMENT DIRECTORATE,R J MOTORS LIMITED,728.75,FLEET INSURANCE WORKS,TRANSPORT INSURANCE COSTS,5902275288
03.11.2017,ENVIRONMENT DIRECTORATE,SOUTHWARK NEWSPAPER LTD,264,HIGHWAYS DEVELOPMENT,MARKETING & PUBLICITY SERVICES,5902275323
03.11.2017,ENVIRONMENT DIRECTORATE,BELL BRUSH COMPANY,782.6,MANAGEMENT TEAM,MATERIALS,5902275347
03.11.2017,ENVIRONMENT DIRECTORATE,DIGITAL ID LTD,863.84,NOISE& AIR QUALITY,EQUIPMENT PURCHASE & REPAIR,5902274909
03.11.2017,ENVIRONMENT DIRECTORATE,ELLIOT ENVIRONMENTAL LTD,400,STREET CLEANING-GENERAL,OTHER CONTRACTORS,5902275351
03.11.2017,EXTERNAL AFFAIRS,PATRICIA CLEVERLY,"1,000.00",CABINET OFFICE,MISCELLANEOUS EXPENSES,5902270262
03.11.2017,F & C S EXCLUDING CORPORATE BUDGETS,NORTHGATE PUBLIC SERVICES (UK) LTD,"5,940.00",ADMINISTRATIVE SUPPORT,SOFTWARE,5902275448
03.11.2017,F & C S EXCLUDING CORPORATE BUDGETS,CAPITA BUSINESS SERVICES LTD,"31,452.72",CAPITA,OTHER CONTRACTORS,5902275452
03.11.2017,F & C S EXCLUDING CORPORATE BUDGETS,THE SMITH INSTITUTE,"1,000.00",PROJECTS,CONSULTANTS SERVICES,5902274820
03.11.2017,HOUSING,LOCKESLEYS LTD,"61,676.70",LOCKESLEYS,MANUAL CREDITORS,5902274826
03.11.2017,HOUSING GENERAL FUND,TRINITY CONSTRUCTION SERVICES LTD,"7,800.00",CAPITAL PS (HOUSING GF),CAPITAL GRANTS,5902275392
03.11.2017,HOUSING GENERAL FUND,TRINITY CONSTRUCTION SERVICES LTD,"16,225.00",CAPITAL PS (HOUSING GF),CAPITAL GRANTS,5902275392
03.11.2017,HOUSING GENERAL FUND,SAP (UK) LTD,"2,550.00",CAPITAL PS (STRAT SERV),ICT ACQUISITION,5902275455
03.11.2017,HOUSING GENERAL FUND,SAP (UK) LTD,"3,125.00",CAPITAL PS (STRAT SERV),ICT ACQUISITION,5902275387
03.11.2017,HOUSING HRA,A & E ELKINS LTD,"109,657.50",CAPITAL PS (HRA),CONSTRUCTION MAIN CONTRACT -CERTIFICATED,2102740976
03.11.2017,HOUSING HRA,CALFORD SEADEN LLP,405.35,CAPITAL PS (HRA),CONSTRUCTION FEES  - EXTERNAL,5902275383
03.11.2017,HOUSING HRA,CALFORD SEADEN LLP,"4,093.83",CAPITAL PS (HRA),CONSTRUCTION FEES  - EXTERNAL,5902275403
03.11.2017,HOUSING HRA,SALTASH ENTERPRISES LTD,"29,034.33",CAPITAL PS (HRA),CONSTRUCTION MAIN CONTRACT -CERTIFICATED,2102740973
03.11.2017,HOUSING HRA,SALTASH ENTERPRISES LTD,"88,662.42",CAPITAL PS (HRA),CONSTRUCTION MAIN CONTRACT -CERTIFICATED,2102740974
03.11.2017,HOUSING HRA,TROWERS & HAMLINS LLP,"6,337.71",CAPITAL PS (REGEN),CONSTRUCTION FEES - LEGAL,5902275482
03.11.2017,HOUSING HRA,TROWERS & HAMLINS LLP,"6,337.71",CAPITAL PS (REGEN),CONSTRUCTION FEES - LEGAL,5902275482
03.11.2017,HOUSING HRA,TROWERS & HAMLINS LLP,"6,337.71",CAPITAL PS (REGEN),CONSTRUCTION FEES - LEGAL,5902275482
03.11.2017,HOUSING HRA,TROWERS & HAMLINS LLP,"6,337.71",CAPITAL PS (REGEN),CONSTRUCTION FEES - LEGAL,5902275482
03.11.2017,HOUSING HRA,TROWERS & HAMLINS LLP,"6,337.71",CAPITAL PS (REGEN),CONSTRUCTION FEES - LEGAL,5902275482
03.11.2017,HOUSING HRA,TROWERS & HAMLINS LLP,"6,337.71",CAPITAL PS (REGEN),CONSTRUCTION FEES - LEGAL,5902275482
03.11.2017,HOUSING HRA,TROWERS & HAMLINS LLP,"6,337.71",CAPITAL PS (REGEN),CONSTRUCTION FEES - LEGAL,5902275482
03.11.2017,HOUSING HRA,TROWERS & HAMLINS LLP,"6,337.71",CAPITAL PS (REGEN),CONSTRUCTION FEES - LEGAL,5902275482
03.11.2017,HOUSING HRA,TROWERS & HAMLINS LLP,"6,337.72",CAPITAL PS (REGEN),CONSTRUCTION FEES - LEGAL,5902275482
03.11.2017,LEISURE DIRECTORATE,EDF ENERGY PLC,260.86,BURGESS AREA TEAM,ELECTRICITY,5902275399
03.11.2017,LEISURE DIRECTORATE,ACCESS2BOOKS LTD,"1,007.60",STOCK SERVICES,BOOKS & PUBLICATIONS,5902268827
03.11.2017,MODERNISATION HGF,CASTLE WATER LTD,968.22,CURLEW HOUSE,WATER,5902275437
03.11.2017,MODERNISATION HGF,ASSESSMENT & DEVELOPMENT,398.56,OCCUPATIONAL ASSESSMENT,EQUIPMENT PURCHASE & REPAIR,5902274923
03.11.2017,MODERNISATION HGF,ASSESSMENT & DEVELOPMENT,498.2,OCCUPATIONAL ASSESSMENT,EQUIPMENT PURCHASE & REPAIR,5902274932
03.11.2017,MODERNISATION HGF,ELIESHA TRAINING LTD,"1,980.00",ORG TRANSFORMATION,TRAINING,5902275345
03.11.2017,MODERNISATION HGF,ORACLE CORPORATION UK LTD,"1,309.10",TECHNOLOGY,SOFTWARE,5902275141
03.11.2017,MODERNISATION HGF,ORACLE CORPORATION UK LTD,"1,545.28",TECHNOLOGY,HARDWARE,5902275238
03.11.2017,PUBLIC HEALTH,THE WHITTINGTON HOSPITAL NHS TRUST,293.66,SEXUAL HEALTH - STI,EXTERNAL AGENCIES AND BODIES,5902275328
03.11.2017,REGENERATION,WORKMAN LLP,"1,245.48",22 SHAND STREET,SERVICE CHARGES,2102740985
03.11.2017,REGENERATION,TROWERS & HAMLINS LLP,"2,504.27",SOUTHWARK REGEN IN PARTNERSHIP PROGRAMME,PAYMENTS FOR LEGAL SERVICES,5902275487
03.11.2017,REGENERATION,TROWERS & HAMLINS LLP,"4,725.65",SOUTHWARK REGEN IN PARTNERSHIP PROGRAMME,PAYMENTS FOR LEGAL SERVICES,5902275485
03.11.2017,RESIDENT SERVICES,EDF ENERGY PLC,312.21,OPERATIONS/OFFICES ACCOMMODATION,ELECTRICITY,5902275380
03.11.2017,RESIDENT SERVICES,EDF ENERGY PLC,357.73,OPERATIONS/OFFICES ACCOMMODATION,ELECTRICITY,5902275312
03.11.2017,RESIDENT SERVICES,EDF ENERGY PLC,467.4,OPERATIONS/OFFICES ACCOMMODATION,ELECTRICITY,5902275380
03.11.2017,RESIDENT SERVICES,EDF ENERGY PLC,584.14,OPERATIONS/OFFICES ACCOMMODATION,ELECTRICITY,5902275330
03.11.2017,RESIDENT SERVICES,EDF ENERGY PLC,"1,439.17",OPERATIONS/OFFICES ACCOMMODATION,ELECTRICITY,5902275363
03.11.2017,RESIDENT SERVICES,OFFICE DEPOT UK LTD,580.83,OPERATIONS/OFFICES ACCOMMODATION,STATIONERY,5902275410
03.11.2017,RESIDENT SERVICES,RELIANCE HIGH-TECH LTD,"1,544.46",OPERATIONS/OFFICES ACCOMMODATION,SECURITY EQUIPMENT F&F,5902275332
03.11.2017,RESIDENT SERVICES,A & M PROPERTY AND CONSTRUCTION LTD,805,TA PLACEMENTS,EXTERNAL AGENCIES AND BODIES,5902275436
03.11.2017,SOUTHWARK BUILDING SERVICES,SIEMENS FINANCIAL SERVICES LIMITED,607.59,DEPOT COSTS,OP LEASE/HIRE CHARGES:PLANT/EQUIP/FURNIT,5902275264
03.11.2017,SOUTHWARK BUILDING SERVICES,SIEMENS FINANCIAL SERVICES LIMITED,"1,740.00",DEPOT COSTS,OP LEASE/HIRE CHARGES:PLANT/EQUIP/FURNIT,5902275265
03.11.2017,SOUTHWARK BUILDING SERVICES,PITNEY BOWES FINANCE LTD,258.44,R & M OVERHEADS,POSTAGES,5902275256
03.11.2017,SOUTHWARK BUILDING SERVICES,PITNEY BOWES FINANCE LTD,775.09,R & M OVERHEADS,POSTAGES,5902275256
03.11.2017,SOUTHWARK SCHOOL FOR FUTURE,TROWERS & HAMLINS LLP,454,CAPITAL PS (REGEN),CONSTRUCTION FEES - LEGAL,5902275488
03.11.2017,SOUTHWARK SCHOOL FOR FUTURE,TROWERS & HAMLINS LLP,"1,145.00",CAPITAL PS (REGEN),CONSTRUCTION FEES - LEGAL,5902275496
03.11.2017,SOUTHWARK SCHOOL FOR FUTURE,TROWERS & HAMLINS LLP,"9,255.50",CAPITAL PS (REGEN),CONSTRUCTION FEES - LEGAL,5902275492
04.11.2017,ASSET MANAGEMENT,L H BRIDGE LTD,720,ADAPTATIONS,BUILDING R&M,5902274589
04.11.2017,CHIEF EXECUTIVE'S OFFICE,STEP AHEAD SOCIAL ENTERPRISE CIC,"6,150.00",BUSINESS SUPPORT,GRANTS,5902274894
04.11.2017,CHIEF EXECUTIVE'S OFFICE,STEP AHEAD SOCIAL ENTERPRISE CIC,"8,775.00",BUSINESS SUPPORT,GRANTS,5902274894
04.11.2017,COMMUNITIES,THAMES REACH EMPOLYMENT ACADEMY,450,COMMUNITY COUNCILS TEAM,HIRE OF FACILITIES AND EQUIPMENT,5902274857
04.11.2017,ENVIRONMENT AND LEISURE,INTO SERVICES LONDON LTD,"1,250.00",CAPITAL PS (LEISURE),CONSTRUCTION FEES - INTERNAL,5902274721
04.11.2017,ENVIRONMENT AND LEISURE,INTO SERVICES LONDON LTD,"1,565.00",CAPITAL PS (LEISURE),CONSTRUCTION FEES - INTERNAL,5902274721
04.11.2017,ENVIRONMENT AND LEISURE,INTO SERVICES LONDON LTD,"2,500.00",CAPITAL PS (LEISURE),CONSTRUCTION FEES - INTERNAL,5902274721
04.11.2017,ENVIRONMENT DIRECTORATE,CALE ACCESS UK LTD,"-1,822.50",METERS,OTHER R&M,5902274673
04.11.2017,ENVIRONMENT DIRECTORATE,CALE ACCESS UK LTD,"1,822.50",METERS,OTHER R&M,5902274384
04.11.2017,ENVIRONMENT DIRECTORATE,CALE ACCESS UK LTD,"2,340.00",METERS,OTHER R&M,5902274677
04.11.2017,HOUSING HRA,HERRINGTON CONSULTING LTD,"1,540.00",CAPITAL PS (HRA),CONSTRUCTION FEES  - EXTERNAL,5902274775
04.11.2017,RESIDENT SERVICES,THAMES WATER UTILITIES LTD,331.65,OPERATIONS/OFFICES ACCOMMODATION,WATER,5902274451
04.11.2017,RESIDENT SERVICES,THAMES WATER UTILITIES LTD,439.99,OPERATIONS/OFFICES ACCOMMODATION,WATER,5902274475
04.11.2017,STRATEGIC FINANCING BUDGETS,ZURICH MUNICIPAL,"17,500.00",MOTOR RELATED INSURANCE,TRANSPORT INSURANCE COSTS,5902274788
05.11.2017,ADULT SOCIAL CARE,BEDE HOUSE ASSOCIATION,"-1,239.43",LD LTS 18-64,DAYCARE,2102737162
05.11.2017,ADULT SOCIAL CARE,BEDE HOUSE ASSOCIATION,260,LD LTS 18-64,DAYCARE,2102736535
05.11.2017,ADULT SOCIAL CARE,BEDE HOUSE ASSOCIATION,280,MH LTS 18-64,DAYCARE,2102736558
05.11.2017,COMMUNITIES,BEDE HOUSE ASSOCIATION,"2,850.00",COMMUNITY SAFETY FUND,SUBSCRIPTIONS,5902274562
05.11.2017,COMMUNITIES,LOOK AHEAD CARE AND SUPPORT LTD,974.85,NO RECOURSE TO PUBLIC FUNDS,ACCOMMODATION CHARGES,5902274743
05.11.2017,CUSTOMER EXPERIENCE HGF,POSTURITE (UK) LTD,709,COMPLAINTS,FURNITURE PURCHASE & REPAIR,5902275155
05.11.2017,ENVIRONMENT AND LEISURE,MICHAEL AND PARTNERS LTD,"4,475.00",CAPITAL PS (LEISURE),CONSTRUCTION FEES  - EXTERNAL,5902274679
05.11.2017,ENVIRONMENT DIRECTORATE,DX NETWORK SERVICES LTD,"1,184.88",PARKING OVERHEADS,POSTAGES,5902275295
05.11.2017,ENVIRONMENT DIRECTORATE,SOUTHWARK NEWSPAPER LTD,276,STREET WORKS OVERHEADS,MARKETING & PUBLICITY SERVICES,5902275474
05.11.2017,ENVIRONMENT DIRECTORATE,SOUTHWARK NEWSPAPER LTD,276,STREET WORKS OVERHEADS,MARKETING & PUBLICITY SERVICES,5902275479
05.11.2017,ENVIRONMENT DIRECTORATE,SOUTHWARK NEWSPAPER LTD,276,STREET WORKS OVERHEADS,MARKETING & PUBLICITY SERVICES,5902275493
05.11.2017,ENVIRONMENT DIRECTORATE,SOUTHWARK NEWSPAPER LTD,276,STREET WORKS OVERHEADS,MARKETING & PUBLICITY SERVICES,5902275495
05.11.2017,ENVIRONMENT DIRECTORATE,SOUTHWARK NEWSPAPER LTD,288,STREET WORKS OVERHEADS,MARKETING & PUBLICITY SERVICES,5902275467
05.11.2017,ENVIRONMENT DIRECTORATE,SOUTHWARK NEWSPAPER LTD,288,STREET WORKS OVERHEADS,MARKETING & PUBLICITY SERVICES,5902275468
05.11.2017,ENVIRONMENT DIRECTORATE,SOUTHWARK NEWSPAPER LTD,288,STREET WORKS OVERHEADS,MARKETING & PUBLICITY SERVICES,5902275471
05.11.2017,ENVIRONMENT DIRECTORATE,SOUTHWARK NEWSPAPER LTD,288,STREET WORKS OVERHEADS,MARKETING & PUBLICITY SERVICES,5902275476
05.11.2017,ENVIRONMENT DIRECTORATE,SOUTHWARK NEWSPAPER LTD,288,STREET WORKS OVERHEADS,MARKETING & PUBLICITY SERVICES,5902275480
05.11.2017,ENVIRONMENT DIRECTORATE,SOUTHWARK NEWSPAPER LTD,288,STREET WORKS OVERHEADS,MARKETING & PUBLICITY SERVICES,5902275484
05.11.2017,ENVIRONMENT DIRECTORATE,SOUTHWARK NEWSPAPER LTD,288,STREET WORKS OVERHEADS,MARKETING & PUBLICITY SERVICES,5902275486
05.11.2017,ENVIRONMENT DIRECTORATE,SOUTHWARK NEWSPAPER LTD,288,STREET WORKS OVERHEADS,MARKETING & PUBLICITY SERVICES,5902275494
05.11.2017,ENVIRONMENT DIRECTORATE,SOUTHWARK NEWSPAPER LTD,300,STREET WORKS OVERHEADS,MARKETING & PUBLICITY SERVICES,5902275464
05.11.2017,ENVIRONMENT DIRECTORATE,SOUTHWARK NEWSPAPER LTD,300,STREET WORKS OVERHEADS,MARKETING & PUBLICITY SERVICES,5902275473
05.11.2017,ENVIRONMENT DIRECTORATE,SOUTHWARK NEWSPAPER LTD,336,STREET WORKS OVERHEADS,MARKETING & PUBLICITY SERVICES,5902275478
05.11.2017,LEISURE DIRECTORATE,THE ULTIMATE PROMOTION,579.4,COMMUNITY SPORTS DEVELOPMENT,"CLOTHING, UNIFORMS & LAUNDRY",5902275025
05.11.2017,MODERNISATION HGF,EDGE TRAINING LTD,"1,850.00",ASW - PROFESSIONAL DEVELOPMENT,TRAINING,5902274696
05.11.2017,MODERNISATION HGF,GO2 TELECOM LTD,"1,650.00",SYSTEMS,TELEPHONES (LAND LINES),5902274686
05.11.2017,PLANNING AND TRANSPORT,SOUTHWARK NEWSPAPER LTD,840,DEVELOPMENT CONTROL ADMINSTRATION,MARKETING & PUBLICITY SERVICES,5902275193
05.11.2017,REGENERATION,SITE ANALYTICAL SERVICES LTD,"3,195.00",OLD KENT RD-FEES/MPLAN,PROFESSIONAL FEES,5902274668
05.11.2017,RESIDENT SERVICES,THAMES WATER UTILITIES LTD,342.49,OPERATIONS/OFFICES ACCOMMODATION,WATER,5902274453
06.11.2017,ADULT SOCIAL CARE,MEDEQUIP ASSISTIVE TECHNOLOGY LTD,327.47,ICES CONTRACT,EQUIPMENT PURCHASE & REPAIR,5902275531
06.11.2017,ADULT SOCIAL CARE,MEDEQUIP ASSISTIVE TECHNOLOGY LTD,710.4,ICES CONTRACT,EQUIPMENT PURCHASE & REPAIR,5902275532
06.11.2017,ADULT SOCIAL CARE,MEDEQUIP ASSISTIVE TECHNOLOGY LTD,710.4,ICES CONTRACT,EQUIPMENT PURCHASE & REPAIR,5902275533
06.11.2017,ADULT SOCIAL CARE,MEDEQUIP ASSISTIVE TECHNOLOGY LTD,"139,082.47",ICES CONTRACT,EQUIPMENT PURCHASE & REPAIR,5902275529
06.11.2017,ADULT SOCIAL CARE,THE CONSORTIUM,614.99,ORIENT STREET,EQUIPMENT PURCHASE & REPAIR,5902275614
06.11.2017,ADULT SOCIAL CARE,HEALTHCARE CONFERENCES UK,365,STRAT DIR OF C&AS,CONSULTANTS SERVICES,5902275586
06.11.2017,ASSET MANAGEMENT,ANTHONY GOLD SOLICITORS,"4,125.00",DISREPAIR,LEGAL FEES & COURT COSTS,5902275545
06.11.2017,ASSET MANAGEMENT,ANTHONY GOLD SOLICITORS,"5,000.00",DISREPAIR,LEGAL FEES & COURT COSTS,5902275543
06.11.2017,ASSET MANAGEMENT,SINCLAIR JOHNSTON & PARTNERS LTD,600,DISREPAIR,BUILDING R&M,5902275551
06.11.2017,ASSET MANAGEMENT,POTTER RAPER AND PARTNERS,"2,253.87",HIP MAJOR WORKS,PROFESSIONAL FEES,5902275591
06.11.2017,ASSET MANAGEMENT,SINCLAIR JOHNSTON & PARTNERS LTD,750,REPAIRS OPERATIONS,BUILDING R&M,5902275556
06.11.2017,ASSET MANAGEMENT,SINCLAIR JOHNSTON & PARTNERS LTD,750,REPAIRS OPERATIONS,BUILDING R&M,5902275597
06.11.2017,ASSET MANAGEMENT,SINCLAIR JOHNSTON & PARTNERS LTD,750,REPAIRS OPERATIONS,BUILDING R&M,5902275609
06.11.2017,CENTRAL FUNCTIONS,BRITISH GAS BUSINESS,"2,721.35",HEATING ACCOUNT,GAS,5902275593
06.11.2017,CENTRAL FUNCTIONS,PRB ESTATES LTD,"87,850.92",LEDBURY ESTATE,OTHER R&M,5902275611
06.11.2017,CHIEF EXECUTIVE,CHARLES DICKENS PRIMARY SCHOOL,360,CAPITAL PS (REGEN),CONSTRUCTION FEES,5902275537
06.11.2017,CHIEF EXECUTIVE,DENIS MCMILLAN,360,CAPITAL PS (REGEN),CONSTRUCTION FEES,5902275612
06.11.2017,CHIEF EXECUTIVE'S OFFICE,BETTER BANKSIDE,"10,000.00",BUSINESS SUPPORT,GRANTS,5902275520
06.11.2017,CHIEF EXECUTIVE'S OFFICE,CONTEMPORARY ART SOCIETY,"3,750.00",HERNE HILL,GRANTS,5902275528
06.11.2017,CHIEF EXECUTIVE'S OFFICE,REDACTED PERSONAL DATA,"4,000.00",HERNE HILL,GRANTS,5902275521
06.11.2017,CHILDREN AND ADULT,BEWLEY CONTRACTS (UK) LTD,"164,264.92",CAPITAL PS (EDUCATION),CONSTRUCTION,2102740439
06.11.2017,CHILDREN AND ADULT,FAITHFUL & GOULD,"2,800.30",CAPITAL PS (EDUCATION),CONSTRUCTION FEES,5902275538
06.11.2017,CHILDREN AND ADULT,FAITHFUL & GOULD,"6,030.30",CAPITAL PS (EDUCATION),CONSTRUCTION FEES,5902275538
06.11.2017,CHILDREN'S SERVICES,KAPLAN FINANCIAL LTD,"-1,190.83",CENTRAL COSTS - SEN,TRAINING,5902275606
06.11.2017,CHILDREN'S SERVICES,KAPLAN FINANCIAL LTD,"1,190.83",CENTRAL COSTS - SEN,TRAINING,5902275605
06.11.2017,CHILDREN'S SERVICES,KAPLAN FINANCIAL LTD,"1,190.83",CENTRAL COSTS - SEN,TRAINING,5902275608
06.11.2017,CHILDREN'S SERVICES,AVOCET SOCIAL CARE LTD,"4,600.00",DISABILITY & HIV,PROFESSIONAL FEES,5902275546
06.11.2017,CHILDREN'S SERVICES,AVOCET SOCIAL CARE LTD,"4,650.00",DISABILITY & HIV,PROFESSIONAL FEES,5902275547
06.11.2017,CHILDREN'S SERVICES,REDACTED PERSONAL DATA,888.12,DISABILITY & HIV,PAYMENTS TO CARERS,2102719935
06.11.2017,CHILDREN'S SERVICES,INTERSERVE HEALTHCARE,374.15,HOME 2 SCHOOL TRANSPORT,AGENCY STAFF,5902274867
06.11.2017,CHILDREN'S SERVICES,REDACTED PERSONAL DATA,560,HOME 2 SCHOOL TRANSPORT,OTHER PAYMENTS FOR CLIENTS,5902275603
06.11.2017,CHILDREN'S SERVICES,JOHN GUEST SAFEGUARDING LIMITED,600,PRIMARY ACHIEVEMENT,CONSULTANTS SERVICES,5902274944
06.11.2017,CHILDREN'S SERVICES,RS REAL ESTATE LTD,"1,050.00",TEMPORARY ACCOMMODATION,EXTERNAL AGENCIES AND BODIES,5902275598
06.11.2017,COMMUNITIES,KEETONS SHELTERED HOUSING,"1,300.00",TENANTS FUND,GRANTS,5902275516
06.11.2017,CUSTOMER EXPERIENCE HGF,SOUTHWARK LAW CENTRE,"18,000.00",HOMELESS & HOUSING OPTIONS MGT,LEGAL FEES & COURT COSTS,5902275542
06.11.2017,CUSTOMER EXPERIENCE HGF,REACH-OUT HOUSING LTD,"1,050.00",HOMELESS PROJECTS,GRANTS,5902275512
06.11.2017,CUSTOMER EXPERIENCE HGF,HAMILTON MERCER TRAINIING LTD,795,WALWORTH MSSP,TRAINING,5902275552
06.11.2017,CUSTOMER EXPERIENCE HGF,HAMILTON MERCER TRAINIING LTD,"6,294.00",WALWORTH MSSP,TRAINING,5902275552
06.11.2017,ENVIRONMENT AND LEISURE,INTO SERVICES LONDON LTD,480,CAPITAL PS (LEISURE),CONST'N MAIN CONTRACT - NON CERTIFICATED,5902275582
06.11.2017,ENVIRONMENT AND LEISURE,PRO-FIT NET INSTALLATIONS LTD,"4,800.00",CAPITAL PS (LEISURE),CONSTRUCTION FEES  - EXTERNAL,5902274915
06.11.2017,ENVIRONMENT AND SOCIAL REGENERATION,LONDON TOOLS LIMITED,435,STORES,CREDITORS -GR/IR CLEARING ACCOUNT,5902275562
06.11.2017,ENVIRONMENT AND SOCIAL REGENERATION,LONDON TOOLS LIMITED,750,STORES,CREDITORS -GR/IR CLEARING ACCOUNT,5902275565
06.11.2017,ENVIRONMENT AND SOCIAL REGENERATION,LONDON TOOLS LIMITED,"1,221.00",STORES,CREDITORS -GR/IR CLEARING ACCOUNT,5902275564
06.11.2017,ENVIRONMENT AND SOCIAL REGENERATION,LONDON TOOLS LIMITED,"1,750.00",STORES,CREDITORS -GR/IR CLEARING ACCOUNT,5902275567
06.11.2017,ENVIRONMENT AND SOCIAL REGENERATION,LONDON TOOLS LIMITED,"2,100.00",STORES,CREDITORS -GR/IR CLEARING ACCOUNT,5902275569
06.11.2017,ENVIRONMENT AND SOCIAL REGENERATION,LONDON TOOLS LIMITED,"3,560.00",STORES,CREDITORS -GR/IR CLEARING ACCOUNT,5902275566
06.11.2017,ENVIRONMENT DIRECTORATE,OFFICE DEPOT UK LTD,291.46,BUSINESS CORE,STATIONERY,5902275553
06.11.2017,ENVIRONMENT DIRECTORATE,IMPERIAL POLYTHENE PRODUCTS LTD,488.8,MANAGEMENT TEAM,MATERIALS,5902275557
06.11.2017,ENVIRONMENT DIRECTORATE,GRADKO INTERNATIONAL LTD,254.5,POLLUTION CONTROL,EQUIPMENT PURCHASE & REPAIR,5902275530
06.11.2017,ENVIRONMENT DIRECTORATE,W M CONSULTANCY (UK) LTD,"6,027.00",S.E.L. ILLEGAL TOBACCO ALLIANCE,PROFESSIONAL FEES,5902275550
06.11.2017,ENVIRONMENT DIRECTORATE,NPOWER LTD,252.27,STREET TRADING A/C,ELECTRICITY,5902275518
06.11.2017,F & C S EXCLUDING CORPORATE BUDGETS,DSI BILLING SERVICES LTD,"1,923.63",ADMINISTRATIVE SUPPORT,POSTAGES,5902275523
06.11.2017,F & C S EXCLUDING CORPORATE BUDGETS,BDO LLP,"21,618.44",INTERNAL AUDIT CONTRACTS,PAYMENTS FOR FINANCIAL SERVICES,5902274914
06.11.2017,F & C S EXCLUDING CORPORATE BUDGETS,BDO LLP,"2,083.33",RISK ADMIN,PROFESSIONAL FEES,5902274675
06.11.2017,HOUSING HRA,BWB CONSULTING LTD,"3,000.00",CAPITAL PS (HRA),CONSTRUCTION FEES  - EXTERNAL,5902275600
06.11.2017,HOUSING HRA,CALFORD SEADEN LLP,"1,175.61",CAPITAL PS (HRA),CONSTRUCTION FEES  - EXTERNAL,5902275595
06.11.2017,HOUSING HRA,ROWAN TECHNOLOGIES LTD,"6,340.00",CAPITAL PS (HRA),CONSTRUCTION FEES  - EXTERNAL,5902275559
06.11.2017,LEISURE DIRECTORATE,KEMP SAILS LTD,992.34,DULWICH AREA TEAM,OTHER R&M,5902275577
06.11.2017,LEISURE DIRECTORATE,BIBLIOTHECA LTD,550,IT DEVELOPMENT,COMMS & COMPUTING CONTRACT CHARGES,5902275525
06.11.2017,LEISURE DIRECTORATE,BIBLIOTHECA LTD,550,IT DEVELOPMENT,COMMS & COMPUTING CONTRACT CHARGES,5902275526
06.11.2017,LEISURE DIRECTORATE,BIBLIOTHECA LTD,739.8,IT DEVELOPMENT,COMMS & COMPUTING CONTRACT CHARGES,5902275524
06.11.2017,LEISURE DIRECTORATE,BIBLIOTHECA LTD,"1,032.75",IT DEVELOPMENT,COMMS & COMPUTING CONTRACT CHARGES,5902275525
06.11.2017,LEISURE DIRECTORATE,BIBLIOTHECA LTD,"1,032.75",IT DEVELOPMENT,COMMS & COMPUTING CONTRACT CHARGES,5902275526
06.11.2017,LEISURE DIRECTORATE,BIBLIOTHECA LTD,"1,300.00",IT DEVELOPMENT,COMMS & COMPUTING CONTRACT CHARGES,5902275524
06.11.2017,LEISURE DIRECTORATE,BIBLIOTHECA LTD,"1,434.38",IT DEVELOPMENT,COMMS & COMPUTING CONTRACT CHARGES,5902275525
06.11.2017,LEISURE DIRECTORATE,BIBLIOTHECA LTD,"1,434.38",IT DEVELOPMENT,COMMS & COMPUTING CONTRACT CHARGES,5902275526
06.11.2017,LEISURE DIRECTORATE,BIBLIOTHECA LTD,"1,495.00",IT DEVELOPMENT,COMMS & COMPUTING CONTRACT CHARGES,5902275525
06.11.2017,LEISURE DIRECTORATE,BIBLIOTHECA LTD,"1,495.00",IT DEVELOPMENT,COMMS & COMPUTING CONTRACT CHARGES,5902275526
06.11.2017,LEISURE DIRECTORATE,BIBLIOTHECA LTD,"4,995.00",IT DEVELOPMENT,COMMS & COMPUTING CONTRACT CHARGES,5902275525
06.11.2017,LEISURE DIRECTORATE,BIBLIOTHECA LTD,"4,995.00",IT DEVELOPMENT,COMMS & COMPUTING CONTRACT CHARGES,5902275526
06.11.2017,LEISURE DIRECTORATE,ARCHITECT DESIGNER MAKER,"2,870.00",SDM BUDGET,EQUIPMENT PURCHASE & REPAIR,5902275585
06.11.2017,MODERNISATION HGF,HALFORDS LTD,"5,800.00",BIKE SCHEME,OTHER EMPLOYEE EXPENSES,5902274905
06.11.2017,MODERNISATION HGF,SODEXHO PASS LTD,742.17,CHILDCARE VOUCHERS,OTHER EMPLOYEE EXPENSES,5902275570
06.11.2017,MODERNISATION HGF,SODEXHO PASS LTD,"24,739.00",CHILDCARE VOUCHERS,OTHER EMPLOYEE EXPENSES,5902275570
06.11.2017,MODERNISATION HGF,SHERRIDAN HUGHES,475,OCCUPATIONAL ASSESSMENT,CONSULTANTS SERVICES,5902274926
06.11.2017,PUBLIC HEALTH,DEBIGNO LTD,583.28,SEXUAL HEALTH - STI,EXTERNAL AGENCIES AND BODIES,5902275314
06.11.2017,REGENERATION,WORKMAN LLP,"1,837.68",7 HOLYROOD STREET,SERVICE CHARGES,2102741480
06.11.2017,REGENERATION,MEANWHILE SPACE CIC,"1,575.00",CANADA WATER,PROFESSIONAL FEES,5902274660
06.11.2017,REGENERATION,RENDALL & RITTNER LTD,"15,340.03",MASTER PLAN-H/WAY & TRANS INTERCHANGE,PROFESSIONAL FEES,5902275583
06.11.2017,RESIDENT SERVICES,VIBRANT ENERGY MATTERS LTD,439.2,ENERGY MANAGEMENT,PROFESSIONAL FEES,5902275555
06.11.2017,RESIDENT SERVICES,CAMBRIDGE HOUSE & TALBOT,"2,500.00",OPERATIONS/OFFICES ACCOMMODATION,LEGAL FEES & COURT COSTS,5902275541
06.11.2017,RESIDENT SERVICES,EDF ENERGY PLC,390.62,OPERATIONS/OFFICES ACCOMMODATION,ELECTRICITY,5902275522
06.11.2017,RESIDENT SERVICES,KENT COUNTY COUNCIL - LASER,"1,625.80",TA HOSTELS,ELECTRICITY,5902275575
07.11.2017,ADULT SOCIAL CARE,BRANDON TRUST,879.06,LD LTS 18-64,RESIDENTIAL CARE,2102741973
07.11.2017,ADULT SOCIAL CARE,HEALTHCARE & TRANSPORT SERVICES,376,LD LTS 18-64,CLIENT TRANSPORT,2102742035
07.11.2017,ADULT SOCIAL CARE,MIHOMECARE LTD,408.48,LD LTS 18-64,HOMECARE - C&V,2102741669
07.11.2017,ADULT SOCIAL CARE,PLUS SERVICES,250.88,LD LTS 18-64,SUPPORTED LIVING,2102742051
07.11.2017,ADULT SOCIAL CARE,TRUECARE HAVEN SUPPORT LTD,"1,370.00",LD LTS 18-64,HOMECARE - SPOT,2102742068
07.11.2017,ADULT SOCIAL CARE,HOUSING & CARE 21,382.72,LD LTS 65+,SUPPORTED LIVING,2102741972
07.11.2017,ADULT SOCIAL CARE,LIFECARE CONSULTING LTD,"1,296.26",LD LTS 65+,HOMECARE - C&V,2102742074
07.11.2017,ADULT SOCIAL CARE,LIFECARE CONSULTING LTD,344.75,MEM LTS 18-64,HOMECARE - SPOT,2102742055
07.11.2017,ADULT SOCIAL CARE,MIHOMECARE LTD,714.84,MEM LTS 18-64,HOMECARE - C&V,2102741637
07.11.2017,ADULT SOCIAL CARE,LIFECARE CONSULTING LTD,262.01,MEM LTS 65+,HOMECARE - SPOT,2102742028
07.11.2017,ADULT SOCIAL CARE,LONDON CARE LTD,"1,235.95",MEM LTS 65+,HOMECARE - C&V,2102742015
07.11.2017,ADULT SOCIAL CARE,MIHOMECARE LTD,255.32,MEM LTS 65+,HOMECARE - C&V,2102741664
07.11.2017,ADULT SOCIAL CARE,MIHOMECARE LTD,487.97,MEM LTS 65+,HOMECARE - C&V,2102741895
07.11.2017,ADULT SOCIAL CARE,MIHOMECARE LTD,527.62,MEM LTS 65+,HOMECARE - C&V,2102741894
07.11.2017,ADULT SOCIAL CARE,MIHOMECARE LTD,680.8,MEM LTS 65+,HOMECARE - C&V,2102741915
07.11.2017,ADULT SOCIAL CARE,MIHOMECARE LTD,680.8,MEM LTS 65+,HOMECARE - C&V,2102741942
07.11.2017,ADULT SOCIAL CARE,MIHOMECARE LTD,697.84,MEM LTS 65+,HOMECARE - C&V,2102741741
07.11.2017,ADULT SOCIAL CARE,MIHOMECARE LTD,851,MEM LTS 65+,HOMECARE - C&V,2102741833
07.11.2017,ADULT SOCIAL CARE,MIHOMECARE LTD,889.3,MEM LTS 65+,HOMECARE - C&V,2102741660
07.11.2017,ADULT SOCIAL CARE,MIHOMECARE LTD,936.12,MEM LTS 65+,HOMECARE - C&V,2102741720
07.11.2017,ADULT SOCIAL CARE,MIHOMECARE LTD,953.12,MEM LTS 65+,HOMECARE - C&V,2102741858
07.11.2017,ADULT SOCIAL CARE,MIHOMECARE LTD,974.41,MEM LTS 65+,HOMECARE - C&V,2102741760
07.11.2017,ADULT SOCIAL CARE,MIHOMECARE LTD,"1,021.20",MEM LTS 65+,HOMECARE - C&V,2102741648
07.11.2017,ADULT SOCIAL CARE,MIHOMECARE LTD,"1,072.28",MEM LTS 65+,HOMECARE - C&V,2102741716
07.11.2017,ADULT SOCIAL CARE,MIHOMECARE LTD,"1,182.89",MEM LTS 65+,HOMECARE - C&V,2102741834
07.11.2017,ADULT SOCIAL CARE,MIHOMECARE LTD,"1,650.94",MEM LTS 65+,HOMECARE - C&V,2102741700
07.11.2017,ADULT SOCIAL CARE,FREEDOM RECOVERY CENTRE,"2,680.00",MH LTS 18-64,PLACEMENTS - REHAB,2102741974
07.11.2017,ADULT SOCIAL CARE,FREEDOM RECOVERY CENTRE,"2,680.00",MH LTS 18-64,PLACEMENTS - REHAB,2102741978
07.11.2017,ADULT SOCIAL CARE,MIHOMECARE LTD,323.4,MH LTS 18-64,HOMECARE - C&V,2102741679
07.11.2017,ADULT SOCIAL CARE,MIHOMECARE LTD,510.6,MH LTS 65+,HOMECARE - C&V,2102741668
07.11.2017,ADULT SOCIAL CARE,MIHOMECARE LTD,714.84,MH LTS 65+,HOMECARE - C&V,2102741640
07.11.2017,ADULT SOCIAL CARE,MIHOMECARE LTD,948.87,MH LTS 65+,HOMECARE - C&V,2102741697
07.11.2017,ADULT SOCIAL CARE,MIHOMECARE LTD,987.16,MH LTS 65+,HOMECARE - C&V,2102741966
07.11.2017,ADULT SOCIAL CARE,HUMBLE HEALTH CARE LTD,459,PHY LTS 18-64,HOMECARE - SPOT,2102742073
07.11.2017,ADULT SOCIAL CARE,HUMBLE HEALTH CARE LTD,715.52,PHY LTS 18-64,HOMECARE - SPOT,2102742031
07.11.2017,ADULT SOCIAL CARE,LONDON CARE LTD,857.3,PHY LTS 18-64,HOMECARE - C&V,2102742012
07.11.2017,ADULT SOCIAL CARE,LONDON CARE LTD,958.78,PHY LTS 18-64,HOMECARE - C&V,2102742005
07.11.2017,ADULT SOCIAL CARE,METRO HOMECARE LTD,"1,497.39",PHY LTS 18-64,HOMECARE - SPOT,2102741989
07.11.2017,ADULT SOCIAL CARE,MIHOMECARE LTD,306.36,PHY LTS 18-64,HOMECARE - C&V,2102741694
07.11.2017,ADULT SOCIAL CARE,MIHOMECARE LTD,323.4,PHY LTS 18-64,HOMECARE - C&V,2102741836
07.11.2017,ADULT SOCIAL CARE,MIHOMECARE LTD,327.65,PHY LTS 18-64,HOMECARE - C&V,2102741661
07.11.2017,ADULT SOCIAL CARE,MIHOMECARE LTD,340.4,PHY LTS 18-64,HOMECARE - C&V,2102741634
07.11.2017,ADULT SOCIAL CARE,MIHOMECARE LTD,357.44,PHY LTS 18-64,HOMECARE - C&V,2102741829
07.11.2017,ADULT SOCIAL CARE,MIHOMECARE LTD,382.95,PHY LTS 18-64,HOMECARE - C&V,2102741900
07.11.2017,ADULT SOCIAL CARE,MIHOMECARE LTD,425.5,PHY LTS 18-64,HOMECARE - C&V,2102741769
07.11.2017,ADULT SOCIAL CARE,MIHOMECARE LTD,425.52,PHY LTS 18-64,HOMECARE - C&V,2102741943
07.11.2017,ADULT SOCIAL CARE,MIHOMECARE LTD,476.56,PHY LTS 18-64,HOMECARE - C&V,2102741748
07.11.2017,ADULT SOCIAL CARE,MIHOMECARE LTD,476.56,PHY LTS 18-64,HOMECARE - C&V,2102741905
07.11.2017,ADULT SOCIAL CARE,MIHOMECARE LTD,493.58,PHY LTS 18-64,HOMECARE - SPOT,2102741698
07.11.2017,ADULT SOCIAL CARE,MIHOMECARE LTD,510.6,PHY LTS 18-64,HOMECARE - C&V,2102741840
07.11.2017,ADULT SOCIAL CARE,MIHOMECARE LTD,527.62,PHY LTS 18-64,HOMECARE - C&V,2102741902
07.11.2017,ADULT SOCIAL CARE,MIHOMECARE LTD,536.14,PHY LTS 18-64,HOMECARE - C&V,2102741926
07.11.2017,ADULT SOCIAL CARE,MIHOMECARE LTD,553.15,PHY LTS 18-64,HOMECARE - C&V,2102741647
07.11.2017,ADULT SOCIAL CARE,MIHOMECARE LTD,561.68,PHY LTS 18-64,HOMECARE - C&V,2102741820
07.11.2017,ADULT SOCIAL CARE,MIHOMECARE LTD,565.93,PHY LTS 18-64,HOMECARE - C&V,2102741821
07.11.2017,ADULT SOCIAL CARE,MIHOMECARE LTD,663.8,PHY LTS 18-64,HOMECARE - C&V,2102741952
07.11.2017,ADULT SOCIAL CARE,MIHOMECARE LTD,697.84,PHY LTS 18-64,HOMECARE - C&V,2102741642
07.11.2017,ADULT SOCIAL CARE,MIHOMECARE LTD,765.92,PHY LTS 18-64,HOMECARE - C&V,2102741713
07.11.2017,ADULT SOCIAL CARE,MIHOMECARE LTD,774.43,PHY LTS 18-64,HOMECARE - C&V,2102741757
07.11.2017,ADULT SOCIAL CARE,MIHOMECARE LTD,799.96,PHY LTS 18-64,HOMECARE - C&V,2102741651
07.11.2017,ADULT SOCIAL CARE,MIHOMECARE LTD,851,PHY LTS 18-64,HOMECARE - C&V,2102741884
07.11.2017,ADULT SOCIAL CARE,MIHOMECARE LTD,868.04,PHY LTS 18-64,HOMECARE - C&V,2102741705
07.11.2017,ADULT SOCIAL CARE,MIHOMECARE LTD,902.06,PHY LTS 18-64,HOMECARE - C&V,2102741927
07.11.2017,ADULT SOCIAL CARE,MIHOMECARE LTD,"1,102.05",PHY LTS 18-64,HOMECARE - C&V,2102741684
07.11.2017,ADULT SOCIAL CARE,MIHOMECARE LTD,"1,123.32",PHY LTS 18-64,HOMECARE - C&V,2102741665
07.11.2017,ADULT SOCIAL CARE,MIHOMECARE LTD,"1,144.61",PHY LTS 18-64,HOMECARE - C&V,2102741646
07.11.2017,ADULT SOCIAL CARE,MIHOMECARE LTD,"1,212.69",PHY LTS 18-64,HOMECARE - C&V,2102741963
07.11.2017,ADULT SOCIAL CARE,MIHOMECARE LTD,"1,293.52",PHY LTS 18-64,HOMECARE - C&V,2102741843
07.11.2017,ADULT SOCIAL CARE,MIHOMECARE LTD,"1,463.74",PHY LTS 18-64,HOMECARE - C&V,2102741923
07.11.2017,ADULT SOCIAL CARE,MIHOMECARE LTD,"1,689.24",PHY LTS 18-64,HOMECARE - C&V,2102741824
07.11.2017,ADULT SOCIAL CARE,PROFAD CARE AGENCY,289.73,PHY LTS 18-64,HOMECARE - SPOT,2102741994
07.11.2017,ADULT SOCIAL CARE,PROFAD CARE AGENCY,"1,248.17",PHY LTS 18-64,HOMECARE - SPOT,2102741997
07.11.2017,ADULT SOCIAL CARE,HUMBLE HEALTH CARE LTD,546.76,PHY LTS 65+,HOMECARE - SPOT,2102742057
07.11.2017,ADULT SOCIAL CARE,LIFECARE CONSULTING LTD,272.35,PHY LTS 65+,HOMECARE - SPOT,2102742069
07.11.2017,ADULT SOCIAL CARE,LIFECARE CONSULTING LTD,434.39,PHY LTS 65+,HOMECARE - SPOT,2102742067
07.11.2017,ADULT SOCIAL CARE,LIFECARE CONSULTING LTD,461.97,PHY LTS 65+,HOMECARE - C&V,2102742039
07.11.2017,ADULT SOCIAL CARE,LIFECARE CONSULTING LTD,461.97,PHY LTS 65+,HOMECARE - SPOT,2102742049
07.11.2017,ADULT SOCIAL CARE,LIFECARE CONSULTING LTD,548.15,PHY LTS 65+,HOMECARE - SPOT,2102742050
07.11.2017,ADULT SOCIAL CARE,LIFECARE CONSULTING LTD,579.18,PHY LTS 65+,HOMECARE - SPOT,2102742080
07.11.2017,ADULT SOCIAL CARE,LIFECARE CONSULTING LTD,689.5,PHY LTS 65+,HOMECARE - SPOT,2102742022
07.11.2017,ADULT SOCIAL CARE,LIFECARE CONSULTING LTD,737.77,PHY LTS 65+,HOMECARE - SPOT,2102742034
07.11.2017,ADULT SOCIAL CARE,LONDON CARE LTD,273.16,PHY LTS 65+,HOMECARE - C&V,2102742010
07.11.2017,ADULT SOCIAL CARE,LONDON CARE LTD,453.87,PHY LTS 65+,HOMECARE - C&V,2102742006
07.11.2017,ADULT SOCIAL CARE,LONDON CARE LTD,680.94,PHY LTS 65+,HOMECARE - C&V,2102742008
07.11.2017,ADULT SOCIAL CARE,LONDON CARE LTD,792.48,PHY LTS 65+,HOMECARE - C&V,2102742011
07.11.2017,ADULT SOCIAL CARE,LONDON CARE LTD,890.92,PHY LTS 65+,HOMECARE - C&V,2102742014
07.11.2017,ADULT SOCIAL CARE,LONDON CARE LTD,940.18,PHY LTS 65+,HOMECARE - C&V,2102742007
07.11.2017,ADULT SOCIAL CARE,MEDACS HOMECARE,997.05,PHY LTS 65+,HOMECARE - SPOT,2102741996
07.11.2017,ADULT SOCIAL CARE,METRO HOMECARE LTD,303.38,PHY LTS 65+,HOMECARE - SPOT,2102742000
07.11.2017,ADULT SOCIAL CARE,METRO HOMECARE LTD,441.28,PHY LTS 65+,HOMECARE - SPOT,2102741971
07.11.2017,ADULT SOCIAL CARE,METRO HOMECARE LTD,"1,089.41",PHY LTS 65+,HOMECARE - SPOT,2102741991
07.11.2017,ADULT SOCIAL CARE,MIHOMECARE LTD,255.31,PHY LTS 65+,HOMECARE - C&V,2102741784
07.11.2017,ADULT SOCIAL CARE,MIHOMECARE LTD,255.32,PHY LTS 65+,HOMECARE - C&V,2102741739
07.11.2017,ADULT SOCIAL CARE,MIHOMECARE LTD,255.32,PHY LTS 65+,HOMECARE - C&V,2102741763
07.11.2017,ADULT SOCIAL CARE,MIHOMECARE LTD,255.32,PHY LTS 65+,HOMECARE - C&V,2102741803
07.11.2017,ADULT SOCIAL CARE,MIHOMECARE LTD,263.81,PHY LTS 65+,HOMECARE - C&V,2102741809
07.11.2017,ADULT SOCIAL CARE,MIHOMECARE LTD,272.32,PHY LTS 65+,HOMECARE - C&V,2102741628
07.11.2017,ADULT SOCIAL CARE,MIHOMECARE LTD,272.32,PHY LTS 65+,HOMECARE - C&V,2102741761
07.11.2017,ADULT SOCIAL CARE,MIHOMECARE LTD,272.32,PHY LTS 65+,HOMECARE - C&V,2102741854
07.11.2017,ADULT SOCIAL CARE,MIHOMECARE LTD,289.34,PHY LTS 65+,HOMECARE - C&V,2102741899
07.11.2017,ADULT SOCIAL CARE,MIHOMECARE LTD,289.36,PHY LTS 65+,HOMECARE - C&V,2102741682
07.11.2017,ADULT SOCIAL CARE,MIHOMECARE LTD,289.36,PHY LTS 65+,HOMECARE - C&V,2102741837
07.11.2017,ADULT SOCIAL CARE,MIHOMECARE LTD,293.6,PHY LTS 65+,HOMECARE - C&V,2102741685
07.11.2017,ADULT SOCIAL CARE,MIHOMECARE LTD,299.21,PHY LTS 65+,HOMECARE - C&V,2102741861
07.11.2017,ADULT SOCIAL CARE,MIHOMECARE LTD,306.36,PHY LTS 65+,HOMECARE - C&V,2102741695
07.11.2017,ADULT SOCIAL CARE,MIHOMECARE LTD,306.36,PHY LTS 65+,HOMECARE - C&V,2102741948
07.11.2017,ADULT SOCIAL CARE,MIHOMECARE LTD,306.38,PHY LTS 65+,HOMECARE - C&V,2102741709
07.11.2017,ADULT SOCIAL CARE,MIHOMECARE LTD,306.38,PHY LTS 65+,HOMECARE - C&V,2102741906
07.11.2017,ADULT SOCIAL CARE,MIHOMECARE LTD,323.38,PHY LTS 65+,HOMECARE - C&V,2102741742
07.11.2017,ADULT SOCIAL CARE,MIHOMECARE LTD,331.9,PHY LTS 65+,HOMECARE - C&V,2102741768
07.11.2017,ADULT SOCIAL CARE,MIHOMECARE LTD,336.15,PHY LTS 65+,HOMECARE - C&V,2102741722
07.11.2017,ADULT SOCIAL CARE,MIHOMECARE LTD,340.4,PHY LTS 65+,HOMECARE - C&V,2102741765
07.11.2017,ADULT SOCIAL CARE,MIHOMECARE LTD,344.67,PHY LTS 65+,HOMECARE - C&V,2102741817
07.11.2017,ADULT SOCIAL CARE,MIHOMECARE LTD,353.18,PHY LTS 65+,HOMECARE - C&V,2102741632
07.11.2017,ADULT SOCIAL CARE,MIHOMECARE LTD,357.44,PHY LTS 65+,HOMECARE - C&V,2102741703
07.11.2017,ADULT SOCIAL CARE,MIHOMECARE LTD,357.44,PHY LTS 65+,HOMECARE - C&V,2102741708
07.11.2017,ADULT SOCIAL CARE,MIHOMECARE LTD,357.44,PHY LTS 65+,HOMECARE - C&V,2102741714
07.11.2017,ADULT SOCIAL CARE,MIHOMECARE LTD,357.44,PHY LTS 65+,HOMECARE - C&V,2102741721
07.11.2017,ADULT SOCIAL CARE,MIHOMECARE LTD,357.44,PHY LTS 65+,HOMECARE - C&V,2102741762
07.11.2017,ADULT SOCIAL CARE,MIHOMECARE LTD,357.44,PHY LTS 65+,HOMECARE - C&V,2102741773
07.11.2017,ADULT SOCIAL CARE,MIHOMECARE LTD,357.44,PHY LTS 65+,HOMECARE - C&V,2102741805
07.11.2017,ADULT SOCIAL CARE,MIHOMECARE LTD,374.44,PHY LTS 65+,HOMECARE - C&V,2102741812
07.11.2017,ADULT SOCIAL CARE,MIHOMECARE LTD,374.44,PHY LTS 65+,HOMECARE - C&V,2102741886
07.11.2017,ADULT SOCIAL CARE,MIHOMECARE LTD,374.44,PHY LTS 65+,HOMECARE - C&V,2102741919
07.11.2017,ADULT SOCIAL CARE,MIHOMECARE LTD,374.44,PHY LTS 65+,HOMECARE - C&V,2102741931
07.11.2017,ADULT SOCIAL CARE,MIHOMECARE LTD,408.48,PHY LTS 65+,HOMECARE - C&V,2102741658
07.11.2017,ADULT SOCIAL CARE,MIHOMECARE LTD,408.48,PHY LTS 65+,HOMECARE - C&V,2102741687
07.11.2017,ADULT SOCIAL CARE,MIHOMECARE LTD,408.48,PHY LTS 65+,HOMECARE - C&V,2102741701
07.11.2017,ADULT SOCIAL CARE,MIHOMECARE LTD,408.48,PHY LTS 65+,HOMECARE - C&V,2102741830
07.11.2017,ADULT SOCIAL CARE,MIHOMECARE LTD,425.52,PHY LTS 65+,HOMECARE - C&V,2102741631
07.11.2017,ADULT SOCIAL CARE,MIHOMECARE LTD,425.52,PHY LTS 65+,HOMECARE - C&V,2102741678
07.11.2017,ADULT SOCIAL CARE,MIHOMECARE LTD,425.52,PHY LTS 65+,HOMECARE - C&V,2102741715
07.11.2017,ADULT SOCIAL CARE,MIHOMECARE LTD,425.52,PHY LTS 65+,HOMECARE - C&V,2102741930
07.11.2017,ADULT SOCIAL CARE,MIHOMECARE LTD,425.52,PHY LTS 65+,HOMECARE - C&V,2102741937
07.11.2017,ADULT SOCIAL CARE,MIHOMECARE LTD,442.52,PHY LTS 65+,HOMECARE - C&V,2102741693
07.11.2017,ADULT SOCIAL CARE,MIHOMECARE LTD,446.79,PHY LTS 65+,HOMECARE - C&V,2102741674
07.11.2017,ADULT SOCIAL CARE,MIHOMECARE LTD,451.03,PHY LTS 65+,HOMECARE - C&V,2102741764
07.11.2017,ADULT SOCIAL CARE,MIHOMECARE LTD,455.29,PHY LTS 65+,HOMECARE - C&V,2102741870
07.11.2017,ADULT SOCIAL CARE,MIHOMECARE LTD,459.56,PHY LTS 65+,HOMECARE - C&V,2102741949
07.11.2017,ADULT SOCIAL CARE,MIHOMECARE LTD,476.56,PHY LTS 65+,HOMECARE - C&V,2102741629
07.11.2017,ADULT SOCIAL CARE,MIHOMECARE LTD,476.56,PHY LTS 65+,HOMECARE - C&V,2102741875
07.11.2017,ADULT SOCIAL CARE,MIHOMECARE LTD,476.56,PHY LTS 65+,HOMECARE - C&V,2102741903
07.11.2017,ADULT SOCIAL CARE,MIHOMECARE LTD,493.58,PHY LTS 65+,HOMECARE - C&V,2102741873
07.11.2017,ADULT SOCIAL CARE,MIHOMECARE LTD,493.59,PHY LTS 65+,HOMECARE - C&V,2102741885
07.11.2017,ADULT SOCIAL CARE,MIHOMECARE LTD,493.6,PHY LTS 65+,HOMECARE - C&V,2102741878
07.11.2017,ADULT SOCIAL CARE,MIHOMECARE LTD,502.09,PHY LTS 65+,HOMECARE - C&V,2102741677
07.11.2017,ADULT SOCIAL CARE,MIHOMECARE LTD,510.6,PHY LTS 65+,HOMECARE - C&V,2102741838
07.11.2017,ADULT SOCIAL CARE,MIHOMECARE LTD,510.6,PHY LTS 65+,HOMECARE - C&V,2102741848
07.11.2017,ADULT SOCIAL CARE,MIHOMECARE LTD,523.38,PHY LTS 65+,HOMECARE - C&V,2102741772
07.11.2017,ADULT SOCIAL CARE,MIHOMECARE LTD,527.64,PHY LTS 65+,HOMECARE - C&V,2102741826
07.11.2017,ADULT SOCIAL CARE,MIHOMECARE LTD,544.64,PHY LTS 65+,HOMECARE - C&V,2102741655
07.11.2017,ADULT SOCIAL CARE,MIHOMECARE LTD,561.68,PHY LTS 65+,HOMECARE - C&V,2102741622
07.11.2017,ADULT SOCIAL CARE,MIHOMECARE LTD,570.17,PHY LTS 65+,HOMECARE - C&V,2102741759
07.11.2017,ADULT SOCIAL CARE,MIHOMECARE LTD,587.21,PHY LTS 65+,HOMECARE - C&V,2102741652
07.11.2017,ADULT SOCIAL CARE,MIHOMECARE LTD,595.71,PHY LTS 65+,HOMECARE - C&V,2102741745
07.11.2017,ADULT SOCIAL CARE,MIHOMECARE LTD,595.72,PHY LTS 65+,HOMECARE - C&V,2102741711
07.11.2017,ADULT SOCIAL CARE,MIHOMECARE LTD,595.72,PHY LTS 65+,HOMECARE - C&V,2102741790
07.11.2017,ADULT SOCIAL CARE,MIHOMECARE LTD,595.72,PHY LTS 65+,HOMECARE - C&V,2102741823
07.11.2017,ADULT SOCIAL CARE,MIHOMECARE LTD,595.72,PHY LTS 65+,HOMECARE - C&V,2102741872
07.11.2017,ADULT SOCIAL CARE,MIHOMECARE LTD,595.72,PHY LTS 65+,HOMECARE - C&V,2102741880
07.11.2017,ADULT SOCIAL CARE,MIHOMECARE LTD,595.72,PHY LTS 65+,HOMECARE - C&V,2102741938
07.11.2017,ADULT SOCIAL CARE,MIHOMECARE LTD,604.23,PHY LTS 65+,HOMECARE - C&V,2102741800
07.11.2017,ADULT SOCIAL CARE,MIHOMECARE LTD,612.72,PHY LTS 65+,HOMECARE - C&V,2102741728
07.11.2017,ADULT SOCIAL CARE,MIHOMECARE LTD,612.72,PHY LTS 65+,HOMECARE - C&V,2102741734
07.11.2017,ADULT SOCIAL CARE,MIHOMECARE LTD,629.74,PHY LTS 65+,HOMECARE - C&V,2102741645
07.11.2017,ADULT SOCIAL CARE,MIHOMECARE LTD,629.76,PHY LTS 65+,HOMECARE - C&V,2102741785
07.11.2017,ADULT SOCIAL CARE,MIHOMECARE LTD,638.27,PHY LTS 65+,HOMECARE - C&V,2102741808
07.11.2017,ADULT SOCIAL CARE,MIHOMECARE LTD,646.76,PHY LTS 65+,HOMECARE - C&V,2102741663
07.11.2017,ADULT SOCIAL CARE,MIHOMECARE LTD,646.78,PHY LTS 65+,HOMECARE - C&V,2102741828
07.11.2017,ADULT SOCIAL CARE,MIHOMECARE LTD,651.02,PHY LTS 65+,HOMECARE - C&V,2102741712
07.11.2017,ADULT SOCIAL CARE,MIHOMECARE LTD,663.8,PHY LTS 65+,HOMECARE - C&V,2102741623
07.11.2017,ADULT SOCIAL CARE,MIHOMECARE LTD,663.8,PHY LTS 65+,HOMECARE - C&V,2102741781
07.11.2017,ADULT SOCIAL CARE,MIHOMECARE LTD,663.8,PHY LTS 65+,HOMECARE - C&V,2102741896
07.11.2017,ADULT SOCIAL CARE,MIHOMECARE LTD,676.56,PHY LTS 65+,HOMECARE - C&V,2102741967
07.11.2017,ADULT SOCIAL CARE,MIHOMECARE LTD,685.07,PHY LTS 65+,HOMECARE - C&V,2102741844
07.11.2017,ADULT SOCIAL CARE,MIHOMECARE LTD,689.31,PHY LTS 65+,HOMECARE - C&V,2102741727
07.11.2017,ADULT SOCIAL CARE,MIHOMECARE LTD,689.31,PHY LTS 65+,HOMECARE - C&V,2102741842
07.11.2017,ADULT SOCIAL CARE,MIHOMECARE LTD,689.32,PHY LTS 65+,HOMECARE - C&V,2102741707
07.11.2017,ADULT SOCIAL CARE,MIHOMECARE LTD,689.32,PHY LTS 65+,HOMECARE - C&V,2102741877
07.11.2017,ADULT SOCIAL CARE,MIHOMECARE LTD,693.58,PHY LTS 65+,HOMECARE - C&V,2102741771
07.11.2017,ADULT SOCIAL CARE,MIHOMECARE LTD,693.58,PHY LTS 65+,HOMECARE - C&V,2102741776
07.11.2017,ADULT SOCIAL CARE,MIHOMECARE LTD,697.84,PHY LTS 65+,HOMECARE - C&V,2102741626
07.11.2017,ADULT SOCIAL CARE,MIHOMECARE LTD,697.84,PHY LTS 65+,HOMECARE - C&V,2102741936
07.11.2017,ADULT SOCIAL CARE,MIHOMECARE LTD,706.33,PHY LTS 65+,HOMECARE - C&V,2102741625
07.11.2017,ADULT SOCIAL CARE,MIHOMECARE LTD,706.34,PHY LTS 65+,HOMECARE - C&V,2102741689
07.11.2017,ADULT SOCIAL CARE,MIHOMECARE LTD,714.84,PHY LTS 65+,HOMECARE - C&V,2102741641
07.11.2017,ADULT SOCIAL CARE,MIHOMECARE LTD,714.84,PHY LTS 65+,HOMECARE - C&V,2102741657
07.11.2017,ADULT SOCIAL CARE,MIHOMECARE LTD,714.84,PHY LTS 65+,HOMECARE - C&V,2102741798
07.11.2017,ADULT SOCIAL CARE,MIHOMECARE LTD,714.86,PHY LTS 65+,HOMECARE - C&V,2102741649
07.11.2017,ADULT SOCIAL CARE,MIHOMECARE LTD,719.1,PHY LTS 65+,HOMECARE - C&V,2102741758
07.11.2017,ADULT SOCIAL CARE,MIHOMECARE LTD,731.88,PHY LTS 65+,HOMECARE - C&V,2102741671
07.11.2017,ADULT SOCIAL CARE,MIHOMECARE LTD,731.88,PHY LTS 65+,HOMECARE - C&V,2102741839
07.11.2017,ADULT SOCIAL CARE,MIHOMECARE LTD,748.88,PHY LTS 65+,HOMECARE - SPOT,2102741732
07.11.2017,ADULT SOCIAL CARE,MIHOMECARE LTD,765.9,PHY LTS 65+,HOMECARE - C&V,2102741957
07.11.2017,ADULT SOCIAL CARE,MIHOMECARE LTD,765.92,PHY LTS 65+,HOMECARE - C&V,2102741862
07.11.2017,ADULT SOCIAL CARE,MIHOMECARE LTD,770.17,PHY LTS 65+,HOMECARE - C&V,2102741783
07.11.2017,ADULT SOCIAL CARE,MIHOMECARE LTD,782.92,PHY LTS 65+,HOMECARE - C&V,2102741797
07.11.2017,ADULT SOCIAL CARE,MIHOMECARE LTD,791.43,PHY LTS 65+,HOMECARE - C&V,2102741864
07.11.2017,ADULT SOCIAL CARE,MIHOMECARE LTD,808.45,PHY LTS 65+,HOMECARE - C&V,2102741656
07.11.2017,ADULT SOCIAL CARE,MIHOMECARE LTD,816.96,PHY LTS 65+,HOMECARE - C&V,2102741969
07.11.2017,ADULT SOCIAL CARE,MIHOMECARE LTD,816.98,PHY LTS 65+,HOMECARE - C&V,2102741767
07.11.2017,ADULT SOCIAL CARE,MIHOMECARE LTD,816.98,PHY LTS 65+,HOMECARE - C&V,2102741888
07.11.2017,ADULT SOCIAL CARE,MIHOMECARE LTD,825.49,PHY LTS 65+,HOMECARE - C&V,2102741825
07.11.2017,ADULT SOCIAL CARE,MIHOMECARE LTD,825.49,PHY LTS 65+,HOMECARE - C&V,2102741958
07.11.2017,ADULT SOCIAL CARE,MIHOMECARE LTD,834,PHY LTS 65+,HOMECARE - C&V,2102741686
07.11.2017,ADULT SOCIAL CARE,MIHOMECARE LTD,834,PHY LTS 65+,HOMECARE - C&V,2102741726
07.11.2017,ADULT SOCIAL CARE,MIHOMECARE LTD,834,PHY LTS 65+,HOMECARE - C&V,2102741746
07.11.2017,ADULT SOCIAL CARE,MIHOMECARE LTD,834,PHY LTS 65+,HOMECARE - C&V,2102741793
07.11.2017,ADULT SOCIAL CARE,MIHOMECARE LTD,834,PHY LTS 65+,HOMECARE - C&V,2102741863
07.11.2017,ADULT SOCIAL CARE,MIHOMECARE LTD,834,PHY LTS 65+,HOMECARE - C&V,2102741865
07.11.2017,ADULT SOCIAL CARE,MIHOMECARE LTD,834,PHY LTS 65+,HOMECARE - C&V,2102741887
07.11.2017,ADULT SOCIAL CARE,MIHOMECARE LTD,834,PHY LTS 65+,HOMECARE - C&V,2102741922
07.11.2017,ADULT SOCIAL CARE,MIHOMECARE LTD,834,PHY LTS 65+,HOMECARE - C&V,2102741934
07.11.2017,ADULT SOCIAL CARE,MIHOMECARE LTD,834,PHY LTS 65+,HOMECARE - C&V,2102741939
07.11.2017,ADULT SOCIAL CARE,MIHOMECARE LTD,838.24,PHY LTS 65+,HOMECARE - C&V,2102741925
07.11.2017,ADULT SOCIAL CARE,MIHOMECARE LTD,838.25,PHY LTS 65+,HOMECARE - C&V,2102741881
07.11.2017,ADULT SOCIAL CARE,MIHOMECARE LTD,842.5,PHY LTS 65+,HOMECARE - C&V,2102741654
07.11.2017,ADULT SOCIAL CARE,MIHOMECARE LTD,851,PHY LTS 65+,HOMECARE - C&V,2102741724
07.11.2017,ADULT SOCIAL CARE,MIHOMECARE LTD,851,PHY LTS 65+,HOMECARE - C&V,2102741740
07.11.2017,ADULT SOCIAL CARE,MIHOMECARE LTD,868.04,PHY LTS 65+,HOMECARE - C&V,2102741813
07.11.2017,ADULT SOCIAL CARE,MIHOMECARE LTD,868.04,PHY LTS 65+,HOMECARE - C&V,2102741907
07.11.2017,ADULT SOCIAL CARE,MIHOMECARE LTD,885.04,PHY LTS 65+,HOMECARE - C&V,2102741725
07.11.2017,ADULT SOCIAL CARE,MIHOMECARE LTD,885.04,PHY LTS 65+,HOMECARE - C&V,2102741777
07.11.2017,ADULT SOCIAL CARE,MIHOMECARE LTD,885.04,PHY LTS 65+,HOMECARE - C&V,2102741822
07.11.2017,ADULT SOCIAL CARE,MIHOMECARE LTD,914.84,PHY LTS 65+,HOMECARE - C&V,2102741718
07.11.2017,ADULT SOCIAL CARE,MIHOMECARE LTD,919.08,PHY LTS 65+,HOMECARE - C&V,2102741676
07.11.2017,ADULT SOCIAL CARE,MIHOMECARE LTD,927.6,PHY LTS 65+,HOMECARE - C&V,2102741801
07.11.2017,ADULT SOCIAL CARE,MIHOMECARE LTD,936.12,PHY LTS 65+,HOMECARE - C&V,2102741673
07.11.2017,ADULT SOCIAL CARE,MIHOMECARE LTD,936.12,PHY LTS 65+,HOMECARE - C&V,2102741719
07.11.2017,ADULT SOCIAL CARE,MIHOMECARE LTD,936.12,PHY LTS 65+,HOMECARE - C&V,2102741856
07.11.2017,ADULT SOCIAL CARE,MIHOMECARE LTD,940.36,PHY LTS 65+,HOMECARE - C&V,2102741882
07.11.2017,ADULT SOCIAL CARE,MIHOMECARE LTD,953.12,PHY LTS 65+,HOMECARE - C&V,2102741774
07.11.2017,ADULT SOCIAL CARE,MIHOMECARE LTD,953.12,PHY LTS 65+,HOMECARE - C&V,2102741831
07.11.2017,ADULT SOCIAL CARE,MIHOMECARE LTD,953.12,PHY LTS 65+,HOMECARE - C&V,2102741889
07.11.2017,ADULT SOCIAL CARE,MIHOMECARE LTD,953.14,PHY LTS 65+,HOMECARE - SPOT,2102741852
07.11.2017,ADULT SOCIAL CARE,MIHOMECARE LTD,961.65,PHY LTS 65+,HOMECARE - C&V,2102741667
07.11.2017,ADULT SOCIAL CARE,MIHOMECARE LTD,965.9,PHY LTS 65+,HOMECARE - C&V,2102741918
07.11.2017,ADULT SOCIAL CARE,MIHOMECARE LTD,970.14,PHY LTS 65+,HOMECARE - C&V,2102741933
07.11.2017,ADULT SOCIAL CARE,MIHOMECARE LTD,970.16,PHY LTS 65+,HOMECARE - C&V,2102741643
07.11.2017,ADULT SOCIAL CARE,MIHOMECARE LTD,978.65,PHY LTS 65+,HOMECARE - C&V,2102741932
07.11.2017,ADULT SOCIAL CARE,MIHOMECARE LTD,987.16,PHY LTS 65+,HOMECARE - C&V,2102741752
07.11.2017,ADULT SOCIAL CARE,MIHOMECARE LTD,"1,004.19",PHY LTS 65+,HOMECARE - C&V,2102741950
07.11.2017,ADULT SOCIAL CARE,MIHOMECARE LTD,"1,033.98",PHY LTS 65+,HOMECARE - C&V,2102741737
07.11.2017,ADULT SOCIAL CARE,MIHOMECARE LTD,"1,046.75",PHY LTS 65+,HOMECARE - C&V,2102741691
07.11.2017,ADULT SOCIAL CARE,MIHOMECARE LTD,"1,055.24",PHY LTS 65+,HOMECARE - C&V,2102741650
07.11.2017,ADULT SOCIAL CARE,MIHOMECARE LTD,"1,055.24",PHY LTS 65+,HOMECARE - C&V,2102741780
07.11.2017,ADULT SOCIAL CARE,MIHOMECARE LTD,"1,055.24",PHY LTS 65+,HOMECARE - C&V,2102741947
07.11.2017,ADULT SOCIAL CARE,MIHOMECARE LTD,"1,055.25",PHY LTS 65+,HOMECARE - C&V,2102741908
07.11.2017,ADULT SOCIAL CARE,MIHOMECARE LTD,"1,063.75",PHY LTS 65+,HOMECARE - C&V,2102741847
07.11.2017,ADULT SOCIAL CARE,MIHOMECARE LTD,"1,063.77",PHY LTS 65+,HOMECARE - C&V,2102741766
07.11.2017,ADULT SOCIAL CARE,MIHOMECARE LTD,"1,072.28",PHY LTS 65+,HOMECARE - C&V,2102741738
07.11.2017,ADULT SOCIAL CARE,MIHOMECARE LTD,"1,072.28",PHY LTS 65+,HOMECARE - C&V,2102741794
07.11.2017,ADULT SOCIAL CARE,MIHOMECARE LTD,"1,085.03",PHY LTS 65+,HOMECARE - C&V,2102741874
07.11.2017,ADULT SOCIAL CARE,MIHOMECARE LTD,"1,089.28",PHY LTS 65+,HOMECARE - C&V,2102741723
07.11.2017,ADULT SOCIAL CARE,MIHOMECARE LTD,"1,089.28",PHY LTS 65+,HOMECARE - C&V,2102741857
07.11.2017,ADULT SOCIAL CARE,MIHOMECARE LTD,"1,102.05",PHY LTS 65+,HOMECARE - C&V,2102741636
07.11.2017,ADULT SOCIAL CARE,MIHOMECARE LTD,"1,106.32",PHY LTS 65+,HOMECARE - C&V,2102741753
07.11.2017,ADULT SOCIAL CARE,MIHOMECARE LTD,"1,106.32",PHY LTS 65+,HOMECARE - C&V,2102741810
07.11.2017,ADULT SOCIAL CARE,MIHOMECARE LTD,"1,123.32",PHY LTS 65+,HOMECARE - C&V,2102741754
07.11.2017,ADULT SOCIAL CARE,MIHOMECARE LTD,"1,131.83",PHY LTS 65+,HOMECARE - C&V,2102741633
07.11.2017,ADULT SOCIAL CARE,MIHOMECARE LTD,"1,136.10",PHY LTS 65+,HOMECARE - C&V,2102741675
07.11.2017,ADULT SOCIAL CARE,MIHOMECARE LTD,"1,140.36",PHY LTS 65+,HOMECARE - C&V,2102741653
07.11.2017,ADULT SOCIAL CARE,MIHOMECARE LTD,"1,140.36",PHY LTS 65+,HOMECARE - C&V,2102741729
07.11.2017,ADULT SOCIAL CARE,MIHOMECARE LTD,"1,148.86",PHY LTS 65+,HOMECARE - C&V,2102741911
07.11.2017,ADULT SOCIAL CARE,MIHOMECARE LTD,"1,171.49",PHY LTS 65+,HOMECARE - C&V,2102741855
07.11.2017,ADULT SOCIAL CARE,MIHOMECARE LTD,"1,191.40",PHY LTS 65+,HOMECARE - C&V,2102741627
07.11.2017,ADULT SOCIAL CARE,MIHOMECARE LTD,"1,191.40",PHY LTS 65+,HOMECARE - C&V,2102741659
07.11.2017,ADULT SOCIAL CARE,MIHOMECARE LTD,"1,191.40",PHY LTS 65+,HOMECARE - C&V,2102741787
07.11.2017,ADULT SOCIAL CARE,MIHOMECARE LTD,"1,191.40",PHY LTS 65+,HOMECARE - C&V,2102741929
07.11.2017,ADULT SOCIAL CARE,MIHOMECARE LTD,"1,225.44",PHY LTS 65+,HOMECARE - C&V,2102741670
07.11.2017,ADULT SOCIAL CARE,MIHOMECARE LTD,"1,250.99",PHY LTS 65+,HOMECARE - C&V,2102741704
07.11.2017,ADULT SOCIAL CARE,MIHOMECARE LTD,"1,259.48",PHY LTS 65+,HOMECARE - C&V,2102741968
07.11.2017,ADULT SOCIAL CARE,MIHOMECARE LTD,"1,276.52",PHY LTS 65+,HOMECARE - C&V,2102741688
07.11.2017,ADULT SOCIAL CARE,MIHOMECARE LTD,"1,276.52",PHY LTS 65+,HOMECARE - SPOT,2102741816
07.11.2017,ADULT SOCIAL CARE,MIHOMECARE LTD,"1,293.52",PHY LTS 65+,HOMECARE - C&V,2102741799
07.11.2017,ADULT SOCIAL CARE,MIHOMECARE LTD,"1,344.58",PHY LTS 65+,HOMECARE - C&V,2102741879
07.11.2017,ADULT SOCIAL CARE,MIHOMECARE LTD,"1,357.36",PHY LTS 65+,HOMECARE - C&V,2102741736
07.11.2017,ADULT SOCIAL CARE,MIHOMECARE LTD,"1,425.43",PHY LTS 65+,HOMECARE - C&V,2102741690
07.11.2017,ADULT SOCIAL CARE,MIHOMECARE LTD,"1,429.68",PHY LTS 65+,HOMECARE - C&V,2102741804
07.11.2017,ADULT SOCIAL CARE,MIHOMECARE LTD,"1,438.19",PHY LTS 65+,HOMECARE - C&V,2102741845
07.11.2017,ADULT SOCIAL CARE,MIHOMECARE LTD,"1,497.76",PHY LTS 65+,HOMECARE - C&V,2102741710
07.11.2017,ADULT SOCIAL CARE,MIHOMECARE LTD,"1,514.80",PHY LTS 65+,HOMECARE - C&V,2102741811
07.11.2017,ADULT SOCIAL CARE,MIHOMECARE LTD,"1,544.58",PHY LTS 65+,HOMECARE - C&V,2102741851
07.11.2017,ADULT SOCIAL CARE,MIHOMECARE LTD,"1,582.88",PHY LTS 65+,HOMECARE - C&V,2102741953
07.11.2017,ADULT SOCIAL CARE,MIHOMECARE LTD,"1,897.73",PHY LTS 65+,HOMECARE - C&V,2102741814
07.11.2017,ADULT SOCIAL CARE,MIHOMECARE LTD,"1,940.30",PHY LTS 65+,HOMECARE - C&V,2102741744
07.11.2017,ADULT SOCIAL CARE,MIHOMECARE LTD,"1,995.60",PHY LTS 65+,HOMECARE - C&V,2102741770
07.11.2017,ADULT SOCIAL CARE,MIHOMECARE LTD,"2,119.00",PHY LTS 65+,HOMECARE - C&V,2102741954
07.11.2017,ADULT SOCIAL CARE,MIHOMECARE LTD,"2,144.52",PHY LTS 65+,HOMECARE - C&V,2102741702
07.11.2017,ADULT SOCIAL CARE,MIHOMECARE LTD,"2,144.52",PHY LTS 65+,HOMECARE - C&V,2102741910
07.11.2017,ADULT SOCIAL CARE,MIHOMECARE LTD,"2,144.52",PHY LTS 65+,HOMECARE - C&V,2102741959
07.11.2017,ADULT SOCIAL CARE,MIHOMECARE LTD,"2,178.56",PHY LTS 65+,HOMECARE - C&V,2102741735
07.11.2017,ADULT SOCIAL CARE,MIHOMECARE LTD,"2,182.82",PHY LTS 65+,HOMECARE - C&V,2102741868
07.11.2017,ADULT SOCIAL CARE,MIHOMECARE LTD,"2,204.09",PHY LTS 65+,HOMECARE - C&V,2102741866
07.11.2017,ADULT SOCIAL CARE,MIHOMECARE LTD,"2,246.64",PHY LTS 65+,HOMECARE - C&V,2102741946
07.11.2017,ADULT SOCIAL CARE,MIHOMECARE LTD,"2,310.47",PHY LTS 65+,HOMECARE - C&V,2102741962
07.11.2017,ADULT SOCIAL CARE,MIHOMECARE LTD,"2,353.02",PHY LTS 65+,HOMECARE - C&V,2102741680
07.11.2017,ADULT SOCIAL CARE,MIHOMECARE LTD,"2,365.80",PHY LTS 65+,HOMECARE - C&V,2102741733
07.11.2017,ADULT SOCIAL CARE,MIHOMECARE LTD,"2,374.29",PHY LTS 65+,HOMECARE - C&V,2102741621
07.11.2017,ADULT SOCIAL CARE,MIHOMECARE LTD,"2,374.29",PHY LTS 65+,HOMECARE - C&V,2102741792
07.11.2017,ADULT SOCIAL CARE,MIHOMECARE LTD,"2,374.29",PHY LTS 65+,HOMECARE - C&V,2102741892
07.11.2017,ADULT SOCIAL CARE,MIHOMECARE LTD,"2,382.80",PHY LTS 65+,HOMECARE - C&V,2102741706
07.11.2017,ADULT SOCIAL CARE,MIHOMECARE LTD,"2,612.57",PHY LTS 65+,HOMECARE - C&V,2102741749
07.11.2017,ADULT SOCIAL CARE,MIHOMECARE LTD,"2,748.73",PHY LTS 65+,HOMECARE - C&V,2102741859
07.11.2017,ADULT SOCIAL CARE,MIHOMECARE LTD,"2,757.24",PHY LTS 65+,HOMECARE - C&V,2102741789
07.11.2017,ADULT SOCIAL CARE,MIHOMECARE LTD,"2,795.54",PHY LTS 65+,HOMECARE - C&V,2102741853
07.11.2017,ADULT SOCIAL CARE,MIHOMECARE LTD,"2,829.59",PHY LTS 65+,HOMECARE - C&V,2102741898
07.11.2017,ADULT SOCIAL CARE,MIHOMECARE LTD,"2,842.34",PHY LTS 65+,HOMECARE - C&V,2102741779
07.11.2017,ADULT SOCIAL CARE,MIHOMECARE LTD,"2,842.36",PHY LTS 65+,HOMECARE - C&V,2102741893
07.11.2017,ADULT SOCIAL CARE,MIHOMECARE LTD,"2,927.44",PHY LTS 65+,HOMECARE - C&V,2102741827
07.11.2017,ADULT SOCIAL CARE,MIHOMECARE LTD,"2,961.48",PHY LTS 65+,HOMECARE - C&V,2102741796
07.11.2017,ADULT SOCIAL CARE,MIHOMECARE LTD,"2,961.48",PHY LTS 65+,HOMECARE - C&V,2102741832
07.11.2017,ADULT SOCIAL CARE,MIHOMECARE LTD,"3,097.64",PHY LTS 65+,HOMECARE - C&V,2102741630
07.11.2017,ADULT SOCIAL CARE,MIHOMECARE LTD,"3,131.68",PHY LTS 65+,HOMECARE - C&V,2102741944
07.11.2017,ADULT SOCIAL CARE,MIHOMECARE LTD,"3,335.92",PHY LTS 65+,HOMECARE - C&V,2102741788
07.11.2017,ADULT SOCIAL CARE,MIHOMECARE LTD,"3,676.32",PHY LTS 65+,HOMECARE - C&V,2102741756
07.11.2017,ADULT SOCIAL CARE,MIHOMECARE LTD,"4,425.20",PHY LTS 65+,HOMECARE - C&V,2102741956
07.11.2017,ADULT SOCIAL CARE,WITHENS NURSING HOME,"1,894.29",PHY LTS 65+,NURSING PLACEMENTS FEES,2102741987
07.11.2017,ADULT SOCIAL CARE,MIHOMECARE LTD,510.6,SEN LTS 65+,HOMECARE - C&V,2102741818
07.11.2017,ADULT SOCIAL CARE,MIHOMECARE LTD,851,SEN LTS 65+,HOMECARE - C&V,2102741815
07.11.2017,ADULT SOCIAL CARE,MIHOMECARE LTD,408.48,SOCIAL ISOLATION,HOMECARE - C&V,2102741743
07.11.2017,ADULT SOCIAL CARE,MIHOMECARE LTD,480.82,SOCIAL ISOLATION,HOMECARE - C&V,2102741961
07.11.2017,ADULT SOCIAL CARE,MIHOMECARE LTD,595.7,SOCIAL ISOLATION,HOMECARE - C&V,2102741890
07.11.2017,ADULT SOCIAL CARE,MIHOMECARE LTD,731.88,SOCIAL ISOLATION,HOMECARE - C&V,2102741920
07.11.2017,ADULT SOCIAL CARE,MIHOMECARE LTD,799.96,SOCIAL ISOLATION,HOMECARE - C&V,2102741802
07.11.2017,ADULT SOCIAL CARE,MIHOMECARE LTD,833.98,SOCIAL ISOLATION,HOMECARE - C&V,2102741731
07.11.2017,ADULT SOCIAL CARE,MIHOMECARE LTD,851,SOCIAL ISOLATION,HOMECARE - C&V,2102741782
07.11.2017,ADULT SOCIAL CARE,MIHOMECARE LTD,876.53,SOCIAL ISOLATION,HOMECARE - C&V,2102741846
07.11.2017,ADULT SOCIAL CARE,MIHOMECARE LTD,"2,480.67",SOCIAL ISOLATION,HOMECARE - C&V,2102741850
07.11.2017,ADULT SOCIAL CARE,FREEDOM RECOVERY CENTRE,670,SUB LTS 18-64,PLACEMENTS - REHAB,2102741982
07.11.2017,ADULT SOCIAL CARE,FREEDOM RECOVERY CENTRE,670,SUB LTS 18-64,PLACEMENTS - REHAB,2102741984
07.11.2017,ADULT SOCIAL CARE,FREEDOM RECOVERY CENTRE,"1,560.00",SUB LTS 18-64,DAYCARE,2102741986
07.11.2017,ADULT SOCIAL CARE,FREEDOM RECOVERY CENTRE,"2,315.20",SUB LTS 18-64,DAYCARE,2102741976
07.11.2017,ADULT SOCIAL CARE,FREEDOM RECOVERY CENTRE,"2,680.00",SUB LTS 18-64,PLACEMENTS - REHAB,2102741980
07.11.2017,ADULT SOCIAL CARE,NESTOR PRIMECARE SERVICES LTD,418.4,TRANSFORMING COM E,HOMECARE - C&V,5902275649
07.11.2017,ADULT SOCIAL CARE,NESTOR PRIMECARE SERVICES LTD,"1,797.60",TRANSFORMING COM E,HOMECARE - C&V,5902275649
07.11.2017,ADULT SOCIAL CARE,NESTOR PRIMECARE SERVICES LTD,"29,131.20",TRANSFORMING COM E,HOMECARE - C&V,5902275649
07.11.2017,ASSET MANAGEMENT,BRIDGEWATER ROOFING CONTRACTORS LTD,280,VISIBLE DIFFERENCE (NORTH),BUILDING R&M,2102742093
07.11.2017,ASSET MANAGEMENT,BRIDGEWATER ROOFING CONTRACTORS LTD,410,VISIBLE DIFFERENCE (NORTH),BUILDING R&M,2102742099
07.11.2017,ASSET MANAGEMENT,BRIDGEWATER ROOFING CONTRACTORS LTD,"1,018.00",VISIBLE DIFFERENCE (NORTH),BUILDING R&M,2102742098
07.11.2017,ASSET MANAGEMENT,BCS (ELECTRICAL & BUILDING) LTD,"31,931.88",VOIDS (SOUTH),BUILDING R&M,2102742125
07.11.2017,ASSET MANAGEMENT,BUILDTRUST LTD,"8,787.66",VOIDS (SOUTH),BUILDING R&M,2102742128
07.11.2017,ASSET MANAGEMENT,BUILDTRUST LTD,"10,319.51",VOIDS (SOUTH),BUILDING R&M,2102742127
07.11.2017,CENTRAL FUNCTIONS,CBS MAINTENANCE SERVICES LTD,"2,250.00",COMMERCIAL PROPERTIES,BUILDING R&M,2102742126
07.11.2017,CENTRAL FUNCTIONS,OMOLARA A ODEKA,281.81,HOME OWNERSHIP INCOME,HOUSING RESIDENTIAL RENTS,5902275676
07.11.2017,CENTRAL FUNCTIONS,REDACTED PERSONAL DATA,774,HOME OWNERSHIP INCOME,HOUSING RESIDENTIAL RENTS,5902275668
07.11.2017,CHIEF EXECUTIVE,CONWAY AECOM LTD,"18,005.17",CAPITAL PS (REGEN),CONSTR'N SUB CONTRACT - NON CERTIFICATED,2102742117
07.11.2017,CHIEF EXECUTIVE,CONWAY AECOM LTD,"28,043.53",CAPITAL PS (REGEN),CONSTRUCTION SUB CONTRACT -CERTIFICATED,2102742116
07.11.2017,CHIEF EXECUTIVE,CONWAY AECOM LTD,"31,054.54",CAPITAL PS (REGEN),CONSTR'N SUB CONTRACT - NON CERTIFICATED,2102742118
07.11.2017,CHIEF EXECUTIVE,LAWSON ESTATE T&RA,"1,470.00",CAPITAL PS (REGEN),CONSTRUCTION SITE COSTS,5902275695
07.11.2017,CHIEF EXECUTIVE,NEILCOTT SPECIAL WORKS LTD,"316,620.43",CAPITAL PS (REGEN),CONSTRUCTION FEES,2102742121
07.11.2017,CHILDREN AND ADULT,MORGAN SINDALL PLC,"316,350.36",CAPITAL PS (EDUCATION),CONSTRUCTION MAIN CONTRACT -CERTIFICATED,2102742124
07.11.2017,CHILDREN AND ADULT,MORGAN SINDALL PLC,"321,842.50",CAPITAL PS (EDUCATION),CONST'N MAIN CONTRACT - NON CERTIFICATED,2102742123
07.11.2017,CHILDREN AND ADULT,MORGAN SINDALL PLC,"530,384.78",CAPITAL PS (EDUCATION),CONSTRUCTION MAIN CONTRACT -CERTIFICATED,2102742122
07.11.2017,CHILDREN AND ADULT,ROBERT BROWNING PRIMARY SCHOOL,"60,982.88",CAPITAL PS (EDUCATION),CONST'N MAIN CONTRACT - NON CERTIFICATED,5902275645
07.11.2017,CHILDREN'S SERVICES,HEALTHCARE & TRANSPORT SERVICES,"49,497.75",HOME 2 SCHOOL TRANSPORT,CAB FARES,5902275677
07.11.2017,CHILDREN'S SERVICES,ADVISING HEALTH AND SOCIAL CARE,"23,139.33",RESIDENTIAL,RESIDENTIAL CARE,2102741564
07.11.2017,CHILDREN'S SERVICES,ALLIANCE CARE & EDUCATION LTD,"20,880.71",RESIDENTIAL,RESIDENTIAL CARE,2102741573
07.11.2017,CHILDREN'S SERVICES,ALLIANCE CARE & EDUCATION LTD,"27,616.42",RESIDENTIAL,RESIDENTIAL CARE,2102741557
07.11.2017,CHILDREN'S SERVICES,CAMBIAN CHILDCARE LTD,"14,835.67",RESIDENTIAL,RESIDENTIAL CARE,2102741571
07.11.2017,CHILDREN'S SERVICES,CAMBIAN CHILDCARE LTD,"19,042.99",RESIDENTIAL,RESIDENTIAL CARE,2102741576
07.11.2017,CHILDREN'S SERVICES,CAMBIAN CHILDCARE LTD,"21,257.01",RESIDENTIAL,RESIDENTIAL CARE,2102741574
07.11.2017,CHILDREN'S SERVICES,CARE FOCUS LTD,"16,607.14",RESIDENTIAL,RESIDENTIAL CARE,2102741563
07.11.2017,CHILDREN'S SERVICES,CHILDHOOD FIRST,"19,042.86",RESIDENTIAL,RESIDENTIAL CARE,2102741565
07.11.2017,CHILDREN'S SERVICES,CHILDHOOD FIRST,"19,716.00",RESIDENTIAL,RESIDENTIAL CARE,2102741540
07.11.2017,CHILDREN'S SERVICES,CHILDHOOD FIRST,"20,158.86",RESIDENTIAL,RESIDENTIAL CARE,2102741556
07.11.2017,CHILDREN'S SERVICES,CREATING CARE CHOICES LTD,"15,500.00",RESIDENTIAL,RESIDENTIAL CARE,2102741562
07.11.2017,CHILDREN'S SERVICES,CREATING CARE CHOICES LTD,"18,600.00",RESIDENTIAL,RESIDENTIAL CARE,2102741541
07.11.2017,CHILDREN'S SERVICES,CREATING CARE CHOICES LTD,"18,600.00",RESIDENTIAL,RESIDENTIAL CARE,2102741550
07.11.2017,CHILDREN'S SERVICES,DIRECT CARE LIMITED,"15,057.01",RESIDENTIAL,RESIDENTIAL CARE,2102741544
07.11.2017,CHILDREN'S SERVICES,ESLAND SOUTH LTD,"16,150.00",RESIDENTIAL,RESIDENTIAL CARE,2102741570
07.11.2017,CHILDREN'S SERVICES,ESLAND SOUTH LTD,"29,892.86",RESIDENTIAL,RESIDENTIAL CARE,2102741566
07.11.2017,CHILDREN'S SERVICES,FOOTSTEPS CARE LTD,"15,726.96",RESIDENTIAL,RESIDENTIAL CARE,2102741543
07.11.2017,CHILDREN'S SERVICES,HILLCREST CHILDRENS SERVICES LTD,"16,430.00",RESIDENTIAL,RESIDENTIAL CARE,2102741555
07.11.2017,CHILDREN'S SERVICES,HILLCREST CHILDRENS SERVICES LTD,"16,430.00",RESIDENTIAL,RESIDENTIAL CARE,2102741561
07.11.2017,CHILDREN'S SERVICES,INMIND CHILDRENS SERVICES LTD,"23,429.49",RESIDENTIAL,RESIDENTIAL CARE,2102741577
07.11.2017,CHILDREN'S SERVICES,KINGDOM CARE CHILDRENS HOMES LTD,"15,411.43",RESIDENTIAL,RESIDENTIAL CARE,2102741553
07.11.2017,CHILDREN'S SERVICES,LIONCARE LIMITED,"16,029.21",RESIDENTIAL,RESIDENTIAL CARE,2102741552
07.11.2017,CHILDREN'S SERVICES,MEADOWS CARE LTD,"6,685.71",RESIDENTIAL,RESIDENTIAL CARE,2102741539
07.11.2017,CHILDREN'S SERVICES,MEADOWS CARE LTD,"17,271.43",RESIDENTIAL,RESIDENTIAL CARE,2102741554
07.11.2017,CHILDREN'S SERVICES,NEW HORIZONS CHILD CARE LTD,"17,271.34",RESIDENTIAL,RESIDENTIAL CARE,2102741549
07.11.2017,CHILDREN'S SERVICES,NEW HORIZONS CHILD CARE LTD,"19,485.67",RESIDENTIAL,RESIDENTIAL CARE,2102741545
07.11.2017,CHILDREN'S SERVICES,NEW HORIZONS CHILD CARE LTD,"19,928.66",RESIDENTIAL,RESIDENTIAL CARE,2102741558
07.11.2017,CHILDREN'S SERVICES,NEWRAYS CARE SERVICES LTD,"17,067.84",RESIDENTIAL,RESIDENTIAL CARE,2102741542
07.11.2017,CHILDREN'S SERVICES,NORTH LAKES CHILDRENS SERVICES,"9,767.17",RESIDENTIAL,RESIDENTIAL CARE,2102741548
07.11.2017,CHILDREN'S SERVICES,PLUS ONE LTD,"15,418.51",RESIDENTIAL,RESIDENTIAL CARE,2102741560
07.11.2017,CHILDREN'S SERVICES,PLUS ONE LTD,"16,381.28",RESIDENTIAL,RESIDENTIAL CARE,2102741567
07.11.2017,CHILDREN'S SERVICES,PRESTIGE ADOLESCENT CARE & EDUCATION LTD,"15,278.66",RESIDENTIAL,RESIDENTIAL CARE,2102741559
07.11.2017,CHILDREN'S SERVICES,REAMCARE LTD,"17,571.42",RESIDENTIAL,RESIDENTIAL CARE,2102741568
07.11.2017,CHILDREN'S SERVICES,REAMCARE LTD,"18,157.13",RESIDENTIAL,RESIDENTIAL CARE,2102741575
07.11.2017,CHILDREN'S SERVICES,SANKOFA CARE LTD,"18,600.00",RESIDENTIAL,RESIDENTIAL CARE,2102741569
07.11.2017,CHILDREN'S SERVICES,SPORTFIT SHORT BREAK CARE LTD,"10,230.00",RESIDENTIAL,RESIDENTIAL CARE,2102741538
07.11.2017,CHILDREN'S SERVICES,THE AMICUS COMMUNITY (ARUNDEL) LTD,"18,821.34",RESIDENTIAL,RESIDENTIAL CARE,2102741546
07.11.2017,CHILDREN'S SERVICES,THE AMICUS COMMUNITY (ARUNDEL) LTD,"20,570.67",RESIDENTIAL,RESIDENTIAL CARE,2102741551
07.11.2017,CHILDREN'S SERVICES,THE DRIVE CARE HOMES LTD,"12,198.76",RESIDENTIAL,RESIDENTIAL CARE,2102741579
07.11.2017,CHILDREN'S SERVICES,THE DRIVE CARE HOMES LTD,"13,176.24",RESIDENTIAL,RESIDENTIAL CARE,2102741578
07.11.2017,CHILDREN'S SERVICES,1ST PLACE CHILDREN & PARENTS CENTRE,645,RESOURCE PANEL,OTHER PAYMENTS FOR CLIENTS,2102742003
07.11.2017,CHILDREN'S SERVICES,1ST PLACE CHILDREN & PARENTS CENTRE,645,RESOURCE PANEL,OTHER PAYMENTS FOR CLIENTS,2102742004
07.11.2017,CHILDREN'S SERVICES,CONTACT PROFESSIONALS,350,S & FAM SUPP - PRAC GRP B SET 17-19,OTHER PAYMENTS FOR CLIENTS,2102742001
07.11.2017,CHILDREN'S SERVICES,CONTACT PROFESSIONALS,"1,100.00",S & FAM SUPP - PRAC GRP F SET 29-31,OTHER PAYMENTS FOR CLIENTS,2102742002
07.11.2017,CHILDREN'S SERVICES,ASSOCIATED CARE SERVICES LTD,"1,371.43",S24 CLA,EXTERNAL AGENCIES AND BODIES,2102741586
07.11.2017,CHILDREN'S SERVICES,BRIDGING THE GAP,"2,157.32",S24 CLA,EXTERNAL AGENCIES AND BODIES,2102741609
07.11.2017,CHILDREN'S SERVICES,CARE R US LTD,"2,541.42",S24 CLA,EXTERNAL AGENCIES AND BODIES,2102741601
07.11.2017,CHILDREN'S SERVICES,FINEFAIR LTD,"1,312.80",S24 CLA,EXTERNAL AGENCIES AND BODIES,2102741598
07.11.2017,CHILDREN'S SERVICES,FINEFAIR LTD,"1,632.90",S24 CLA,EXTERNAL AGENCIES AND BODIES,2102741580
07.11.2017,CHILDREN'S SERVICES,FINEFAIR LTD,"1,632.90",S24 CLA,EXTERNAL AGENCIES AND BODIES,2102741588
07.11.2017,CHILDREN'S SERVICES,FINEFAIR LTD,"1,632.90",S24 CLA,EXTERNAL AGENCIES AND BODIES,2102741603
07.11.2017,CHILDREN'S SERVICES,FINEFAIR LTD,"1,632.90",S24 CLA,EXTERNAL AGENCIES AND BODIES,2102741614
07.11.2017,CHILDREN'S SERVICES,FINEFAIR LTD,"1,818.68",S24 CLA,EXTERNAL AGENCIES AND BODIES,2102741620
07.11.2017,CHILDREN'S SERVICES,FINEFAIR LTD,"2,871.60",S24 CLA,EXTERNAL AGENCIES AND BODIES,2102741590
07.11.2017,CHILDREN'S SERVICES,FINEFAIR LTD,"3,191.70",S24 CLA,EXTERNAL AGENCIES AND BODIES,2102741596
07.11.2017,CHILDREN'S SERVICES,LOOK AHEAD CARE AND SUPPORT LTD,916.5,S24 CLA,EXTERNAL AGENCIES AND BODIES,2102741581
07.11.2017,CHILDREN'S SERVICES,LOOK AHEAD CARE AND SUPPORT LTD,980.95,S24 CLA,EXTERNAL AGENCIES AND BODIES,2102741600
07.11.2017,CHILDREN'S SERVICES,NEXT STEP CARE MANAGEMENT LTD,"1,821.43",S24 CLA,EXTERNAL AGENCIES AND BODIES,2102741592
07.11.2017,CHILDREN'S SERVICES,NEXT STEP CARE MANAGEMENT LTD,"1,821.43",S24 CLA,EXTERNAL AGENCIES AND BODIES,2102741617
07.11.2017,CHILDREN'S SERVICES,NEXT STEP CARE MANAGEMENT LTD,"2,142.86",S24 CLA,EXTERNAL AGENCIES AND BODIES,2102741604
07.11.2017,CHILDREN'S SERVICES,PURPLE PEBBLES(CHILD CARE) SERVICES,261.43,S24 CLA,EXTERNAL AGENCIES AND BODIES,2102741615
07.11.2017,CHILDREN'S SERVICES,PURPLE PEBBLES(CHILD CARE) SERVICES,275,S24 CLA,EXTERNAL AGENCIES AND BODIES,2102741605
07.11.2017,CHILDREN'S SERVICES,PURPLE PEBBLES(CHILD CARE) SERVICES,300,S24 CLA,EXTERNAL AGENCIES AND BODIES,2102741602
07.11.2017,CHILDREN'S SERVICES,PURPLE PEBBLES(CHILD CARE) SERVICES,325,S24 CLA,EXTERNAL AGENCIES AND BODIES,2102741585
07.11.2017,CHILDREN'S SERVICES,PURPLE PEBBLES(CHILD CARE) SERVICES,325,S24 CLA,EXTERNAL AGENCIES AND BODIES,2102741591
07.11.2017,CHILDREN'S SERVICES,PURPLE PEBBLES(CHILD CARE) SERVICES,432.14,S24 CLA,EXTERNAL AGENCIES AND BODIES,2102741587
07.11.2017,CHILDREN'S SERVICES,PURPLE PEBBLES(CHILD CARE) SERVICES,746.43,S24 CLA,EXTERNAL AGENCIES AND BODIES,2102741607
07.11.2017,CHILDREN'S SERVICES,PURPLE PEBBLES(CHILD CARE) SERVICES,"1,045.71",S24 CLA,EXTERNAL AGENCIES AND BODIES,2102741610
07.11.2017,CHILDREN'S SERVICES,PURPLE PEBBLES(CHILD CARE) SERVICES,"1,071.43",S24 CLA,EXTERNAL AGENCIES AND BODIES,2102741616
07.11.2017,CHILDREN'S SERVICES,PURPLE PEBBLES(CHILD CARE) SERVICES,"1,242.86",S24 CLA,EXTERNAL AGENCIES AND BODIES,2102741618
07.11.2017,CHILDREN'S SERVICES,PURPLE PEBBLES(CHILD CARE) SERVICES,"1,285.71",S24 CLA,EXTERNAL AGENCIES AND BODIES,2102741582
07.11.2017,CHILDREN'S SERVICES,PURPLE PEBBLES(CHILD CARE) SERVICES,"1,285.71",S24 CLA,EXTERNAL AGENCIES AND BODIES,2102741599
07.11.2017,CHILDREN'S SERVICES,RELA SUPPORT SERVICES LTD,"1,506.87",S24 CLA,EXTERNAL AGENCIES AND BODIES,2102741589
07.11.2017,CHILDREN'S SERVICES,AFFINITY FOSTERING SERVICES LTD,"1,749.33",STAYING PUT,EXTERNAL AGENCIES AND BODIES,2102741584
07.11.2017,CHILDREN'S SERVICES,AFFINITY FOSTERING SERVICES LTD,"1,749.33",STAYING PUT,EXTERNAL AGENCIES AND BODIES,2102741619
07.11.2017,CHILDREN'S SERVICES,YOUNG LONDON TODAY,"1,417.01",UASC SECTION 24,EXTERNAL AGENCIES AND BODIES,2102741594
07.11.2017,COMMUNITIES,LOOK AHEAD CARE AND SUPPORT LTD,"1,036.30",NO RECOURSE TO PUBLIC FUNDS,ACCOMMODATION CHARGES,5902275639
07.11.2017,COMMUNITIES,LOOK AHEAD CARE AND SUPPORT LTD,"1,174.75",NO RECOURSE TO PUBLIC FUNDS,ACCOMMODATION CHARGES,5902275633
07.11.2017,COMMUNITIES,S A PROPERTY MANAGEMENT LTD,"4,657.00",NO RECOURSE TO PUBLIC FUNDS,ACCOMMODATION CHARGES,5902275671
07.11.2017,CUSTOMER EXPERIENCE HGF,RS REAL ESTATE LTD,"24,645.00",NIGHTLY TA (NSC),EXTERNAL AGENCIES AND BODIES,5902275703
07.11.2017,CUSTOMER EXPERIENCE HGF,ZFA LTD,"25,540.00",NIGHTLY TA (NSC),EXTERNAL AGENCIES AND BODIES,5902275692
07.11.2017,ENVIRONMENT AND LEISURE,AMAZON IRRIGATION LTD,"-1,166.66",CAPITAL PS (LEISURE),CONST'N MAIN CONTRACT - NON CERTIFICATED,5902275647
07.11.2017,ENVIRONMENT AND LEISURE,AMAZON IRRIGATION LTD,"1,416.66",CAPITAL PS (LEISURE),CONST'N MAIN CONTRACT - NON CERTIFICATED,5902275657
07.11.2017,ENVIRONMENT AND LEISURE,LDA DESIGN CONSULTING LTD,836,CAPITAL PS (LEISURE),CONSTRUCTION FEES  - EXTERNAL,5902275714
07.11.2017,ENVIRONMENT AND LEISURE,T LOUGHMAN AND CO LIMITED,"1,272.82",CAPITAL PS (LEISURE),CONSTRUCTION MAIN CONTRACT -CERTIFICATED,2102742130
07.11.2017,ENVIRONMENT AND LEISURE,T LOUGHMAN AND CO LIMITED,"4,102.81",CAPITAL PS (LEISURE),CONSTRUCTION MAIN CONTRACT -CERTIFICATED,2102742130
07.11.2017,ENVIRONMENT AND LEISURE,T LOUGHMAN AND CO LIMITED,"7,348.30",CAPITAL PS (LEISURE),CONSTRUCTION MAIN CONTRACT -CERTIFICATED,2102742130
07.11.2017,ENVIRONMENT AND SOCIAL REGENERATION,A T & T (GB LTD ),528,STORES,CREDITORS -GR/IR CLEARING ACCOUNT,5902275684
07.11.2017,ENVIRONMENT AND SOCIAL REGENERATION,A T & T (GB LTD ),"2,053.92",STORES,CREDITORS -GR/IR CLEARING ACCOUNT,5902275683
07.11.2017,ENVIRONMENT DIRECTORATE,TIPPERHIRE LTD,-506,COMMERCIAL VEH CTRL A/C,PARKING CHARGES,5902275955
07.11.2017,ENVIRONMENT DIRECTORATE,TIPPERHIRE LTD,506,COMMERCIAL VEH CTRL A/C,PARKING CHARGES,5902275912
07.11.2017,ENVIRONMENT DIRECTORATE,SOUTH ESSEX STOCKHOLDERS LTD,302.4,ENGINEERING CRAFTS,MATERIALS,5902275682
07.11.2017,ENVIRONMENT DIRECTORATE,DVSA,401,FLEET SERVICES MANAGEMENT,PROFESSIONAL FEES,5902275697
07.11.2017,ENVIRONMENT DIRECTORATE,TFL TELESALES / OYSTER FULFILMENT,350,PROJECT SUPPORT,PUBLIC TRANSPORT,5902275620
07.11.2017,ENVIRONMENT DIRECTORATE,EDMUNDSON ELECTRICAL LTD,388.15,PUBLIC LIGHTING,MATERIALS,5902275679
07.11.2017,ENVIRONMENT DIRECTORATE,NPOWER LTD,"1,046.98",STREET TRADING A/C,ELECTRICITY,5902275636
07.11.2017,HOUSING HRA,CALFORD SEADEN LLP,"12,646.17",CAPITAL PS (HRA),CONSTRUCTION FEES  - EXTERNAL,5902275686
07.11.2017,HOUSING HRA,KEEPMOAT REGENERATION (APOLLO) LTD,"89,945.61",CAPITAL PS (HRA),CONSTRUCTION MAIN CONTRACT -CERTIFICATED,2102742101
07.11.2017,HOUSING HRA,KEEPMOAT REGENERATION (APOLLO) LTD,"115,758.36",CAPITAL PS (HRA),CONSTRUCTION MAIN CONTRACT -CERTIFICATED,2102742102
07.11.2017,HOUSING HRA,KEEPMOAT REGENERATION (APOLLO) LTD,"162,355.81",CAPITAL PS (HRA),CONSTRUCTION MAIN CONTRACT -CERTIFICATED,2102742103
07.11.2017,HOUSING HRA,KEEPMOAT REGENERATION (APOLLO) LTD,"249,806.19",CAPITAL PS (HRA),CONSTRUCTION MAIN CONTRACT -CERTIFICATED,2102742091
07.11.2017,HOUSING HRA,MORGAN SINDALL PLC,"530,267.00",CAPITAL PS (HRA),CONSTR'N SUB CONTRACT - NON CERTIFICATED,2102742107
07.11.2017,HOUSING HRA,PJC CONSULTANCY LTD,335,CAPITAL PS (HRA),CONSTRUCTION FEES  - EXTERNAL,5902275681
07.11.2017,HOUSING HRA,POTTER RAPER AND PARTNERS,"1,476.01",CAPITAL PS (HRA),CONSTRUCTION FEES  - EXTERNAL,5902275722
07.11.2017,HOUSING HRA,POTTER RAPER AND PARTNERS,"4,770.77",CAPITAL PS (HRA),CONSTRUCTION FEES  - EXTERNAL,5902275717
07.11.2017,HOUSING HRA,STIRLING ACKROYD LEGAL LLP,"-35,000.00",CAPITAL PS (HRA),CAPITAL GRANTS,2102743027
07.11.2017,HOUSING HRA,STIRLING ACKROYD LEGAL LLP,"35,000.00",CAPITAL PS (HRA),CAPITAL GRANTS,2102743025
07.11.2017,HOUSING HRA,TRINITY CONSTRUCTION SERVICES LTD,"6,794.00",CAPITAL PS (HRA),CONST'N MAIN CONTRACT - NON CERTIFICATED,2102742129
07.11.2017,HOUSING HRA,TRINITY CONSTRUCTION SERVICES LTD,"7,152.00",CAPITAL PS (HRA),CONST'N MAIN CONTRACT - NON CERTIFICATED,2102742092
07.11.2017,LEISURE DIRECTORATE,F M CONWAY LTD,304.17,BURGESS AREA TEAM,OTHER R&M,2102742100
07.11.2017,LEISURE DIRECTORATE,P D CONSTRUCTION LTD,"1,250.00",BURGESS AREA TEAM,OTHER R&M,2102742095
07.11.2017,LEISURE DIRECTORATE,P D CONSTRUCTION LTD,"5,742.36",BURGESS AREA TEAM,OTHER R&M,2102742095
07.11.2017,LEISURE DIRECTORATE,QUADRON SERVICES LIMITED,"2,394.00",PECKHAM RYE AREA TEAM,OTHER R&M,5902275635
07.11.2017,LEISURE DIRECTORATE,PHS GROUP PLC,"1,086.76",SDM BUDGET,PREMISES CLEANING,5902275640
07.11.2017,LEISURE DIRECTORATE,REDACTED PERSONAL DATA,830.19,SDM BUDGET,DISCRETIONARY FLEXIBLE FEES & INCOME,5902275634
07.11.2017,LEISURE DIRECTORATE,REGENT CLEANING,"2,346.08",SDM BUDGET,PREMISES CLEANING,5902275693
07.11.2017,MODERNISATION HGF,ROYAL MAIL GROUP LTD,"1,079.20",160 TOOLEY ST.,POSTAGES,5902275709
07.11.2017,MODERNISATION HGF,ST JOHNS AMBULANCE,-420,ORG TRANSFORMATION,TRAINING,5902275621
07.11.2017,MODERNISATION HGF,ST JOHNS AMBULANCE,420,ORG TRANSFORMATION,TRAINING,5902275617
07.11.2017,MODERNISATION HGF,ST JOHNS AMBULANCE,420,ORG TRANSFORMATION,TRAINING,5902275624
07.11.2017,MODERNISATION HGF,ST JOHNS AMBULANCE,420,ORG TRANSFORMATION,TRAINING,5902275625
07.11.2017,MODERNISATION HGF,IRON MOUNTAIN (UK) LTD,"7,333.35",REPAIR AND MAINTENANCE SERVICES,INFORMATION MANAGEMENT,5902275685
07.11.2017,MODERNISATION HGF,IRON MOUNTAIN (UK) LTD,"7,600.32",REPAIR AND MAINTENANCE SERVICES,INFORMATION MANAGEMENT,5902275662
07.11.2017,MODERNISATION HGF,IRON MOUNTAIN (UK) LTD,"7,844.57",REPAIR AND MAINTENANCE SERVICES,INFORMATION MANAGEMENT,5902275659
07.11.2017,MODERNISATION HGF,IRON MOUNTAIN (UK) LTD,"8,330.17",REPAIR AND MAINTENANCE SERVICES,INFORMATION MANAGEMENT,5902275626
07.11.2017,PLANNING AND TRANSPORT,ADAMS INTEGRA LTD,"2,000.00",MAJOR APPLICATIONS,PROFESSIONAL FEES,5902275663
07.11.2017,PLANNING AND TRANSPORT,ADAMS INTEGRA LTD,"4,000.00",MAJOR APPLICATIONS,PROFESSIONAL FEES,5902275644
07.11.2017,PLANNING AND TRANSPORT,ADAMS INTEGRA LTD,"4,000.00",MAJOR APPLICATIONS,PROFESSIONAL FEES,5902275654
07.11.2017,PLANNING AND TRANSPORT,GVA GRIMLEY LLP,"5,208.00",MAJOR APPLICATIONS,PROFESSIONAL FEES,5902275673
07.11.2017,PLANNING AND TRANSPORT,EXACOM SYSTEMS LTD,"1,400.00",S106 & CIL ADMINISTRATION,INFORMATION MANAGEMENT,5902275713
07.11.2017,PLANNING AND TRANSPORT,WSP UK LTD,"2,450.00",STRATEGIC APPLICATIONS,PROFESSIONAL FEES,5902275707
07.11.2017,RESIDENT SERVICES,PLANET TRAINING LIMITED,495,HOUSING STRATEGY (HRA),TRAINING,5902275628
07.11.2017,SOUTHWARK BUILDING SERVICES,1st ACTIVE PROPERTY SERVICES LTD,"18,971.85",BUSINESS SUPPORT,OTHER CONTRACTORS,2102742112
07.11.2017,SOUTHWARK BUILDING SERVICES,A & E ELKINS LTD,"16,862.82",BUSINESS SUPPORT,OTHER CONTRACTORS,2102742110
07.11.2017,SOUTHWARK BUILDING SERVICES,A & E ELKINS LTD,"19,098.24",BUSINESS SUPPORT,OTHER CONTRACTORS,2102742109
07.11.2017,SOUTHWARK BUILDING SERVICES,A & E ELKINS LTD,"22,118.12",BUSINESS SUPPORT,OTHER CONTRACTORS,2102742108
07.11.2017,SOUTHWARK BUILDING SERVICES,BUDMAX CONSTRUCTION LTD,"7,235.46",BUSINESS SUPPORT,OTHER CONTRACTORS,2102742113
07.11.2017,SOUTHWARK BUILDING SERVICES,DEREK BUILDING SERVICES LTD,"21,271.67",BUSINESS SUPPORT,OTHER CONTRACTORS,2102742111
07.11.2017,SOUTHWARK BUILDING SERVICES,EMPIRE BUILDERS,"15,141.31",BUSINESS SUPPORT,OTHER CONTRACTORS,2102742114
07.11.2017,SOUTHWARK BUILDING SERVICES,NEW IMAGE WINDOWS LTD,"12,774.94",BUSINESS SUPPORT,OTHER CONTRACTORS,2102742115
07.11.2017,STRATEGIC FINANCING BUDGETS,GALLAGHER BASSETT INTERNATIONAL LTD,"93,124.00",LIABILITY RELATED INSURANCE,PROPERTY INSURANCE COSTS,5902275689
08.11.2017,ADULT SOCIAL CARE,SOUTH LONDON  MAUDSLEY NHS FOUNDATION TRUST,"10,746.51",LD/MH/SM MANAGEMENT,NURSING PLACEMENTS FEES,5902275932
08.11.2017,ADULT SOCIAL CARE,MEADBANK CARE HOME,"-1,173.95",PHY LTS 65+,COSTS RECOVERED,2102741490
08.11.2017,ADULT SOCIAL CARE,MEADBANK CARE HOME,"-1,152.20",PHY LTS 65+,"MAND STATUTORY CHARGES, NURSING",2102741488
08.11.2017,ADULT SOCIAL CARE,MEADBANK CARE HOME,"1,173.95",PHY LTS 65+,RECOVERABLE COSTS INCL. HEALTH,2102741489
08.11.2017,ADULT SOCIAL CARE,MEADBANK CARE HOME,"4,632.88",PHY LTS 65+,NURSING PLACEMENTS FEES,2102741491
08.11.2017,ADULT SOCIAL CARE,CONTACT PROFESSIONALS,722,TRANSITION 14 - 18 YEARS,SECTION 17 PAYMENTS TO AGENCIES/CARERS,2102742185
08.11.2017,ADULT SOCIAL CARE,INTERSERVE HEALTHCARE,511.46,TRANSITION 14 - 18 YEARS,SECTION 17 PAYMENTS TO AGENCIES/CARERS,2102742181
08.11.2017,ASSET MANAGEMENT,SCS TECHNOLOGIES LTD,"1,257.31",ENG CONTRACTS (NORTH),TV AERIALS R&M,5902275886
08.11.2017,CENTRAL FUNCTIONS,STANDAGE & CO LTD,"5,866.95",AYLESBURY,SECURITY SERVICES,2102743029
08.11.2017,CENTRAL FUNCTIONS,VPS (UK) LTD,528,AYLESBURY,SECURITY SERVICES,5902275401
08.11.2017,CENTRAL FUNCTIONS,VPS (UK) LTD,"1,728.00",AYLESBURY,SECURITY SERVICES,5902275801
08.11.2017,CENTRAL FUNCTIONS,VPS (UK) LTD,"16,272.00",AYLESBURY,SECURITY SERVICES,5902275801
08.11.2017,CHIEF EXECUTIVE,CONTEMPORARY ART SOCIETY,"5,850.00",CAPITAL PS (REGEN),CONSTRUCTION FEES  - EXTERNAL,5902275832
08.11.2017,CHIEF EXECUTIVE,CONWAY AECOM LTD,"3,080.71",CAPITAL PS (REGEN),CONSTRUCTION FEES  - EXTERNAL,5902275827
08.11.2017,CHIEF EXECUTIVE,CONWAY AECOM LTD,"7,356.10",CAPITAL PS (REGEN),CONSTRUCTION FEES  - EXTERNAL,5902275828
08.11.2017,CHIEF EXECUTIVE,CONWAY AECOM LTD,"10,394.27",CAPITAL PS (REGEN),CONSTRUCTION FEES  - EXTERNAL,2102742132
08.11.2017,CHIEF EXECUTIVE,CONWAY AECOM LTD,"14,926.67",CAPITAL PS (REGEN),CONSTRUCTION FEES  - EXTERNAL,5902275826
08.11.2017,CHIEF EXECUTIVE,CONWAY AECOM LTD,"103,268.25",CAPITAL PS (REGEN),CONSTRUCTION FEES  - EXTERNAL,2102742132
08.11.2017,CHIEF EXECUTIVE,KENNY HUNTER,"5,000.00",CAPITAL PS (REGEN),CONSTRUCTION FEES  - EXTERNAL,5902275810
08.11.2017,CHIEF EXECUTIVE,POWDERHALL BRONZE LTD,"41,750.00",CAPITAL PS (REGEN),CONSTRUCTION FEES  - EXTERNAL,5902275698
08.11.2017,CHIEF EXECUTIVE,PROJECT CENTRE LTD,"3,250.00",CAPITAL PS (REGEN),CONSTR'N SUB CONTRACT - NON CERTIFICATED,5902275965
08.11.2017,CHIEF EXECUTIVE'S OFFICE,WELLFAIR2WORK LTD,"30,387.00",CHIEF EXEC'S OFFICE,GRANTS,5902275859
08.11.2017,CHILDREN'S SERVICES,REDACTED PERSONAL DATA,252.9,ADOPTION PLACEMENTS & INTER AGENCY,PAYMENTS TO CARERS,2102742226
08.11.2017,CHILDREN'S SERVICES,REDACTED PERSONAL DATA,253.56,ADOPTION PLACEMENTS & INTER AGENCY,PAYMENTS TO CARERS,2102742318
08.11.2017,CHILDREN'S SERVICES,REDACTED PERSONAL DATA,256.54,ADOPTION PLACEMENTS & INTER AGENCY,PAYMENTS TO CARERS,2102742195
08.11.2017,CHILDREN'S SERVICES,REDACTED PERSONAL DATA,263.24,ADOPTION PLACEMENTS & INTER AGENCY,PAYMENTS TO CARERS,2102742220
08.11.2017,CHILDREN'S SERVICES,REDACTED PERSONAL DATA,269.22,ADOPTION PLACEMENTS & INTER AGENCY,PAYMENTS TO CARERS,2102742240
08.11.2017,CHILDREN'S SERVICES,REDACTED PERSONAL DATA,275.1,ADOPTION PLACEMENTS & INTER AGENCY,PAYMENTS TO CARERS,2102742272
08.11.2017,CHILDREN'S SERVICES,REDACTED PERSONAL DATA,279.26,ADOPTION PLACEMENTS & INTER AGENCY,PAYMENTS TO CARERS,2102742249
08.11.2017,CHILDREN'S SERVICES,REDACTED PERSONAL DATA,282.76,ADOPTION PLACEMENTS & INTER AGENCY,PAYMENTS TO CARERS,2102742286
08.11.2017,CHILDREN'S SERVICES,REDACTED PERSONAL DATA,293.26,ADOPTION PLACEMENTS & INTER AGENCY,PAYMENTS TO CARERS,2102742189
08.11.2017,CHILDREN'S SERVICES,REDACTED PERSONAL DATA,293.98,ADOPTION PLACEMENTS & INTER AGENCY,PAYMENTS TO CARERS,2102742309
08.11.2017,CHILDREN'S SERVICES,REDACTED PERSONAL DATA,295.3,ADOPTION PLACEMENTS & INTER AGENCY,PAYMENTS TO CARERS,2102742275
08.11.2017,CHILDREN'S SERVICES,REDACTED PERSONAL DATA,303.32,ADOPTION PLACEMENTS & INTER AGENCY,PAYMENTS TO CARERS,2102742292
08.11.2017,CHILDREN'S SERVICES,REDACTED PERSONAL DATA,311.34,ADOPTION PLACEMENTS & INTER AGENCY,PAYMENTS TO CARERS,2102742209
08.11.2017,CHILDREN'S SERVICES,REDACTED PERSONAL DATA,312.75,ADOPTION PLACEMENTS & INTER AGENCY,PAYMENTS TO CARERS,2102742289
08.11.2017,CHILDREN'S SERVICES,REDACTED PERSONAL DATA,316.5,ADOPTION PLACEMENTS & INTER AGENCY,PAYMENTS TO CARERS,2102742211
08.11.2017,CHILDREN'S SERVICES,REDACTED PERSONAL DATA,316.5,ADOPTION PLACEMENTS & INTER AGENCY,PAYMENTS TO CARERS,2102742265
08.11.2017,CHILDREN'S SERVICES,REDACTED PERSONAL DATA,319.36,ADOPTION PLACEMENTS & INTER AGENCY,PAYMENTS TO CARERS,2102742271
08.11.2017,CHILDREN'S SERVICES,REDACTED PERSONAL DATA,326.44,ADOPTION PLACEMENTS & INTER AGENCY,PAYMENTS TO CARERS,2102742228
08.11.2017,CHILDREN'S SERVICES,REDACTED PERSONAL DATA,368.52,ADOPTION PLACEMENTS & INTER AGENCY,PAYMENTS TO CARERS,2102742332
08.11.2017,CHILDREN'S SERVICES,REDACTED PERSONAL DATA,375.54,ADOPTION PLACEMENTS & INTER AGENCY,PAYMENTS TO CARERS,2102742197
08.11.2017,CHILDREN'S SERVICES,REDACTED PERSONAL DATA,375.54,ADOPTION PLACEMENTS & INTER AGENCY,PAYMENTS TO CARERS,2102742208
08.11.2017,CHILDREN'S SERVICES,REDACTED PERSONAL DATA,375.54,ADOPTION PLACEMENTS & INTER AGENCY,PAYMENTS TO CARERS,2102742212
08.11.2017,CHILDREN'S SERVICES,REDACTED PERSONAL DATA,375.54,ADOPTION PLACEMENTS & INTER AGENCY,PAYMENTS TO CARERS,2102742219
08.11.2017,CHILDREN'S SERVICES,REDACTED PERSONAL DATA,375.54,ADOPTION PLACEMENTS & INTER AGENCY,PAYMENTS TO CARERS,2102742245
08.11.2017,CHILDREN'S SERVICES,REDACTED PERSONAL DATA,375.54,ADOPTION PLACEMENTS & INTER AGENCY,PAYMENTS TO CARERS,2102742252
08.11.2017,CHILDREN'S SERVICES,REDACTED PERSONAL DATA,375.54,ADOPTION PLACEMENTS & INTER AGENCY,PAYMENTS TO CARERS,2102742279
08.11.2017,CHILDREN'S SERVICES,REDACTED PERSONAL DATA,375.54,ADOPTION PLACEMENTS & INTER AGENCY,PAYMENTS TO CARERS,2102742290
08.11.2017,CHILDREN'S SERVICES,REDACTED PERSONAL DATA,375.54,ADOPTION PLACEMENTS & INTER AGENCY,PAYMENTS TO CARERS,2102742299
08.11.2017,CHILDREN'S SERVICES,REDACTED PERSONAL DATA,382.3,ADOPTION PLACEMENTS & INTER AGENCY,PAYMENTS TO CARERS,2102742237
08.11.2017,CHILDREN'S SERVICES,REDACTED PERSONAL DATA,382.3,ADOPTION PLACEMENTS & INTER AGENCY,PAYMENTS TO CARERS,2102742242
08.11.2017,CHILDREN'S SERVICES,REDACTED PERSONAL DATA,382.3,ADOPTION PLACEMENTS & INTER AGENCY,PAYMENTS TO CARERS,2102742258
08.11.2017,CHILDREN'S SERVICES,REDACTED PERSONAL DATA,382.3,ADOPTION PLACEMENTS & INTER AGENCY,PAYMENTS TO CARERS,2102742297
08.11.2017,CHILDREN'S SERVICES,REDACTED PERSONAL DATA,390.26,ADOPTION PLACEMENTS & INTER AGENCY,PAYMENTS TO CARERS,2102742231
08.11.2017,CHILDREN'S SERVICES,REDACTED PERSONAL DATA,400.84,ADOPTION PLACEMENTS & INTER AGENCY,PAYMENTS TO CARERS,2102742303
08.11.2017,CHILDREN'S SERVICES,REDACTED PERSONAL DATA,404.46,ADOPTION PLACEMENTS & INTER AGENCY,PAYMENTS TO CARERS,2102742311
08.11.2017,CHILDREN'S SERVICES,REDACTED PERSONAL DATA,451.8,ADOPTION PLACEMENTS & INTER AGENCY,PAYMENTS TO CARERS,2102742254
08.11.2017,CHILDREN'S SERVICES,REDACTED PERSONAL DATA,453.24,ADOPTION PLACEMENTS & INTER AGENCY,PAYMENTS TO CARERS,2102742302
08.11.2017,CHILDREN'S SERVICES,REDACTED PERSONAL DATA,457.14,ADOPTION PLACEMENTS & INTER AGENCY,PAYMENTS TO CARERS,2102742236
08.11.2017,CHILDREN'S SERVICES,REDACTED PERSONAL DATA,465.48,ADOPTION PLACEMENTS & INTER AGENCY,PAYMENTS TO CARERS,2102742207
08.11.2017,CHILDREN'S SERVICES,REDACTED PERSONAL DATA,465.52,ADOPTION PLACEMENTS & INTER AGENCY,PAYMENTS TO CARERS,2102742224
08.11.2017,CHILDREN'S SERVICES,REDACTED PERSONAL DATA,465.52,ADOPTION PLACEMENTS & INTER AGENCY,PAYMENTS TO CARERS,2102742308
08.11.2017,CHILDREN'S SERVICES,REDACTED PERSONAL DATA,465.54,ADOPTION PLACEMENTS & INTER AGENCY,PAYMENTS TO CARERS,2102742229
08.11.2017,CHILDREN'S SERVICES,REDACTED PERSONAL DATA,465.54,ADOPTION PLACEMENTS & INTER AGENCY,PAYMENTS TO CARERS,2102742267
08.11.2017,CHILDREN'S SERVICES,REDACTED PERSONAL DATA,465.54,ADOPTION PLACEMENTS & INTER AGENCY,PAYMENTS TO CARERS,2102742288
08.11.2017,CHILDREN'S SERVICES,REDACTED PERSONAL DATA,465.54,ADOPTION PLACEMENTS & INTER AGENCY,PAYMENTS TO CARERS,2102742298
08.11.2017,CHILDREN'S SERVICES,REDACTED PERSONAL DATA,465.54,ADOPTION PLACEMENTS & INTER AGENCY,PAYMENTS TO CARERS,2102742315
08.11.2017,CHILDREN'S SERVICES,REDACTED PERSONAL DATA,484.92,ADOPTION PLACEMENTS & INTER AGENCY,PAYMENTS TO CARERS,2102742266
08.11.2017,CHILDREN'S SERVICES,REDACTED PERSONAL DATA,485.22,ADOPTION PLACEMENTS & INTER AGENCY,PAYMENTS TO CARERS,2102742331
08.11.2017,CHILDREN'S SERVICES,REDACTED PERSONAL DATA,502,ADOPTION PLACEMENTS & INTER AGENCY,PAYMENTS TO CARERS,2102742225
08.11.2017,CHILDREN'S SERVICES,REDACTED PERSONAL DATA,510.96,ADOPTION PLACEMENTS & INTER AGENCY,PAYMENTS TO CARERS,2102742307
08.11.2017,CHILDREN'S SERVICES,REDACTED PERSONAL DATA,512.02,ADOPTION PLACEMENTS & INTER AGENCY,PAYMENTS TO CARERS,2102742221
08.11.2017,CHILDREN'S SERVICES,REDACTED PERSONAL DATA,530,ADOPTION PLACEMENTS & INTER AGENCY,PAYMENTS TO CARERS,2102742204
08.11.2017,CHILDREN'S SERVICES,REDACTED PERSONAL DATA,534.54,ADOPTION PLACEMENTS & INTER AGENCY,PAYMENTS TO CARERS,2102742304
08.11.2017,CHILDREN'S SERVICES,REDACTED PERSONAL DATA,538.08,ADOPTION PLACEMENTS & INTER AGENCY,PAYMENTS TO CARERS,2102742312
08.11.2017,CHILDREN'S SERVICES,REDACTED PERSONAL DATA,552.16,ADOPTION PLACEMENTS & INTER AGENCY,PAYMENTS TO CARERS,2102742192
08.11.2017,CHILDREN'S SERVICES,REDACTED PERSONAL DATA,559.06,ADOPTION PLACEMENTS & INTER AGENCY,PAYMENTS TO CARERS,2102742305
08.11.2017,CHILDREN'S SERVICES,REDACTED PERSONAL DATA,565.8,ADOPTION PLACEMENTS & INTER AGENCY,PAYMENTS TO CARERS,2102742213
08.11.2017,CHILDREN'S SERVICES,REDACTED PERSONAL DATA,586.84,ADOPTION PLACEMENTS & INTER AGENCY,PAYMENTS TO CARERS,2102742317
08.11.2017,CHILDREN'S SERVICES,REDACTED PERSONAL DATA,586.84,ADOPTION PLACEMENTS & INTER AGENCY,PAYMENTS TO CARERS,2102742330
08.11.2017,CHILDREN'S SERVICES,REDACTED PERSONAL DATA,588.42,ADOPTION PLACEMENTS & INTER AGENCY,PAYMENTS TO CARERS,2102742260
08.11.2017,CHILDREN'S SERVICES,REDACTED PERSONAL DATA,589.55,ADOPTION PLACEMENTS & INTER AGENCY,PAYMENTS TO CARERS,2102742301
08.11.2017,CHILDREN'S SERVICES,REDACTED PERSONAL DATA,635.34,ADOPTION PLACEMENTS & INTER AGENCY,PAYMENTS TO CARERS,2102742255
08.11.2017,CHILDREN'S SERVICES,REDACTED PERSONAL DATA,635.34,ADOPTION PLACEMENTS & INTER AGENCY,PAYMENTS TO CARERS,2102742323
08.11.2017,CHILDREN'S SERVICES,REDACTED PERSONAL DATA,640.9,ADOPTION PLACEMENTS & INTER AGENCY,PAYMENTS TO CARERS,2102742280
08.11.2017,CHILDREN'S SERVICES,REDACTED PERSONAL DATA,652.9,ADOPTION PLACEMENTS & INTER AGENCY,PAYMENTS TO CARERS,2102742206
08.11.2017,CHILDREN'S SERVICES,REDACTED PERSONAL DATA,652.9,ADOPTION PLACEMENTS & INTER AGENCY,PAYMENTS TO CARERS,2102742314
08.11.2017,CHILDREN'S SERVICES,REDACTED PERSONAL DATA,653.06,ADOPTION PLACEMENTS & INTER AGENCY,PAYMENTS TO CARERS,2102742200
08.11.2017,CHILDREN'S SERVICES,REDACTED PERSONAL DATA,682.3,ADOPTION PLACEMENTS & INTER AGENCY,PAYMENTS TO CARERS,2102742250
08.11.2017,CHILDREN'S SERVICES,REDACTED PERSONAL DATA,682.3,ADOPTION PLACEMENTS & INTER AGENCY,PAYMENTS TO CARERS,2102742262
08.11.2017,CHILDREN'S SERVICES,REDACTED PERSONAL DATA,695.04,ADOPTION PLACEMENTS & INTER AGENCY,PAYMENTS TO CARERS,2102742327
08.11.2017,CHILDREN'S SERVICES,REDACTED PERSONAL DATA,695.12,ADOPTION PLACEMENTS & INTER AGENCY,PAYMENTS TO CARERS,2102742193
08.11.2017,CHILDREN'S SERVICES,REDACTED PERSONAL DATA,705.24,ADOPTION PLACEMENTS & INTER AGENCY,PAYMENTS TO CARERS,2102742247
08.11.2017,CHILDREN'S SERVICES,REDACTED PERSONAL DATA,712.3,ADOPTION PLACEMENTS & INTER AGENCY,PAYMENTS TO CARERS,2102742241
08.11.2017,CHILDREN'S SERVICES,REDACTED PERSONAL DATA,717.14,ADOPTION PLACEMENTS & INTER AGENCY,PAYMENTS TO CARERS,2102742243
08.11.2017,CHILDREN'S SERVICES,REDACTED PERSONAL DATA,738.32,ADOPTION PLACEMENTS & INTER AGENCY,PAYMENTS TO CARERS,2102742282
08.11.2017,CHILDREN'S SERVICES,REDACTED PERSONAL DATA,767.68,ADOPTION PLACEMENTS & INTER AGENCY,PAYMENTS TO CARERS,2102742187
08.11.2017,CHILDREN'S SERVICES,REDACTED PERSONAL DATA,777.36,ADOPTION PLACEMENTS & INTER AGENCY,PAYMENTS TO CARERS,2102742296
08.11.2017,CHILDREN'S SERVICES,REDACTED PERSONAL DATA,854.28,ADOPTION PLACEMENTS & INTER AGENCY,PAYMENTS TO CARERS,2102742261
08.11.2017,CHILDREN'S SERVICES,REDACTED PERSONAL DATA,908,ADOPTION PLACEMENTS & INTER AGENCY,PAYMENTS TO CARERS,2102742244
08.11.2017,CHILDREN'S SERVICES,REDACTED PERSONAL DATA,"1,011.20",ADOPTION PLACEMENTS & INTER AGENCY,PAYMENTS TO CARERS,2102742218
08.11.2017,CHILDREN'S SERVICES,REDACTED PERSONAL DATA,"1,053.20",ADOPTION PLACEMENTS & INTER AGENCY,PAYMENTS TO CARERS,2102742329
08.11.2017,CHILDREN'S SERVICES,CATCHPOINT,280,ADOPTION REFORM GRANT (PART B),EXTERNAL AGENCIES AND BODIES,5902274059
08.11.2017,CHILDREN'S SERVICES,CATCHPOINT,720,ADOPTION REFORM GRANT (PART B),EXTERNAL AGENCIES AND BODIES,5902274056
08.11.2017,CHILDREN'S SERVICES,ASCENT FOSTERING AGENCY LTD,"5,690.67",AGENCY FOSTERING,EXTERNAL AGENCIES AND BODIES,2102742670
08.11.2017,CHILDREN'S SERVICES,CHILDREN FIRST FOSTERING AGENCY LTD,"2,750.00",AGENCY FOSTERING,EXTERNAL AGENCIES AND BODIES,2102742660
08.11.2017,CHILDREN'S SERVICES,CHILDREN FIRST FOSTERING AGENCY LTD,"3,875.00",AGENCY FOSTERING,EXTERNAL AGENCIES AND BODIES,2102742673
08.11.2017,CHILDREN'S SERVICES,CHILDREN FIRST FOSTERING AGENCY LTD,"3,981.33",AGENCY FOSTERING,EXTERNAL AGENCIES AND BODIES,2102742701
08.11.2017,CHILDREN'S SERVICES,CHILDREN OF ALL NATIONS LTD,"4,108.43",AGENCY FOSTERING,EXTERNAL AGENCIES AND BODIES,2102742697
08.11.2017,CHILDREN'S SERVICES,CHILDREN OF ALL NATIONS LTD,"4,108.43",AGENCY FOSTERING,EXTERNAL AGENCIES AND BODIES,2102742699
08.11.2017,CHILDREN'S SERVICES,CHILDREN OF ALL NATIONS LTD,"4,565.19",AGENCY FOSTERING,EXTERNAL AGENCIES AND BODIES,2102742693
08.11.2017,CHILDREN'S SERVICES,CHILDREN OF COLOUR,"3,472.00",AGENCY FOSTERING,EXTERNAL AGENCIES AND BODIES,2102742678
08.11.2017,CHILDREN'S SERVICES,CHILDREN OF COLOUR,"3,472.00",AGENCY FOSTERING,EXTERNAL AGENCIES AND BODIES,2102742703
08.11.2017,CHILDREN'S SERVICES,CHILDREN OF COLOUR,"3,558.80",AGENCY FOSTERING,EXTERNAL AGENCIES AND BODIES,2102742698
08.11.2017,CHILDREN'S SERVICES,CHILDREN OF COLOUR,"4,251.43",AGENCY FOSTERING,EXTERNAL AGENCIES AND BODIES,2102742685
08.11.2017,CHILDREN'S SERVICES,COMPASS FOSTERING LONDON LTD,"2,749.30",AGENCY FOSTERING,EXTERNAL AGENCIES AND BODIES,2102742664
08.11.2017,CHILDREN'S SERVICES,COMPASS FOSTERING LONDON LTD,"2,878.00",AGENCY FOSTERING,EXTERNAL AGENCIES AND BODIES,2102742700
08.11.2017,CHILDREN'S SERVICES,COMPASS FOSTERING LONDON LTD,"3,272.67",AGENCY FOSTERING,EXTERNAL AGENCIES AND BODIES,2102742665
08.11.2017,CHILDREN'S SERVICES,COMPASS FOSTERING LONDON LTD,"3,844.75",AGENCY FOSTERING,EXTERNAL AGENCIES AND BODIES,2102742681
08.11.2017,CHILDREN'S SERVICES,COMPASS FOSTERING SOUTH LTD,"3,077.99",AGENCY FOSTERING,EXTERNAL AGENCIES AND BODIES,2102742676
08.11.2017,CHILDREN'S SERVICES,CROHAM SERVICES FOR CHILDREN,"3,649.84",AGENCY FOSTERING,EXTERNAL AGENCIES AND BODIES,2102742662
08.11.2017,CHILDREN'S SERVICES,CROHAM SERVICES FOR CHILDREN,"3,649.85",AGENCY FOSTERING,EXTERNAL AGENCIES AND BODIES,2102742704
08.11.2017,CHILDREN'S SERVICES,ETHELBERT SPECIALIST HOMES,"3,678.11",AGENCY FOSTERING,EXTERNAL AGENCIES AND BODIES,2102742657
08.11.2017,CHILDREN'S SERVICES,ETHELBERT SPECIALIST HOMES,"3,678.11",AGENCY FOSTERING,EXTERNAL AGENCIES AND BODIES,2102742675
08.11.2017,CHILDREN'S SERVICES,ETHELBERT SPECIALIST HOMES,"3,678.11",AGENCY FOSTERING,EXTERNAL AGENCIES AND BODIES,2102742696
08.11.2017,CHILDREN'S SERVICES,ETHELBERT SPECIALIST HOMES,"3,882.40",AGENCY FOSTERING,EXTERNAL AGENCIES AND BODIES,2102742671
08.11.2017,CHILDREN'S SERVICES,ETHELBERT SPECIALIST HOMES,"3,882.40",AGENCY FOSTERING,EXTERNAL AGENCIES AND BODIES,2102742672
08.11.2017,CHILDREN'S SERVICES,FOSTERING SUPPORT GROUP LTD,"5,999.70",AGENCY FOSTERING,EXTERNAL AGENCIES AND BODIES,2102742695
08.11.2017,CHILDREN'S SERVICES,INTEGRATED SERVICES PROGRAMME,"5,176.38",AGENCY FOSTERING,EXTERNAL AGENCIES AND BODIES,2102742669
08.11.2017,CHILDREN'S SERVICES,INTEGRATED SERVICES PROGRAMME,"5,176.38",AGENCY FOSTERING,EXTERNAL AGENCIES AND BODIES,2102742674
08.11.2017,CHILDREN'S SERVICES,INTEGRATED SERVICES PROGRAMME,"5,176.38",AGENCY FOSTERING,EXTERNAL AGENCIES AND BODIES,2102742683
08.11.2017,CHILDREN'S SERVICES,INTEGRATED SERVICES PROGRAMME,"5,176.38",AGENCY FOSTERING,EXTERNAL AGENCIES AND BODIES,2102742684
08.11.2017,CHILDREN'S SERVICES,INTEGRATED SERVICES PROGRAMME,"5,336.34",AGENCY FOSTERING,EXTERNAL AGENCIES AND BODIES,2102742659
08.11.2017,CHILDREN'S SERVICES,INTEGRATED SERVICES PROGRAMME,"5,336.34",AGENCY FOSTERING,EXTERNAL AGENCIES AND BODIES,2102742666
08.11.2017,CHILDREN'S SERVICES,INTEGRATED SERVICES PROGRAMME,"5,336.34",AGENCY FOSTERING,EXTERNAL AGENCIES AND BODIES,2102742668
08.11.2017,CHILDREN'S SERVICES,INTEGRATED SERVICES PROGRAMME,"5,336.34",AGENCY FOSTERING,EXTERNAL AGENCIES AND BODIES,2102742692
08.11.2017,CHILDREN'S SERVICES,INTEGRATED SERVICES PROGRAMME,"6,443.35",AGENCY FOSTERING,EXTERNAL AGENCIES AND BODIES,2102742690
08.11.2017,CHILDREN'S SERVICES,KENT HOMEFINDING & FOSTERING LTD,"9,123.30",AGENCY FOSTERING,EXTERNAL AGENCIES AND BODIES,2102742679
08.11.2017,CHILDREN'S SERVICES,MOMENTS FOSTERING LTD,"4,495.00",AGENCY FOSTERING,EXTERNAL AGENCIES AND BODIES,2102742702
08.11.2017,CHILDREN'S SERVICES,MOMENTS FOSTERING LTD,"5,535.67",AGENCY FOSTERING,EXTERNAL AGENCIES AND BODIES,2102742688
08.11.2017,CHILDREN'S SERVICES,MOSAIC FOSTER CARE LTD,"6,642.68",AGENCY FOSTERING,EXTERNAL AGENCIES AND BODIES,2102742689
08.11.2017,CHILDREN'S SERVICES,MOSAIC FOSTER CARE LTD,"6,975.00",AGENCY FOSTERING,EXTERNAL AGENCIES AND BODIES,2102742687
08.11.2017,CHILDREN'S SERVICES,NEXT STEP FOSTERING SERVICES LTD,"4,349.30",AGENCY FOSTERING,EXTERNAL AGENCIES AND BODIES,2102742663
08.11.2017,CHILDREN'S SERVICES,RAINBOW FOSTERING SERVICES LTD,"3,377.76",AGENCY FOSTERING,EXTERNAL AGENCIES AND BODIES,2102742694
08.11.2017,CHILDREN'S SERVICES,SANKOFA CARE LTD,"3,593.21",AGENCY FOSTERING,EXTERNAL AGENCIES AND BODIES,2102742658
08.11.2017,CHILDREN'S SERVICES,SANKOFA CARE LTD,"3,593.21",AGENCY FOSTERING,EXTERNAL AGENCIES AND BODIES,2102742680
08.11.2017,CHILDREN'S SERVICES,SANKOFA CARE LTD,"3,929.87",AGENCY FOSTERING,EXTERNAL AGENCIES AND BODIES,2102742667
08.11.2017,CHILDREN'S SERVICES,SANKOFA CARE LTD,"4,538.71",AGENCY FOSTERING,EXTERNAL AGENCIES AND BODIES,2102742677
08.11.2017,CHILDREN'S SERVICES,SYNERGY FOSTERING LTD,"3,671.27",AGENCY FOSTERING,EXTERNAL AGENCIES AND BODIES,2102742691
08.11.2017,CHILDREN'S SERVICES,SYNERGY FOSTERING LTD,"3,671.29",AGENCY FOSTERING,EXTERNAL AGENCIES AND BODIES,2102742682
08.11.2017,CHILDREN'S SERVICES,TIME FOR CHILDREN LTD,"3,100.00",AGENCY FOSTERING,EXTERNAL AGENCIES AND BODIES,2102742661
08.11.2017,CHILDREN'S SERVICES,TREASURE HOUSE (LONDON) CIC,"1,890.00",ALTERNATIVE PROVISION,EXTERNAL AGENCIES AND BODIES,5902275785
08.11.2017,CHILDREN'S SERVICES,REDACTED PERSONAL DATA,"-1,425.21",DISABILITY & HIV,PAYMENTS TO CARERS,2102742869
08.11.2017,CHILDREN'S SERVICES,REDACTED PERSONAL DATA,-460.61,DISABILITY & HIV,PAYMENTS TO CARERS,2102743369
08.11.2017,CHILDREN'S SERVICES,REDACTED PERSONAL DATA,-460.61,DISABILITY & HIV,PAYMENTS TO CARERS,2102743376
08.11.2017,CHILDREN'S SERVICES,REDACTED PERSONAL DATA,-380.62,DISABILITY & HIV,PAYMENTS TO CARERS,2102742878
08.11.2017,CHILDREN'S SERVICES,REDACTED PERSONAL DATA,-345.46,DISABILITY & HIV,PAYMENTS TO CARERS,2102743382
08.11.2017,CHILDREN'S SERVICES,REDACTED PERSONAL DATA,300,DISABILITY & HIV,ADDITIONAL PAYMENTS TO AGENCIES/CARERS,2102742813
08.11.2017,CHILDREN'S SERVICES,REDACTED PERSONAL DATA,300,DISABILITY & HIV,ADDITIONAL PAYMENTS TO AGENCIES/CARERS,2102742890
08.11.2017,CHILDREN'S SERVICES,REDACTED PERSONAL DATA,300,DISABILITY & HIV,OTHER PAYMENTS FOR CLIENTS,2102742954
08.11.2017,CHILDREN'S SERVICES,REDACTED PERSONAL DATA,380.63,DISABILITY & HIV,PAYMENTS TO CARERS,2102742915
08.11.2017,CHILDREN'S SERVICES,REDACTED PERSONAL DATA,627.1,DISABILITY & HIV,PAYMENTS TO CARERS,2102742886
08.11.2017,CHILDREN'S SERVICES,REDACTED PERSONAL DATA,635.34,DISABILITY & HIV,PAYMENTS TO CARERS,2102742746
08.11.2017,CHILDREN'S SERVICES,REDACTED PERSONAL DATA,635.34,DISABILITY & HIV,PAYMENTS TO CARERS,2102742795
08.11.2017,CHILDREN'S SERVICES,REDACTED PERSONAL DATA,635.34,DISABILITY & HIV,PAYMENTS TO CARERS,2102742803
08.11.2017,CHILDREN'S SERVICES,REDACTED PERSONAL DATA,635.34,DISABILITY & HIV,PAYMENTS TO CARERS,2102742812
08.11.2017,CHILDREN'S SERVICES,REDACTED PERSONAL DATA,635.34,DISABILITY & HIV,PAYMENTS TO CARERS,2102742838
08.11.2017,CHILDREN'S SERVICES,REDACTED PERSONAL DATA,635.34,DISABILITY & HIV,PAYMENTS TO CARERS,2102742958
08.11.2017,CHILDREN'S SERVICES,REDACTED PERSONAL DATA,665.34,DISABILITY & HIV,PAYMENTS TO CARERS,2102742783
08.11.2017,CHILDREN'S SERVICES,REDACTED PERSONAL DATA,665.34,DISABILITY & HIV,PAYMENTS TO CARERS,2102742791
08.11.2017,CHILDREN'S SERVICES,REDACTED PERSONAL DATA,665.34,DISABILITY & HIV,PAYMENTS TO CARERS,2102742809
08.11.2017,CHILDREN'S SERVICES,REDACTED PERSONAL DATA,665.34,DISABILITY & HIV,PAYMENTS TO CARERS,2102742820
08.11.2017,CHILDREN'S SERVICES,REDACTED PERSONAL DATA,665.34,DISABILITY & HIV,PAYMENTS TO CARERS,2102742930
08.11.2017,CHILDREN'S SERVICES,REDACTED PERSONAL DATA,665.34,DISABILITY & HIV,PAYMENTS TO CARERS,2102742951
08.11.2017,CHILDREN'S SERVICES,REDACTED PERSONAL DATA,665.34,DISABILITY & HIV,PAYMENTS TO CARERS,2102742964
08.11.2017,CHILDREN'S SERVICES,REDACTED PERSONAL DATA,682.3,DISABILITY & HIV,PAYMENTS TO CARERS,2102742752
08.11.2017,CHILDREN'S SERVICES,REDACTED PERSONAL DATA,682.3,DISABILITY & HIV,PAYMENTS TO CARERS,2102742767
08.11.2017,CHILDREN'S SERVICES,REDACTED PERSONAL DATA,682.3,DISABILITY & HIV,PAYMENTS TO CARERS,2102742785
08.11.2017,CHILDREN'S SERVICES,REDACTED PERSONAL DATA,682.3,DISABILITY & HIV,PAYMENTS TO CARERS,2102742787
08.11.2017,CHILDREN'S SERVICES,REDACTED PERSONAL DATA,682.3,DISABILITY & HIV,PAYMENTS TO CARERS,2102742800
08.11.2017,CHILDREN'S SERVICES,REDACTED PERSONAL DATA,682.3,DISABILITY & HIV,PAYMENTS TO CARERS,2102742831
08.11.2017,CHILDREN'S SERVICES,REDACTED PERSONAL DATA,682.3,DISABILITY & HIV,PAYMENTS TO CARERS,2102742847
08.11.2017,CHILDREN'S SERVICES,REDACTED PERSONAL DATA,682.3,DISABILITY & HIV,PAYMENTS TO CARERS,2102742854
08.11.2017,CHILDREN'S SERVICES,REDACTED PERSONAL DATA,682.3,DISABILITY & HIV,PAYMENTS TO CARERS,2102742888
08.11.2017,CHILDREN'S SERVICES,REDACTED PERSONAL DATA,682.3,DISABILITY & HIV,PAYMENTS TO CARERS,2102742921
08.11.2017,CHILDREN'S SERVICES,REDACTED PERSONAL DATA,682.3,DISABILITY & HIV,PAYMENTS TO CARERS,2102742945
08.11.2017,CHILDREN'S SERVICES,REDACTED PERSONAL DATA,712.3,DISABILITY & HIV,PAYMENTS TO CARERS,2102742789
08.11.2017,CHILDREN'S SERVICES,REDACTED PERSONAL DATA,712.3,DISABILITY & HIV,PAYMENTS TO CARERS,2102742801
08.11.2017,CHILDREN'S SERVICES,REDACTED PERSONAL DATA,712.3,DISABILITY & HIV,PAYMENTS TO CARERS,2102742810
08.11.2017,CHILDREN'S SERVICES,REDACTED PERSONAL DATA,712.3,DISABILITY & HIV,PAYMENTS TO CARERS,2102742844
08.11.2017,CHILDREN'S SERVICES,REDACTED PERSONAL DATA,712.3,DISABILITY & HIV,PAYMENTS TO CARERS,2102742860
08.11.2017,CHILDREN'S SERVICES,REDACTED PERSONAL DATA,712.3,DISABILITY & HIV,PAYMENTS TO CARERS,2102742863
08.11.2017,CHILDREN'S SERVICES,REDACTED PERSONAL DATA,712.3,DISABILITY & HIV,PAYMENTS TO CARERS,2102742873
08.11.2017,CHILDREN'S SERVICES,REDACTED PERSONAL DATA,712.3,DISABILITY & HIV,PAYMENTS TO CARERS,2102742875
08.11.2017,CHILDREN'S SERVICES,REDACTED PERSONAL DATA,712.3,DISABILITY & HIV,PAYMENTS TO CARERS,2102742902
08.11.2017,CHILDREN'S SERVICES,REDACTED PERSONAL DATA,712.3,DISABILITY & HIV,PAYMENTS TO CARERS,2102742910
08.11.2017,CHILDREN'S SERVICES,REDACTED PERSONAL DATA,712.3,DISABILITY & HIV,PAYMENTS TO CARERS,2102742947
08.11.2017,CHILDREN'S SERVICES,REDACTED PERSONAL DATA,742.3,DISABILITY & HIV,PAYMENTS TO CARERS,2102742772
08.11.2017,CHILDREN'S SERVICES,REDACTED PERSONAL DATA,768.12,DISABILITY & HIV,PAYMENTS TO CARERS,2102742836
08.11.2017,CHILDREN'S SERVICES,REDACTED PERSONAL DATA,768.12,DISABILITY & HIV,PAYMENTS TO CARERS,2102742841
08.11.2017,CHILDREN'S SERVICES,REDACTED PERSONAL DATA,776.08,DISABILITY & HIV,PAYMENTS TO CARERS,2102742749
08.11.2017,CHILDREN'S SERVICES,REDACTED PERSONAL DATA,776.08,DISABILITY & HIV,PAYMENTS TO CARERS,2102742766
08.11.2017,CHILDREN'S SERVICES,REDACTED PERSONAL DATA,776.08,DISABILITY & HIV,PAYMENTS TO CARERS,2102742771
08.11.2017,CHILDREN'S SERVICES,REDACTED PERSONAL DATA,776.08,DISABILITY & HIV,PAYMENTS TO CARERS,2102742926
08.11.2017,CHILDREN'S SERVICES,REDACTED PERSONAL DATA,798.12,DISABILITY & HIV,PAYMENTS TO CARERS,2102742744
08.11.2017,CHILDREN'S SERVICES,REDACTED PERSONAL DATA,798.12,DISABILITY & HIV,PAYMENTS TO CARERS,2102742754
08.11.2017,CHILDREN'S SERVICES,REDACTED PERSONAL DATA,798.12,DISABILITY & HIV,PAYMENTS TO CARERS,2102742760
08.11.2017,CHILDREN'S SERVICES,REDACTED PERSONAL DATA,798.12,DISABILITY & HIV,PAYMENTS TO CARERS,2102742774
08.11.2017,CHILDREN'S SERVICES,REDACTED PERSONAL DATA,798.12,DISABILITY & HIV,PAYMENTS TO CARERS,2102742792
08.11.2017,CHILDREN'S SERVICES,REDACTED PERSONAL DATA,798.12,DISABILITY & HIV,PAYMENTS TO CARERS,2102742850
08.11.2017,CHILDREN'S SERVICES,REDACTED PERSONAL DATA,798.12,DISABILITY & HIV,PAYMENTS TO CARERS,2102742911
08.11.2017,CHILDREN'S SERVICES,REDACTED PERSONAL DATA,798.12,DISABILITY & HIV,PAYMENTS TO CARERS,2102742916
08.11.2017,CHILDREN'S SERVICES,REDACTED PERSONAL DATA,798.12,DISABILITY & HIV,PAYMENTS TO CARERS,2102742918
08.11.2017,CHILDREN'S SERVICES,REDACTED PERSONAL DATA,798.12,DISABILITY & HIV,PAYMENTS TO CARERS,2102742919
08.11.2017,CHILDREN'S SERVICES,REDACTED PERSONAL DATA,798.12,DISABILITY & HIV,PAYMENTS TO CARERS,2102742946
08.11.2017,CHILDREN'S SERVICES,REDACTED PERSONAL DATA,798.12,DISABILITY & HIV,PAYMENTS TO CARERS,2102742961
08.11.2017,CHILDREN'S SERVICES,REDACTED PERSONAL DATA,806.08,DISABILITY & HIV,PAYMENTS TO CARERS,2102742750
08.11.2017,CHILDREN'S SERVICES,REDACTED PERSONAL DATA,806.08,DISABILITY & HIV,PAYMENTS TO CARERS,2102742757
08.11.2017,CHILDREN'S SERVICES,REDACTED PERSONAL DATA,806.08,DISABILITY & HIV,PAYMENTS TO CARERS,2102742759
08.11.2017,CHILDREN'S SERVICES,REDACTED PERSONAL DATA,806.08,DISABILITY & HIV,PAYMENTS TO CARERS,2102742781
08.11.2017,CHILDREN'S SERVICES,REDACTED PERSONAL DATA,806.08,DISABILITY & HIV,PAYMENTS TO CARERS,2102742786
08.11.2017,CHILDREN'S SERVICES,REDACTED PERSONAL DATA,806.08,DISABILITY & HIV,PAYMENTS TO CARERS,2102742818
08.11.2017,CHILDREN'S SERVICES,REDACTED PERSONAL DATA,806.08,DISABILITY & HIV,PAYMENTS TO CARERS,2102742822
08.11.2017,CHILDREN'S SERVICES,REDACTED PERSONAL DATA,806.08,DISABILITY & HIV,PAYMENTS TO CARERS,2102742826
08.11.2017,CHILDREN'S SERVICES,REDACTED PERSONAL DATA,806.08,DISABILITY & HIV,PAYMENTS TO CARERS,2102742851
08.11.2017,CHILDREN'S SERVICES,REDACTED PERSONAL DATA,806.08,DISABILITY & HIV,PAYMENTS TO CARERS,2102742853
08.11.2017,CHILDREN'S SERVICES,REDACTED PERSONAL DATA,806.08,DISABILITY & HIV,PAYMENTS TO CARERS,2102742881
08.11.2017,CHILDREN'S SERVICES,REDACTED PERSONAL DATA,806.08,DISABILITY & HIV,PAYMENTS TO CARERS,2102742891
08.11.2017,CHILDREN'S SERVICES,REDACTED PERSONAL DATA,806.08,DISABILITY & HIV,PAYMENTS TO CARERS,2102742914
08.11.2017,CHILDREN'S SERVICES,REDACTED PERSONAL DATA,806.08,DISABILITY & HIV,PAYMENTS TO CARERS,2102742935
08.11.2017,CHILDREN'S SERVICES,REDACTED PERSONAL DATA,806.08,DISABILITY & HIV,PAYMENTS TO CARERS,2102742943
08.11.2017,CHILDREN'S SERVICES,REDACTED PERSONAL DATA,806.08,DISABILITY & HIV,PAYMENTS TO CARERS,2102742953
08.11.2017,CHILDREN'S SERVICES,REDACTED PERSONAL DATA,835.34,DISABILITY & HIV,PAYMENTS TO CARERS,2102742790
08.11.2017,CHILDREN'S SERVICES,REDACTED PERSONAL DATA,841.24,DISABILITY & HIV,PAYMENTS TO CARERS,2102742909
08.11.2017,CHILDREN'S SERVICES,REDACTED PERSONAL DATA,858.12,DISABILITY & HIV,PAYMENTS TO CARERS,2102742832
08.11.2017,CHILDREN'S SERVICES,REDACTED PERSONAL DATA,858.12,DISABILITY & HIV,PAYMENTS TO CARERS,2102742868
08.11.2017,CHILDREN'S SERVICES,REDACTED PERSONAL DATA,858.12,DISABILITY & HIV,PAYMENTS TO CARERS,2102742897
08.11.2017,CHILDREN'S SERVICES,REDACTED PERSONAL DATA,865.34,DISABILITY & HIV,PAYMENTS TO CARERS,2102742834
08.11.2017,CHILDREN'S SERVICES,REDACTED PERSONAL DATA,882.3,DISABILITY & HIV,PAYMENTS TO CARERS,2102742748
08.11.2017,CHILDREN'S SERVICES,REDACTED PERSONAL DATA,882.3,DISABILITY & HIV,PAYMENTS TO CARERS,2102742768
08.11.2017,CHILDREN'S SERVICES,REDACTED PERSONAL DATA,882.3,DISABILITY & HIV,PAYMENTS TO CARERS,2102742864
08.11.2017,CHILDREN'S SERVICES,REDACTED PERSONAL DATA,882.3,DISABILITY & HIV,PAYMENTS TO CARERS,2102742879
08.11.2017,CHILDREN'S SERVICES,REDACTED PERSONAL DATA,882.3,DISABILITY & HIV,PAYMENTS TO CARERS,2102742942
08.11.2017,CHILDREN'S SERVICES,REDACTED PERSONAL DATA,888.12,DISABILITY & HIV,PAYMENTS TO CARERS,2102742751
08.11.2017,CHILDREN'S SERVICES,REDACTED PERSONAL DATA,888.12,DISABILITY & HIV,PAYMENTS TO CARERS,2102742758
08.11.2017,CHILDREN'S SERVICES,REDACTED PERSONAL DATA,888.12,DISABILITY & HIV,PAYMENTS TO CARERS,2102742778
08.11.2017,CHILDREN'S SERVICES,REDACTED PERSONAL DATA,888.12,DISABILITY & HIV,PAYMENTS TO CARERS,2102742780
08.11.2017,CHILDREN'S SERVICES,REDACTED PERSONAL DATA,888.12,DISABILITY & HIV,PAYMENTS TO CARERS,2102742782
08.11.2017,CHILDREN'S SERVICES,REDACTED PERSONAL DATA,888.12,DISABILITY & HIV,PAYMENTS TO CARERS,2102742798
08.11.2017,CHILDREN'S SERVICES,REDACTED PERSONAL DATA,888.12,DISABILITY & HIV,PAYMENTS TO CARERS,2102742799
08.11.2017,CHILDREN'S SERVICES,REDACTED PERSONAL DATA,888.12,DISABILITY & HIV,PAYMENTS TO CARERS,2102742807
08.11.2017,CHILDREN'S SERVICES,REDACTED PERSONAL DATA,888.12,DISABILITY & HIV,PAYMENTS TO CARERS,2102742814
08.11.2017,CHILDREN'S SERVICES,REDACTED PERSONAL DATA,888.12,DISABILITY & HIV,PAYMENTS TO CARERS,2102742817
08.11.2017,CHILDREN'S SERVICES,REDACTED PERSONAL DATA,888.12,DISABILITY & HIV,PAYMENTS TO CARERS,2102742821
08.11.2017,CHILDREN'S SERVICES,REDACTED PERSONAL DATA,888.12,DISABILITY & HIV,PAYMENTS TO CARERS,2102742823
08.11.2017,CHILDREN'S SERVICES,REDACTED PERSONAL DATA,888.12,DISABILITY & HIV,PAYMENTS TO CARERS,2102742858
08.11.2017,CHILDREN'S SERVICES,REDACTED PERSONAL DATA,888.12,DISABILITY & HIV,PAYMENTS TO CARERS,2102742865
08.11.2017,CHILDREN'S SERVICES,REDACTED PERSONAL DATA,888.12,DISABILITY & HIV,PAYMENTS TO CARERS,2102742880
08.11.2017,CHILDREN'S SERVICES,REDACTED PERSONAL DATA,888.12,DISABILITY & HIV,PAYMENTS TO CARERS,2102742892
08.11.2017,CHILDREN'S SERVICES,REDACTED PERSONAL DATA,888.12,DISABILITY & HIV,PAYMENTS TO CARERS,2102742922
08.11.2017,CHILDREN'S SERVICES,REDACTED PERSONAL DATA,888.12,DISABILITY & HIV,PAYMENTS TO CARERS,2102742923
08.11.2017,CHILDREN'S SERVICES,REDACTED PERSONAL DATA,888.12,DISABILITY & HIV,PAYMENTS TO CARERS,2102742927
08.11.2017,CHILDREN'S SERVICES,REDACTED PERSONAL DATA,888.12,DISABILITY & HIV,PAYMENTS TO CARERS,2102742936
08.11.2017,CHILDREN'S SERVICES,REDACTED PERSONAL DATA,888.12,DISABILITY & HIV,PAYMENTS TO CARERS,2102742941
08.11.2017,CHILDREN'S SERVICES,REDACTED PERSONAL DATA,888.12,DISABILITY & HIV,PAYMENTS TO CARERS,2102742952
08.11.2017,CHILDREN'S SERVICES,REDACTED PERSONAL DATA,888.12,DISABILITY & HIV,PAYMENTS TO CARERS,2102742955
08.11.2017,CHILDREN'S SERVICES,REDACTED PERSONAL DATA,888.12,DISABILITY & HIV,PAYMENTS TO CARERS,2102742960
08.11.2017,CHILDREN'S SERVICES,REDACTED PERSONAL DATA,888.12,DISABILITY & HIV,PAYMENTS TO CARERS,2102742962
08.11.2017,CHILDREN'S SERVICES,REDACTED PERSONAL DATA,912.3,DISABILITY & HIV,PAYMENTS TO CARERS,2102742764
08.11.2017,CHILDREN'S SERVICES,REDACTED PERSONAL DATA,912.3,DISABILITY & HIV,PAYMENTS TO CARERS,2102742765
08.11.2017,CHILDREN'S SERVICES,REDACTED PERSONAL DATA,912.3,DISABILITY & HIV,PAYMENTS TO CARERS,2102742804
08.11.2017,CHILDREN'S SERVICES,REDACTED PERSONAL DATA,912.3,DISABILITY & HIV,PAYMENTS TO CARERS,2102742848
08.11.2017,CHILDREN'S SERVICES,REDACTED PERSONAL DATA,912.3,DISABILITY & HIV,PAYMENTS TO CARERS,2102742855
08.11.2017,CHILDREN'S SERVICES,REDACTED PERSONAL DATA,912.3,DISABILITY & HIV,PAYMENTS TO CARERS,2102742861
08.11.2017,CHILDREN'S SERVICES,REDACTED PERSONAL DATA,912.3,DISABILITY & HIV,PAYMENTS TO CARERS,2102742867
08.11.2017,CHILDREN'S SERVICES,REDACTED PERSONAL DATA,912.3,DISABILITY & HIV,PAYMENTS TO CARERS,2102742874
08.11.2017,CHILDREN'S SERVICES,REDACTED PERSONAL DATA,912.3,DISABILITY & HIV,PAYMENTS TO CARERS,2102742896
08.11.2017,CHILDREN'S SERVICES,REDACTED PERSONAL DATA,912.3,DISABILITY & HIV,PAYMENTS TO CARERS,2102742900
08.11.2017,CHILDREN'S SERVICES,REDACTED PERSONAL DATA,912.3,DISABILITY & HIV,PAYMENTS TO CARERS,2102742908
08.11.2017,CHILDREN'S SERVICES,REDACTED PERSONAL DATA,912.3,DISABILITY & HIV,PAYMENTS TO CARERS,2102742929
08.11.2017,CHILDREN'S SERVICES,REDACTED PERSONAL DATA,912.3,DISABILITY & HIV,PAYMENTS TO CARERS,2102742959
08.11.2017,CHILDREN'S SERVICES,REDACTED PERSONAL DATA,991.42,DISABILITY & HIV,PAYMENTS TO CARERS,2102742907
08.11.2017,CHILDREN'S SERVICES,REDACTED PERSONAL DATA,991.48,DISABILITY & HIV,PAYMENTS TO CARERS,2102742827
08.11.2017,CHILDREN'S SERVICES,REDACTED PERSONAL DATA,"1,008.12",DISABILITY & HIV,PAYMENTS TO CARERS,2102742899
08.11.2017,CHILDREN'S SERVICES,REDACTED PERSONAL DATA,"1,076.08",DISABILITY & HIV,PAYMENTS TO CARERS,2102742745
08.11.2017,CHILDREN'S SERVICES,REDACTED PERSONAL DATA,"1,076.08",DISABILITY & HIV,PAYMENTS TO CARERS,2102742756
08.11.2017,CHILDREN'S SERVICES,REDACTED PERSONAL DATA,"1,076.08",DISABILITY & HIV,PAYMENTS TO CARERS,2102742839
08.11.2017,CHILDREN'S SERVICES,REDACTED PERSONAL DATA,"1,076.08",DISABILITY & HIV,PAYMENTS TO CARERS,2102742884
08.11.2017,CHILDREN'S SERVICES,REDACTED PERSONAL DATA,"1,076.08",DISABILITY & HIV,PAYMENTS TO CARERS,2102742940
08.11.2017,CHILDREN'S SERVICES,REDACTED PERSONAL DATA,"1,098.12",DISABILITY & HIV,PAYMENTS TO CARERS,2102742808
08.11.2017,CHILDREN'S SERVICES,REDACTED PERSONAL DATA,"1,098.12",DISABILITY & HIV,PAYMENTS TO CARERS,2102742843
08.11.2017,CHILDREN'S SERVICES,REDACTED PERSONAL DATA,"1,098.12",DISABILITY & HIV,PAYMENTS TO CARERS,2102742852
08.11.2017,CHILDREN'S SERVICES,REDACTED PERSONAL DATA,"1,098.12",DISABILITY & HIV,PAYMENTS TO CARERS,2102742906
08.11.2017,CHILDREN'S SERVICES,REDACTED PERSONAL DATA,"1,106.08",DISABILITY & HIV,PAYMENTS TO CARERS,2102742747
08.11.2017,CHILDREN'S SERVICES,REDACTED PERSONAL DATA,"1,106.08",DISABILITY & HIV,PAYMENTS TO CARERS,2102742761
08.11.2017,CHILDREN'S SERVICES,REDACTED PERSONAL DATA,"1,106.08",DISABILITY & HIV,PAYMENTS TO CARERS,2102742770
08.11.2017,CHILDREN'S SERVICES,REDACTED PERSONAL DATA,"1,106.08",DISABILITY & HIV,PAYMENTS TO CARERS,2102742784
08.11.2017,CHILDREN'S SERVICES,REDACTED PERSONAL DATA,"1,106.08",DISABILITY & HIV,PAYMENTS TO CARERS,2102742788
08.11.2017,CHILDREN'S SERVICES,REDACTED PERSONAL DATA,"1,106.08",DISABILITY & HIV,PAYMENTS TO CARERS,2102742805
08.11.2017,CHILDREN'S SERVICES,REDACTED PERSONAL DATA,"1,106.08",DISABILITY & HIV,PAYMENTS TO CARERS,2102742815
08.11.2017,CHILDREN'S SERVICES,REDACTED PERSONAL DATA,"1,106.08",DISABILITY & HIV,PAYMENTS TO CARERS,2102742819
08.11.2017,CHILDREN'S SERVICES,REDACTED PERSONAL DATA,"1,106.08",DISABILITY & HIV,PAYMENTS TO CARERS,2102742830
08.11.2017,CHILDREN'S SERVICES,REDACTED PERSONAL DATA,"1,106.08",DISABILITY & HIV,PAYMENTS TO CARERS,2102742833
08.11.2017,CHILDREN'S SERVICES,REDACTED PERSONAL DATA,"1,106.08",DISABILITY & HIV,PAYMENTS TO CARERS,2102742840
08.11.2017,CHILDREN'S SERVICES,REDACTED PERSONAL DATA,"1,106.08",DISABILITY & HIV,PAYMENTS TO CARERS,2102742845
08.11.2017,CHILDREN'S SERVICES,REDACTED PERSONAL DATA,"1,106.08",DISABILITY & HIV,PAYMENTS TO CARERS,2102742862
08.11.2017,CHILDREN'S SERVICES,REDACTED PERSONAL DATA,"1,106.08",DISABILITY & HIV,PAYMENTS TO CARERS,2102742866
08.11.2017,CHILDREN'S SERVICES,REDACTED PERSONAL DATA,"1,106.08",DISABILITY & HIV,PAYMENTS TO CARERS,2102742872
08.11.2017,CHILDREN'S SERVICES,REDACTED PERSONAL DATA,"1,106.08",DISABILITY & HIV,PAYMENTS TO CARERS,2102742876
08.11.2017,CHILDREN'S SERVICES,REDACTED PERSONAL DATA,"1,106.08",DISABILITY & HIV,PAYMENTS TO CARERS,2102742877
08.11.2017,CHILDREN'S SERVICES,REDACTED PERSONAL DATA,"1,106.08",DISABILITY & HIV,PAYMENTS TO CARERS,2102742882
08.11.2017,CHILDREN'S SERVICES,REDACTED PERSONAL DATA,"1,106.08",DISABILITY & HIV,PAYMENTS TO CARERS,2102742887
08.11.2017,CHILDREN'S SERVICES,REDACTED PERSONAL DATA,"1,106.08",DISABILITY & HIV,PAYMENTS TO CARERS,2102742903
08.11.2017,CHILDREN'S SERVICES,REDACTED PERSONAL DATA,"1,106.08",DISABILITY & HIV,PAYMENTS TO CARERS,2102742917
08.11.2017,CHILDREN'S SERVICES,REDACTED PERSONAL DATA,"1,106.08",DISABILITY & HIV,PAYMENTS TO CARERS,2102742925
08.11.2017,CHILDREN'S SERVICES,REDACTED PERSONAL DATA,"1,106.08",DISABILITY & HIV,PAYMENTS TO CARERS,2102742928
08.11.2017,CHILDREN'S SERVICES,REDACTED PERSONAL DATA,"1,106.08",DISABILITY & HIV,PAYMENTS TO CARERS,2102742931
08.11.2017,CHILDREN'S SERVICES,REDACTED PERSONAL DATA,"1,106.08",DISABILITY & HIV,PAYMENTS TO CARERS,2102742934
08.11.2017,CHILDREN'S SERVICES,REDACTED PERSONAL DATA,"1,106.08",DISABILITY & HIV,PAYMENTS TO CARERS,2102742938
08.11.2017,CHILDREN'S SERVICES,REDACTED PERSONAL DATA,"1,106.08",DISABILITY & HIV,PAYMENTS TO CARERS,2102742939
08.11.2017,CHILDREN'S SERVICES,REDACTED PERSONAL DATA,"1,106.08",DISABILITY & HIV,PAYMENTS TO CARERS,2102742949
08.11.2017,CHILDREN'S SERVICES,REDACTED PERSONAL DATA,"1,141.24",DISABILITY & HIV,PAYMENTS TO CARERS,2102742901
08.11.2017,CHILDREN'S SERVICES,REDACTED PERSONAL DATA,"1,154.28",DISABILITY & HIV,PAYMENTS TO CARERS,2102742842
08.11.2017,CHILDREN'S SERVICES,REDACTED PERSONAL DATA,"1,155.20",DISABILITY & HIV,PAYMENTS TO CARERS,2102742811
08.11.2017,CHILDREN'S SERVICES,REDACTED PERSONAL DATA,"1,158.12",DISABILITY & HIV,PAYMENTS TO CARERS,2102742755
08.11.2017,CHILDREN'S SERVICES,REDACTED PERSONAL DATA,"1,158.12",DISABILITY & HIV,PAYMENTS TO CARERS,2102742793
08.11.2017,CHILDREN'S SERVICES,REDACTED PERSONAL DATA,"1,158.12",DISABILITY & HIV,PAYMENTS TO CARERS,2102742802
08.11.2017,CHILDREN'S SERVICES,REDACTED PERSONAL DATA,"1,158.12",DISABILITY & HIV,PAYMENTS TO CARERS,2102742846
08.11.2017,CHILDREN'S SERVICES,REDACTED PERSONAL DATA,"1,158.12",DISABILITY & HIV,PAYMENTS TO CARERS,2102742933
08.11.2017,CHILDREN'S SERVICES,REDACTED PERSONAL DATA,"1,188.12",DISABILITY & HIV,PAYMENTS TO CARERS,2102742806
08.11.2017,CHILDREN'S SERVICES,REDACTED PERSONAL DATA,"1,188.12",DISABILITY & HIV,PAYMENTS TO CARERS,2102742829
08.11.2017,CHILDREN'S SERVICES,REDACTED PERSONAL DATA,"1,188.12",DISABILITY & HIV,PAYMENTS TO CARERS,2102742913
08.11.2017,CHILDREN'S SERVICES,REDACTED PERSONAL DATA,"1,224.20",DISABILITY & HIV,PAYMENTS TO CARERS,2102742904
08.11.2017,CHILDREN'S SERVICES,REDACTED PERSONAL DATA,"1,249.76",DISABILITY & HIV,PAYMENTS TO CARERS,2102742956
08.11.2017,CHILDREN'S SERVICES,REDACTED PERSONAL DATA,"1,266.68",DISABILITY & HIV,PAYMENTS TO CARERS,2102743377
08.11.2017,CHILDREN'S SERVICES,REDACTED PERSONAL DATA,"1,291.42",DISABILITY & HIV,PAYMENTS TO CARERS,2102742893
08.11.2017,CHILDREN'S SERVICES,REDACTED PERSONAL DATA,"1,294.60",DISABILITY & HIV,PAYMENTS TO CARERS,2102742859
08.11.2017,CHILDREN'S SERVICES,REDACTED PERSONAL DATA,"1,394.60",DISABILITY & HIV,PAYMENTS TO CARERS,2102742837
08.11.2017,CHILDREN'S SERVICES,REDACTED PERSONAL DATA,"1,406.08",DISABILITY & HIV,PAYMENTS TO CARERS,2102742828
08.11.2017,CHILDREN'S SERVICES,REDACTED PERSONAL DATA,"1,436.28",DISABILITY & HIV,PAYMENTS TO CARERS,2102742937
08.11.2017,CHILDREN'S SERVICES,REDACTED PERSONAL DATA,"1,488.12",DISABILITY & HIV,PAYMENTS TO CARERS,2102742753
08.11.2017,CHILDREN'S SERVICES,REDACTED PERSONAL DATA,"1,536.00",DISABILITY & HIV,PAYMENTS TO CARERS,2102742775
08.11.2017,CHILDREN'S SERVICES,REDACTED PERSONAL DATA,"1,591.42",DISABILITY & HIV,PAYMENTS TO CARERS,2102742797
08.11.2017,CHILDREN'S SERVICES,REDACTED PERSONAL DATA,300,FRIENDS & FAMILY FOSTERING,PAYMENTS TO CARERS,2102742965
08.11.2017,CHILDREN'S SERVICES,REDACTED PERSONAL DATA,335.34,FRIENDS & FAMILY FOSTERING,PAYMENTS TO CARERS,2102742974
08.11.2017,CHILDREN'S SERVICES,REDACTED PERSONAL DATA,335.34,FRIENDS & FAMILY FOSTERING,PAYMENTS TO CARERS,2102742991
08.11.2017,CHILDREN'S SERVICES,REDACTED PERSONAL DATA,382.3,FRIENDS & FAMILY FOSTERING,PAYMENTS TO CARERS,2102742979
08.11.2017,CHILDREN'S SERVICES,REDACTED PERSONAL DATA,382.3,FRIENDS & FAMILY FOSTERING,PAYMENTS TO CARERS,2102742983
08.11.2017,CHILDREN'S SERVICES,REDACTED PERSONAL DATA,382.3,FRIENDS & FAMILY FOSTERING,PAYMENTS TO CARERS,2102742993
08.11.2017,CHILDREN'S SERVICES,REDACTED PERSONAL DATA,382.3,FRIENDS & FAMILY FOSTERING,PAYMENTS TO CARERS,2102742999
08.11.2017,CHILDREN'S SERVICES,REDACTED PERSONAL DATA,476.08,FRIENDS & FAMILY FOSTERING,PAYMENTS TO CARERS,2102742970
08.11.2017,CHILDREN'S SERVICES,REDACTED PERSONAL DATA,476.08,FRIENDS & FAMILY FOSTERING,PAYMENTS TO CARERS,2102742982
08.11.2017,CHILDREN'S SERVICES,REDACTED PERSONAL DATA,476.08,FRIENDS & FAMILY FOSTERING,PAYMENTS TO CARERS,2102742985
08.11.2017,CHILDREN'S SERVICES,REDACTED PERSONAL DATA,476.08,FRIENDS & FAMILY FOSTERING,PAYMENTS TO CARERS,2102742986
08.11.2017,CHILDREN'S SERVICES,REDACTED PERSONAL DATA,476.08,FRIENDS & FAMILY FOSTERING,PAYMENTS TO CARERS,2102742990
08.11.2017,CHILDREN'S SERVICES,REDACTED PERSONAL DATA,476.08,FRIENDS & FAMILY FOSTERING,PAYMENTS TO CARERS,2102742996
08.11.2017,CHILDREN'S SERVICES,REDACTED PERSONAL DATA,498.9,FRIENDS & FAMILY FOSTERING,PAYMENTS TO CARERS,2102742971
08.11.2017,CHILDREN'S SERVICES,REDACTED PERSONAL DATA,529.42,FRIENDS & FAMILY FOSTERING,PAYMENTS TO CARERS,2102743001
08.11.2017,CHILDREN'S SERVICES,REDACTED PERSONAL DATA,578.12,FRIENDS & FAMILY FOSTERING,PAYMENTS TO CARERS,2102742969
08.11.2017,CHILDREN'S SERVICES,REDACTED PERSONAL DATA,635.34,FRIENDS & FAMILY FOSTERING,PAYMENTS TO CARERS,2102742967
08.11.2017,CHILDREN'S SERVICES,REDACTED PERSONAL DATA,682.3,FRIENDS & FAMILY FOSTERING,PAYMENTS TO CARERS,2102742984
08.11.2017,CHILDREN'S SERVICES,REDACTED PERSONAL DATA,682.3,FRIENDS & FAMILY FOSTERING,PAYMENTS TO CARERS,2102742987
08.11.2017,CHILDREN'S SERVICES,REDACTED PERSONAL DATA,682.3,FRIENDS & FAMILY FOSTERING,PAYMENTS TO CARERS,2102742995
08.11.2017,CHILDREN'S SERVICES,REDACTED PERSONAL DATA,768.12,FRIENDS & FAMILY FOSTERING,PAYMENTS TO CARERS,2102742994
08.11.2017,CHILDREN'S SERVICES,REDACTED PERSONAL DATA,776.08,FRIENDS & FAMILY FOSTERING,PAYMENTS TO CARERS,2102742966
08.11.2017,CHILDREN'S SERVICES,REDACTED PERSONAL DATA,776.08,FRIENDS & FAMILY FOSTERING,PAYMENTS TO CARERS,2102742997
08.11.2017,CHILDREN'S SERVICES,REDACTED PERSONAL DATA,776.08,FRIENDS & FAMILY FOSTERING,PAYMENTS TO CARERS,2102743000
08.11.2017,CHILDREN'S SERVICES,REDACTED PERSONAL DATA,835.34,FRIENDS & FAMILY FOSTERING,PAYMENTS TO CARERS,2102743002
08.11.2017,CHILDREN'S SERVICES,REDACTED PERSONAL DATA,882.3,FRIENDS & FAMILY FOSTERING,PAYMENTS TO CARERS,2102742968
08.11.2017,CHILDREN'S SERVICES,REDACTED PERSONAL DATA,882.3,FRIENDS & FAMILY FOSTERING,PAYMENTS TO CARERS,2102742975
08.11.2017,CHILDREN'S SERVICES,REDACTED PERSONAL DATA,882.3,FRIENDS & FAMILY FOSTERING,PAYMENTS TO CARERS,2102742977
08.11.2017,CHILDREN'S SERVICES,REDACTED PERSONAL DATA,882.3,FRIENDS & FAMILY FOSTERING,PAYMENTS TO CARERS,2102742978
08.11.2017,CHILDREN'S SERVICES,REDACTED PERSONAL DATA,882.3,FRIENDS & FAMILY FOSTERING,PAYMENTS TO CARERS,2102742981
08.11.2017,CHILDREN'S SERVICES,REDACTED PERSONAL DATA,882.3,FRIENDS & FAMILY FOSTERING,PAYMENTS TO CARERS,2102742989
08.11.2017,CHILDREN'S SERVICES,REDACTED PERSONAL DATA,982.3,FRIENDS & FAMILY FOSTERING,PAYMENTS TO CARERS,2102742976
08.11.2017,CHILDREN'S SERVICES,REDACTED PERSONAL DATA,"1,067.66",FRIENDS & FAMILY FOSTERING,PAYMENTS TO CARERS,2102742998
08.11.2017,CHILDREN'S SERVICES,REDACTED PERSONAL DATA,"1,076.08",FRIENDS & FAMILY FOSTERING,PAYMENTS TO CARERS,2102742973
08.11.2017,CHILDREN'S SERVICES,REDACTED PERSONAL DATA,"1,076.08",FRIENDS & FAMILY FOSTERING,PAYMENTS TO CARERS,2102742988
08.11.2017,CHILDREN'S SERVICES,REDACTED PERSONAL DATA,919.6,HOME 2 SCHOOL TRANSPORT,OTHER PAYMENTS FOR CLIENTS,5902275266
08.11.2017,CHILDREN'S SERVICES,TUKE SCHOOL,"1,035.44",HOME 2 SCHOOL TRANSPORT,AGENCY STAFF,5902275750
08.11.2017,CHILDREN'S SERVICES,REDACTED PERSONAL DATA,500,LEAVING CARE GRANT,OTHER PAYMENTS FOR CLIENTS,2102742615
08.11.2017,CHILDREN'S SERVICES,REDACTED PERSONAL DATA,"1,000.00",LEAVING CARE GRANT,OTHER PAYMENTS FOR CLIENTS,2102742620
08.11.2017,CHILDREN'S SERVICES,BRINDISHE LEE SCHOOL,"1,500.00",PUPIL PREMIUM CURRENT YEAR,SCHOOLS CAPITATION,2102743021
08.11.2017,CHILDREN'S SERVICES,BRINDISHE LEE SCHOOL,"1,500.00",PUPIL PREMIUM CURRENT YEAR,SCHOOLS CAPITATION,2102743022
08.11.2017,CHILDREN'S SERVICES,CHEADLE HULME EDUCATION TRUST,"1,100.00",PUPIL PREMIUM CURRENT YEAR,SCHOOLS CAPITATION,2102743019
08.11.2017,CHILDREN'S SERVICES,SACRED HEART CATHOLIC SCHOOL,"1,500.00",PUPIL PREMIUM CURRENT YEAR,SCHOOLS CAPITATION,2102743013
08.11.2017,CHILDREN'S SERVICES,SACRED HEART CATHOLIC SCHOOL,"1,500.00",PUPIL PREMIUM CURRENT YEAR,SCHOOLS CAPITATION,2102743014
08.11.2017,CHILDREN'S SERVICES,ST EDMUND'S GIRLS SCHOOL,"1,500.00",PUPIL PREMIUM CURRENT YEAR,SCHOOLS CAPITATION,2102743012
08.11.2017,CHILDREN'S SERVICES,REDACTED PERSONAL DATA,264.16,RESIDENCE ORDERS,PAYMENTS TO CARERS,2102742480
08.11.2017,CHILDREN'S SERVICES,REDACTED PERSONAL DATA,269.08,RESIDENCE ORDERS,PAYMENTS TO CARERS,2102742582
08.11.2017,CHILDREN'S SERVICES,ADVISING HEALTH AND SOCIAL CARE,"2,239.29",RESIDENTIAL,RESIDENTIAL CARE,2102742656
08.11.2017,CHILDREN'S SERVICES,CASTLE HOMES LIMITED,"15,625.11",RESIDENTIAL,RESIDENTIAL CARE,2102741572
08.11.2017,CHILDREN'S SERVICES,CASTLE HOMES LIMITED,"16,889.51",RESIDENTIAL,RESIDENTIAL CARE,2102741537
08.11.2017,CHILDREN'S SERVICES,CASTLE HOMES LIMITED,"17,614.51",RESIDENTIAL,RESIDENTIAL CARE,2102741547
08.11.2017,CHILDREN'S SERVICES,HOLIBROOK HOUSE LTD,"11,558.65",RESIDENTIAL,RESIDENTIAL CARE,2102742653
08.11.2017,CHILDREN'S SERVICES,NORTHUMBERLAND COUNTY COUNCIL,"25,050.00",RESIDENTIAL,RESIDENTIAL CARE,2102742655
08.11.2017,CHILDREN'S SERVICES,SANKOFA CARE LTD,"19,917.25",RESIDENTIAL,RESIDENTIAL CARE,2102742654
08.11.2017,CHILDREN'S SERVICES,ASSOCIATED CARE SERVICES LTD,365.71,S24 CLA,EXTERNAL AGENCIES AND BODIES,2102742711
08.11.2017,CHILDREN'S SERVICES,ASSOCIATED CARE SERVICES LTD,"1,051.43",S24 CLA,EXTERNAL AGENCIES AND BODIES,2102742722
08.11.2017,CHILDREN'S SERVICES,GALAXY LETTINGS LTD,"1,050.00",S24 CLA,EXTERNAL AGENCIES AND BODIES,2102742717
08.11.2017,CHILDREN'S SERVICES,LOOK AHEAD CARE AND SUPPORT LTD,"1,816.64",S24 CLA,EXTERNAL AGENCIES AND BODIES,2102742705
08.11.2017,CHILDREN'S SERVICES,LOOK AHEAD CARE AND SUPPORT LTD,"1,816.64",S24 CLA,EXTERNAL AGENCIES AND BODIES,2102742736
08.11.2017,CHILDREN'S SERVICES,LOOK AHEAD CARE AND SUPPORT LTD,"2,890.44",S24 CLA,EXTERNAL AGENCIES AND BODIES,2102742719
08.11.2017,CHILDREN'S SERVICES,LOOK AHEAD CARE AND SUPPORT LTD,"3,380.76",S24 CLA,EXTERNAL AGENCIES AND BODIES,2102742714
08.11.2017,CHILDREN'S SERVICES,MY LIFE SEMI-INDEPENDENT PROJECT LTD,"1,920.00",S24 CLA,EXTERNAL AGENCIES AND BODIES,2102742725
08.11.2017,CHILDREN'S SERVICES,MY LIFE SEMI-INDEPENDENT PROJECT LTD,"2,293.40",S24 CLA,EXTERNAL AGENCIES AND BODIES,2102742739
08.11.2017,CHILDREN'S SERVICES,PHASE II CARE LTD,379.17,S24 CLA,RESIDENTIAL CARE,2102742713
08.11.2017,CHILDREN'S SERVICES,TLK PROPERTY & INVESTMENT LTD,"1,080.00",S24 CLA,EXTERNAL AGENCIES AND BODIES,2102742708
08.11.2017,CHILDREN'S SERVICES,TLK PROPERTY & INVESTMENT LTD,"1,080.00",S24 CLA,EXTERNAL AGENCIES AND BODIES,2102742723
08.11.2017,CHILDREN'S SERVICES,YOUNG FUTURES,-903.34,S24 CLA,EXTERNAL AGENCIES AND BODIES,2102742720
08.11.2017,CHILDREN'S SERVICES,YOUNG FUTURES,-903.34,S24 CLA,EXTERNAL AGENCIES AND BODIES,2102742737
08.11.2017,CHILDREN'S SERVICES,YOUNG FUTURES,-903.34,S24 CLA,EXTERNAL AGENCIES AND BODIES,2102742741
08.11.2017,CHILDREN'S SERVICES,YOUNG FUTURES,-641.08,S24 CLA,EXTERNAL AGENCIES AND BODIES,2102742732
08.11.2017,CHILDREN'S SERVICES,YOUNG FUTURES,-544.05,S24 CLA,EXTERNAL AGENCIES AND BODIES,2102742738
08.11.2017,CHILDREN'S SERVICES,YOUNG FUTURES,"1,642.89",S24 CLA,EXTERNAL AGENCIES AND BODIES,2102742712
08.11.2017,CHILDREN'S SERVICES,YOUNG FUTURES,"1,984.00",S24 CLA,EXTERNAL AGENCIES AND BODIES,2102742710
08.11.2017,CHILDREN'S SERVICES,YOUNG FUTURES,"1,984.00",S24 CLA,EXTERNAL AGENCIES AND BODIES,2102742715
08.11.2017,CHILDREN'S SERVICES,YOUNG FUTURES,"2,214.02",S24 CLA,EXTERNAL AGENCIES AND BODIES,2102742724
08.11.2017,CHILDREN'S SERVICES,YOUNG FUTURES,"2,790.00",S24 CLA,EXTERNAL AGENCIES AND BODIES,2102742735
08.11.2017,CHILDREN'S SERVICES,YOUNG FUTURES,"3,250.66",S24 CLA,EXTERNAL AGENCIES AND BODIES,2102742709
08.11.2017,CHILDREN'S SERVICES,CANTERBURY CHRIST CHURCH UNIVERSITY,"9,250.00",SCHOLARSHIPS AND WRL,EXTERNAL AGENCIES AND BODIES,5902274712
08.11.2017,CHILDREN'S SERVICES,CONTACT PROFESSIONALS,285,SEMI INDEPENDENT,EXTERNAL AGENCIES AND BODIES,2102742652
08.11.2017,CHILDREN'S SERVICES,LOOK AHEAD CARE AND SUPPORT LTD,"3,380.76",SEMI INDEPENDENT,EXTERNAL AGENCIES AND BODIES,2102742707
08.11.2017,CHILDREN'S SERVICES,REDACTED PERSONAL DATA,"1,187.86",SEMI INDEPENDENT,OTHER PAYMENTS FOR CLIENTS,2102742631
08.11.2017,CHILDREN'S SERVICES,REDACTED PERSONAL DATA,"3,245.00",SEMI INDEPENDENT,OTHER PAYMENTS FOR CLIENTS,2102742621
08.11.2017,CHILDREN'S SERVICES,YOUNG FUTURES,"2,214.02",SEMI INDEPENDENT,EXTERNAL AGENCIES AND BODIES,2102742743
08.11.2017,CHILDREN'S SERVICES,YOUNG FUTURES,"3,365.67",SEMI INDEPENDENT,EXTERNAL AGENCIES AND BODIES,2102742742
08.11.2017,CHILDREN'S SERVICES,REDACTED PERSONAL DATA,263.71,SPECIAL GUARDIANSHIP,PAYMENTS TO CARERS,2102742462
08.11.2017,CHILDREN'S SERVICES,REDACTED PERSONAL DATA,268.36,SPECIAL GUARDIANSHIP,PAYMENTS TO CARERS,2102742408
08.11.2017,CHILDREN'S SERVICES,REDACTED PERSONAL DATA,269.08,SPECIAL GUARDIANSHIP,PAYMENTS TO CARERS,2102742441
08.11.2017,CHILDREN'S SERVICES,REDACTED PERSONAL DATA,269.08,SPECIAL GUARDIANSHIP,PAYMENTS TO CARERS,2102742566
08.11.2017,CHILDREN'S SERVICES,REDACTED PERSONAL DATA,276.1,SPECIAL GUARDIANSHIP,PAYMENTS TO CARERS,2102742565
08.11.2017,CHILDREN'S SERVICES,REDACTED PERSONAL DATA,303.97,SPECIAL GUARDIANSHIP,PAYMENTS TO CARERS,2102742550
08.11.2017,CHILDREN'S SERVICES,REDACTED PERSONAL DATA,350,SPECIAL GUARDIANSHIP,PAYMENTS TO CARERS,2102742455
08.11.2017,CHILDREN'S SERVICES,REDACTED PERSONAL DATA,354.59,SPECIAL GUARDIANSHIP,PAYMENTS TO CARERS,2102742477
08.11.2017,CHILDREN'S SERVICES,REDACTED PERSONAL DATA,433.36,SPECIAL GUARDIANSHIP,PAYMENTS TO CARERS,2102742345
08.11.2017,CHILDREN'S SERVICES,REDACTED PERSONAL DATA,525,SPECIAL GUARDIANSHIP,PAYMENTS TO CARERS,2102742458
08.11.2017,CHILDREN'S SERVICES,REDACTED PERSONAL DATA,525,SPECIAL GUARDIANSHIP,PAYMENTS TO CARERS,2102742488
08.11.2017,CHILDREN'S SERVICES,REDACTED PERSONAL DATA,525,SPECIAL GUARDIANSHIP,PAYMENTS TO CARERS,2102742538
08.11.2017,CHILDREN'S SERVICES,CONTACT PROFESSIONALS,304,SPECIALIST CARE,SECTION 17 PAYMENTS TO AGENCIES/CARERS,2102742151
08.11.2017,CHILDREN'S SERVICES,CONTACT PROFESSIONALS,388,SPECIALIST CARE,SECTION 17 PAYMENTS TO AGENCIES/CARERS,2102742156
08.11.2017,CHILDREN'S SERVICES,CONTACT PROFESSIONALS,418,SPECIALIST CARE,SECTION 17 PAYMENTS TO AGENCIES/CARERS,2102742184
08.11.2017,CHILDREN'S SERVICES,CONTACT PROFESSIONALS,532,SPECIALIST CARE,SECTION 17 PAYMENTS TO AGENCIES/CARERS,2102742160
08.11.2017,CHILDREN'S SERVICES,HCP STAFFING SERVICES LTD,277.68,SPECIALIST CARE,SECTION 17 PAYMENTS TO AGENCIES/CARERS,2102742163
08.11.2017,CHILDREN'S SERVICES,HCP STAFFING SERVICES LTD,310.75,SPECIALIST CARE,SECTION 17 PAYMENTS TO AGENCIES/CARERS,2102742154
08.11.2017,CHILDREN'S SERVICES,INTERSERVE HEALTHCARE,518.88,SPECIALIST CARE,SECTION 17 PAYMENTS TO AGENCIES/CARERS,2102742166
08.11.2017,CHILDREN'S SERVICES,INTERSERVE HEALTHCARE,575.15,SPECIALIST CARE,SECTION 17 PAYMENTS TO AGENCIES/CARERS,2102742153
08.11.2017,CHILDREN'S SERVICES,ANCHOR FOSTERCARE,"4,306.52",STAYING PUT,EXTERNAL AGENCIES AND BODIES,2102742734
08.11.2017,CHILDREN'S SERVICES,BY THE BRIDGE LTD,"-1,285.71",STAYING PUT,EXTERNAL AGENCIES AND BODIES,2102735605
08.11.2017,CHILDREN'S SERVICES,BY THE BRIDGE LTD,"3,214.29",STAYING PUT,EXTERNAL AGENCIES AND BODIES,2102742729
08.11.2017,CHILDREN'S SERVICES,COMPASS FOSTERING LONDON LTD,"1,789.20",STAYING PUT,EXTERNAL AGENCIES AND BODIES,2102742721
08.11.2017,CHILDREN'S SERVICES,COMPASS FOSTERING LONDON LTD,"1,848.84",STAYING PUT,EXTERNAL AGENCIES AND BODIES,2102742726
08.11.2017,CHILDREN'S SERVICES,REDACTED PERSONAL DATA,373.46,STAYING PUT,PAYMENTS TO CARERS,2102742773
08.11.2017,CHILDREN'S SERVICES,REDACTED PERSONAL DATA,500,STAYING PUT,PAYMENTS TO CARERS,2102742776
08.11.2017,CHILDREN'S SERVICES,REDACTED PERSONAL DATA,500,STAYING PUT,PAYMENTS TO CARERS,2102742777
08.11.2017,CHILDREN'S SERVICES,REDACTED PERSONAL DATA,500,STAYING PUT,PAYMENTS TO CARERS,2102742779
08.11.2017,CHILDREN'S SERVICES,REDACTED PERSONAL DATA,500,STAYING PUT,PAYMENTS TO CARERS,2102742796
08.11.2017,CHILDREN'S SERVICES,REDACTED PERSONAL DATA,500,STAYING PUT,PAYMENTS TO CARERS,2102742816
08.11.2017,CHILDREN'S SERVICES,REDACTED PERSONAL DATA,500,STAYING PUT,PAYMENTS TO CARERS,2102742825
08.11.2017,CHILDREN'S SERVICES,REDACTED PERSONAL DATA,500,STAYING PUT,PAYMENTS TO CARERS,2102742857
08.11.2017,CHILDREN'S SERVICES,REDACTED PERSONAL DATA,500,STAYING PUT,PAYMENTS TO CARERS,2102742871
08.11.2017,CHILDREN'S SERVICES,REDACTED PERSONAL DATA,500,STAYING PUT,PAYMENTS TO CARERS,2102742883
08.11.2017,CHILDREN'S SERVICES,REDACTED PERSONAL DATA,500,STAYING PUT,PAYMENTS TO CARERS,2102742898
08.11.2017,CHILDREN'S SERVICES,REDACTED PERSONAL DATA,500,STAYING PUT,PAYMENTS TO CARERS,2102742924
08.11.2017,CHILDREN'S SERVICES,REDACTED PERSONAL DATA,500,STAYING PUT,PAYMENTS TO CARERS,2102742932
08.11.2017,CHILDREN'S SERVICES,REDACTED PERSONAL DATA,500,STAYING PUT,PAYMENTS TO CARERS,2102742948
08.11.2017,CHILDREN'S SERVICES,REDACTED PERSONAL DATA,500,STAYING PUT,PAYMENTS TO CARERS,2102742957
08.11.2017,CHILDREN'S SERVICES,REDACTED PERSONAL DATA,500,STAYING PUT,PAYMENTS TO CARERS,2102742963
08.11.2017,CHILDREN'S SERVICES,REDACTED PERSONAL DATA,798.12,STAYING PUT,PAYMENTS TO CARERS,2102742944
08.11.2017,CHILDREN'S SERVICES,REDACTED PERSONAL DATA,888.12,STAYING PUT,PAYMENTS TO CARERS,2102742950
08.11.2017,CHILDREN'S SERVICES,REDACTED PERSONAL DATA,"1,500.00",STAYING PUT,PAYMENTS TO CARERS,2102742870
08.11.2017,CHILDREN'S SERVICES,CHARTWELLS,420,SUMMERHOUSE - EX416 - 5015232,CATERING MATERIALS & SUPPLIES,5902275931
08.11.2017,CHILDREN'S SERVICES,CHARTWELLS,"1,135.20",SUMMERHOUSE - EX416 - 5015232,CATERING MATERIALS & SUPPLIES,5902275928
08.11.2017,CHILDREN'S SERVICES,SALTCO LTD T/A KELLY EXECUTIVE,"2,380.00",SUMMERHOUSE - EX416 - 5015232,HIRED VEHICLES,5902275919
08.11.2017,CHILDREN'S SERVICES,SALTCO LTD T/A KELLY EXECUTIVE,"2,380.00",SUMMERHOUSE - EX416 - 5015232,HIRED VEHICLES,5902275921
08.11.2017,CHILDREN'S SERVICES,SALTCO LTD T/A KELLY EXECUTIVE,"2,660.00",SUMMERHOUSE - EX416 - 5015232,HIRED VEHICLES,5902275916
08.11.2017,CHILDREN'S SERVICES,A & M PROPERTY AND CONSTRUCTION LTD,"1,050.00",UASC SECTION 24,EXTERNAL AGENCIES AND BODIES,2102742716
08.11.2017,CHILDREN'S SERVICES,A & M PROPERTY AND CONSTRUCTION LTD,"1,085.00",UASC SECTION 24,EXTERNAL AGENCIES AND BODIES,2102742740
08.11.2017,CHILDREN'S SERVICES,LOOK AHEAD CARE AND SUPPORT LTD,"1,816.64",UASC SECTION 24,EXTERNAL AGENCIES AND BODIES,2102742733
08.11.2017,CHILDREN'S SERVICES,PROPERTY ACE UK LTD,"1,928.57",UASC SECTION 24,RESIDENTIAL CARE,2102742731
08.11.2017,CHILDREN'S SERVICES,PROPERTY ACE UK LTD,"1,992.86",UASC SECTION 24,RESIDENTIAL CARE,2102742730
08.11.2017,CHILDREN'S SERVICES,YOUNG FUTURES,-903.34,UASC SECTION 24,EXTERNAL AGENCIES AND BODIES,2102742728
08.11.2017,CHILDREN'S SERVICES,YOUNG FUTURES,"2,214.33",UASC SECTION 24,EXTERNAL AGENCIES AND BODIES,2102742706
08.11.2017,CHILDREN'S SERVICES,YOUNG FUTURES,"2,214.33",UASC SECTION 24,EXTERNAL AGENCIES AND BODIES,2102742718
08.11.2017,CHILDREN'S SERVICES,YOUNG LONDON TODAY,"1,371.30",UASC SECTION 24,EXTERNAL AGENCIES AND BODIES,2102742727
08.11.2017,CHILDREN'S SERVICES,REDACTED PERSONAL DATA,"1,750.00",UNIVERSITY SUPPORT,RESIDENTIAL CARE,2102743003
08.11.2017,COMMISSIONING & CENTRAL,ADKIN CONSULTANCY LTD,294.55,STRAT DIR OF C&AS,CONSULTANTS SERVICES,5902275816
08.11.2017,COMMISSIONING & CENTRAL,ADKIN CONSULTANCY LTD,"3,750.00",STRAT DIR OF C&AS,CONSULTANTS SERVICES,5902275818
08.11.2017,COMMUNITIES,CAROLINE GARDENS RESIDENTS ASSOCIATION,"4,500.00",JOINT SECURITY INITIATIVES,GRANTS,5902275974
08.11.2017,COMMUNITIES,ACE FAST LETTINGS LTD,"1,085.00",NO RECOURSE TO PUBLIC FUNDS,ACCOMMODATION CHARGES,5902275872
08.11.2017,COMMUNITIES,ALLPAY LTD,"90,500.40",NO RECOURSE TO PUBLIC FUNDS,OTHER PAYMENTS FOR CLIENTS,5902275875
08.11.2017,COMMUNITIES,LETTING INTERNATIONAL LTD,"1,519.00",NO RECOURSE TO PUBLIC FUNDS,ACCOMMODATION CHARGES,5902275831
08.11.2017,COMMUNITIES,MEADOW CROFT LODGE,405,NO RECOURSE TO PUBLIC FUNDS,ACCOMMODATION CHARGES,5902275953
08.11.2017,COMMUNITIES,SOUTH OF THE RIVER INVESTMENTS LTD,"1,240.00",NO RECOURSE TO PUBLIC FUNDS,ACCOMMODATION CHARGES,5902275893
08.11.2017,COMMUNITIES,SOUTH OF THE RIVER INVESTMENTS LTD,"1,550.00",NO RECOURSE TO PUBLIC FUNDS,ACCOMMODATION CHARGES,5902275892
08.11.2017,COMMUNITIES,TLK PROPERTY & INVESTMENT LTD,"1,829.00",NO RECOURSE TO PUBLIC FUNDS,ACCOMMODATION CHARGES,5902275950
08.11.2017,COMMUNITIES,TOM HOPKINS ASSOCIATES LTD,"1,960.00",TENANT MGT INITITIVES,TRAINING,5902275865
08.11.2017,COMMUNITIES,DECIMA T&RA,"1,300.00",TENANTS FUND,GRANTS,5902275751
08.11.2017,CUSTOMER EXPERIENCE HGF,CROWN HOUSING LTD,"8,446.00",NIGHTLY TA (NSC),EXTERNAL AGENCIES AND BODIES,5902275737
08.11.2017,CUSTOMER EXPERIENCE HGF,BRAHIM IBNOU CHEIKH,984.29,PRIVATE SECTOR LEASING,EXTERNAL AGENCIES AND BODIES,2102741446
08.11.2017,CUSTOMER EXPERIENCE HGF,BRAHIM IBNOU CHEIKH,"2,000.00",PRIVATE SECTOR LEASING,EXTERNAL AGENCIES AND BODIES,2102741447
08.11.2017,CUSTOMER EXPERIENCE HGF,POWELL & CO PROPERTY LTD,"1,500.00",PRIVATE SECTOR LEASING,EXTERNAL AGENCIES AND BODIES,2102741443
08.11.2017,CUSTOMER EXPERIENCE HGF,RUMIYA UDDIN,"1,251.06",PRIVATE SECTOR LEASING,EXTERNAL AGENCIES AND BODIES,2102741444
08.11.2017,CUSTOMER EXPERIENCE HGF,RUMIYA UDDIN,"4,000.00",PRIVATE SECTOR LEASING,EXTERNAL AGENCIES AND BODIES,2102741445
08.11.2017,CUSTOMER EXPERIENCE HGF,OFFICE DEPOT UK LTD,"1,028.33",REGISTRARS,STATIONERY,5902275956
08.11.2017,ENVIRONMENT AND LEISURE,APPLEYARD & TREW,"1,651.69",CAPITAL PS (LEISURE),CONSTRUCTION FEES  - EXTERNAL,5902275897
08.11.2017,ENVIRONMENT AND LEISURE,TGMS LTD,"1,700.00",CAPITAL PS (LEISURE),CONSTRUCTION FEES  - EXTERNAL,5902275877
08.11.2017,ENVIRONMENT AND LEISURE,TLK PROPERTY & INVESTMENT LTD,252,CAPITAL PS (LEISURE),CONST'N MAIN CONTRACT - NON CERTIFICATED,5902275972
08.11.2017,ENVIRONMENT AND LEISURE,TLK PROPERTY & INVESTMENT LTD,"1,080.00",CAPITAL PS (LEISURE),CONST'N MAIN CONTRACT - NON CERTIFICATED,5902275968
08.11.2017,ENVIRONMENT AND LEISURE,TLK PROPERTY & INVESTMENT LTD,"1,116.00",CAPITAL PS (LEISURE),CONST'N MAIN CONTRACT - NON CERTIFICATED,5902275971
08.11.2017,ENVIRONMENT DIRECTORATE,DAIMLER FLEET MANAGEMENT,418.56,CAR LEASING CTRL A/C,VEHICLE LEASING CHARGES,5902275990
08.11.2017,ENVIRONMENT DIRECTORATE,DAIMLER FLEET MANAGEMENT,442.53,CAR LEASING CTRL A/C,VEHICLE LEASING CHARGES,5902275990
08.11.2017,ENVIRONMENT DIRECTORATE,LOOKERS LEASING LTD,360.42,CAR LEASING CTRL A/C,VEHICLE LEASING CHARGES,5902275861
08.11.2017,ENVIRONMENT DIRECTORATE,LOOKERS LEASING LTD,368.16,CAR LEASING CTRL A/C,VEHICLE LEASING CHARGES,5902275861
08.11.2017,ENVIRONMENT DIRECTORATE,LCV HIRE SOLUTIONS LTD,332.01,COMMERCIAL VEH CTRL A/C,HIRED VEHICLES,5902275866
08.11.2017,ENVIRONMENT DIRECTORATE,LCV HIRE SOLUTIONS LTD,332.01,COMMERCIAL VEH CTRL A/C,HIRED VEHICLES,5902275869
08.11.2017,ENVIRONMENT DIRECTORATE,LONDON HIRE LIMITED,292,COMMERCIAL VEH CTRL A/C,HIRED VEHICLES,5902275763
08.11.2017,ENVIRONMENT DIRECTORATE,LONDON HIRE LIMITED,548,COMMERCIAL VEH CTRL A/C,HIRED VEHICLES,5902275770
08.11.2017,ENVIRONMENT DIRECTORATE,LONDON HIRE LIMITED,580,COMMERCIAL VEH CTRL A/C,HIRED VEHICLES,5902275766
08.11.2017,ENVIRONMENT DIRECTORATE,LONDON HIRE LIMITED,645,COMMERCIAL VEH CTRL A/C,HIRED VEHICLES,5902275753
08.11.2017,ENVIRONMENT DIRECTORATE,LONDON HIRE LIMITED,675,COMMERCIAL VEH CTRL A/C,HIRED VEHICLES,5902275748
08.11.2017,ENVIRONMENT DIRECTORATE,LONDON HIRE LIMITED,679,COMMERCIAL VEH CTRL A/C,HIRED VEHICLES,5902275762
08.11.2017,ENVIRONMENT DIRECTORATE,LONDON HIRE LIMITED,"1,068.51",COMMERCIAL VEH CTRL A/C,HIRED VEHICLES,5902275757
08.11.2017,ENVIRONMENT DIRECTORATE,LONDON HIRE LIMITED,"1,120.00",COMMERCIAL VEH CTRL A/C,HIRED VEHICLES,5902275761
08.11.2017,ENVIRONMENT DIRECTORATE,LONDON HIRE LIMITED,"1,600.00",COMMERCIAL VEH CTRL A/C,HIRED VEHICLES,5902275772
08.11.2017,ENVIRONMENT DIRECTORATE,LONDON HIRE LIMITED,"1,910.00",COMMERCIAL VEH CTRL A/C,HIRED VEHICLES,5902275760
08.11.2017,ENVIRONMENT DIRECTORATE,LONDON HIRE LIMITED,"2,578.02",COMMERCIAL VEH CTRL A/C,HIRED VEHICLES,5902275759
08.11.2017,ENVIRONMENT DIRECTORATE,LONDON HIRE LIMITED,"6,231.50",COMMERCIAL VEH CTRL A/C,HIRED VEHICLES,5902275749
08.11.2017,ENVIRONMENT DIRECTORATE,LONDON HIRE LIMITED,"18,921.50",COMMERCIAL VEH CTRL A/C,HIRED VEHICLES,5902275755
08.11.2017,ENVIRONMENT DIRECTORATE,LONDON HIRE LIMITED,"29,116.45",COMMERCIAL VEH CTRL A/C,HIRED VEHICLES,5902275756
08.11.2017,ENVIRONMENT DIRECTORATE,RYGOR COMMERCIALS LIMITED,"3,534.12",COMMERCIAL VEH CTRL A/C,HIRED VEHICLES,5902275873
08.11.2017,ENVIRONMENT DIRECTORATE,LONDON HIRE LIMITED,"3,800.00",FLEET INSURANCE WORKS,TRANSPORT INSURANCE COSTS,5902275764
08.11.2017,ENVIRONMENT DIRECTORATE,SOUTHWARK NEWSPAPER LTD,300,HIGHWAYS DEVELOPMENT,MARKETING & PUBLICITY SERVICES,5902275977
08.11.2017,ENVIRONMENT DIRECTORATE,SOUTHWARK NEWSPAPER LTD,348,HIGHWAYS DEVELOPMENT,MARKETING & PUBLICITY SERVICES,5902275984
08.11.2017,ENVIRONMENT DIRECTORATE,SOUTHWARK NEWSPAPER LTD,552,HIGHWAYS DEVELOPMENT,MARKETING & PUBLICITY SERVICES,5902275979
08.11.2017,ENVIRONMENT DIRECTORATE,SOUTHWARK NEWSPAPER LTD,885,HIGHWAYS DEVELOPMENT,MARKETING & PUBLICITY SERVICES,5902275983
08.11.2017,ENVIRONMENT DIRECTORATE,NPOWER,277.9,LICENSING,STATIONERY,5902275880
08.11.2017,ENVIRONMENT DIRECTORATE,CORY ENVIRONMENTAL LTD,718.45,MANAGEMENT TEAM,WASTE DISPOSAL CONTRACT,5902269213
08.11.2017,ENVIRONMENT DIRECTORATE,COMPLETE TREE CARE LTD,405.71,NON HOUSING GROUNDS,AGENCY STAFF,5902275735
08.11.2017,F & C S EXCLUDING CORPORATE BUDGETS,CIPFA,290,PROFESSIONAL QUALIFICATIONS,TRAINING,5902275864
08.11.2017,HOUSING,DUCTCLEAN (UK) LTD,"15,575.64",DUCTCLEAN,MANUAL CREDITORS,2102743031
08.11.2017,HOUSING,OCO LIMITED,"21,458.29",PAYMENTS CONTROL ACCOUNT - OCO,MANUAL CREDITORS,5902275870
08.11.2017,HOUSING,OCO LIMITED,"477,584.17",PAYMENTS CONTROL ACCOUNT - OCO,MANUAL CREDITORS,5902275870
08.11.2017,HOUSING HRA,DURKAN LTD,"73,836.74",CAPITAL PS (HRA),CONSTRUCTION MAIN CONTRACT -CERTIFICATED,2102743030
08.11.2017,HOUSING HRA,POTTER RAPER AND PARTNERS,"1,472.87",CAPITAL PS (HRA),CONSTRUCTION FEES  - EXTERNAL,5902275973
08.11.2017,HOUSING HRA,POTTER RAPER AND PARTNERS,"3,602.87",CAPITAL PS (HRA),CONSTRUCTION FEES  - EXTERNAL,5902275740
08.11.2017,LEISURE DIRECTORATE,LONDON GENERAL TRANSPORT,435,COMMUNITY SPORTS SMALL GRANTS,PUBLIC TRANSPORT,5902275938
08.11.2017,LEISURE DIRECTORATE,RAKHS NEWS LTD,331.4,PECKHAM LIBRARY,BOOKS & PUBLICATIONS,5902275781
08.11.2017,LEISURE DIRECTORATE,CASTLE WATER LTD,569.22,PECKHAM RYE AREA TEAM,WATER,5902275957
08.11.2017,LEISURE DIRECTORATE,MID KENT FISHERIES,750,SOUTHWARK AREA TEAM,GROUNDS MAINTENANCE,5902270504
08.11.2017,MODERNISATION HGF,NEOPOST FINANCE LTD,"1,732.00",160 TOOLEY ST.,OP LEASE/HIRE CHARGES:PLANT/EQUIP/FURNIT,5902275710
08.11.2017,MODERNISATION HGF,OFFICE DEPOT UK LTD,"5,534.45",160 TOOLEY ST.,STATIONERY,5902275850
08.11.2017,MODERNISATION HGF,TMP (UK) LIMITED,450,ADVERTISING,RECRUITMENT ADVERTISING,5902275967
08.11.2017,MODERNISATION HGF,TMP (UK) LIMITED,"2,086.40",ADVERTISING,RECRUITMENT ADVERTISING,5902275856
08.11.2017,MODERNISATION HGF,SOUTH LONDON & MAUDSLEY HOSPITAL,600,ASW - PROFESSIONAL DEVELOPMENT,TRAINING,5902275739
08.11.2017,MODERNISATION HGF,PRICEWATERHOUSECOOPERS LLP,"16,554.00",ORG TRANSFORMATION,CONSULTANTS SERVICES,5902275736
08.11.2017,MODERNISATION HGF,OFFICE DEPOT UK LTD,-287.07,QUEENS RD 1 (BLOCK F),STATIONERY,5902275879
08.11.2017,RESIDENT SERVICES,EDF ENERGY PLC,-688.45,OPERATIONS/OFFICES ACCOMMODATION,ELECTRICITY,5902275825
08.11.2017,RESIDENT SERVICES,EDF ENERGY PLC,688.45,OPERATIONS/OFFICES ACCOMMODATION,ELECTRICITY,5902275823
08.11.2017,RESIDENT SERVICES,LIVING ACCOMODATION LTD,"1,200.00",TA PLACEMENTS,EXTERNAL AGENCIES AND BODIES,5902275881
08.11.2017,SOUTHWARK BUILDING SERVICES,KENT COUNTY COUNCIL - LASER,365.54,BOR & BKSIDE DAY TO DAY - PLUMBER,VEHICLE FUEL,5902275837
08.11.2017,SOUTHWARK BUILDING SERVICES,DIAMOND SCAFFOLDING (SOUTH EAST),"11,074.03",BUSINESS SUPPORT,OTHER CONTRACTORS,2102743028
08.11.2017,SOUTHWARK BUILDING SERVICES,E & E BUILDING SERVICES LTD,"23,229.51",BUSINESS SUPPORT,OTHER CONTRACTORS,2102743026
08.11.2017,SOUTHWARK BUILDING SERVICES,EDEN SPRINGS (UK) LTD,"2,872.88",BUSINESS SUPPORT,CATERING MATERIALS & SUPPLIES,5902275776
08.11.2017,SOUTHWARK BUILDING SERVICES,KENT COUNTY COUNCIL - LASER,565.71,BUSINESS SUPPORT,VEHICLE FUEL,5902275775
08.11.2017,SOUTHWARK BUILDING SERVICES,EDF ENERGY PLC,"1,158.06",DEPOT COSTS,ELECTRICITY,5902275773
08.11.2017,SOUTHWARK BUILDING SERVICES,PHOENIX HSC (UK) LTD,500,HEALTH & SAFETY,TRAINING,5902275768
08.11.2017,SOUTHWARK BUILDING SERVICES,ORANGE PERSONAL COMMUNICATIONS,"2,200.17",ICT & COMMUNICATIONS,TELEPHONES (MOBILES),5902275862
08.11.2017,SOUTHWARK BUILDING SERVICES,PITNEY BOWES PURCHASE POWER,804.83,R & M OVERHEADS,POSTAGES,5902275771
08.11.2017,SOUTHWARK BUILDING SERVICES,TRAVIS PERKINS,330.95,ROTHERHITHE DAY TO DAY - ELECTRICIAN,MATERIALS,5902275807
08.11.2017,SOUTHWARK BUILDING SERVICES,TRAVIS PERKINS,330.95,ROTHERHITHE DAY TO DAY - ELECTRICIAN,MATERIALS,5902275811
08.11.2017,SOUTHWARK BUILDING SERVICES,KENT COUNTY COUNCIL - LASER,"2,810.16",VOIDS OVERHEADS,VEHICLE FUEL,5902275835
08.11.2017,SOUTHWARK BUILDING SERVICES,TRAVIS PERKINS,348,WALWORTH TM 1 DAY TO DAY - CARPENTER,MATERIALS,5902275805
09.11.2017,ADULT SOCIAL CARE,REDACTED PERSONAL DATA,500,APPOINTEESHIPS,OTHER PAYMENTS FOR CLIENTS,5902276107
09.11.2017,ADULT SOCIAL CARE,SHUTTLEWORTH (UK) LTD,"1,025.00",ASC TEMPORARY ACCOMMODATION,EXTERNAL AGENCIES AND BODIES,5902276220
09.11.2017,ADULT SOCIAL CARE,SHUTTLEWORTH (UK) LTD,"1,230.00",ASC TEMPORARY ACCOMMODATION,EXTERNAL AGENCIES AND BODIES,5902276208
09.11.2017,ADULT SOCIAL CARE,MEDACS HOMECARE,346.8,LD LTS 18-64,HOMECARE - SPOT,2102743162
09.11.2017,ADULT SOCIAL CARE,MEDACS HOMECARE,895.9,LD LTS 18-64,HOMECARE - SPOT,2102743161
09.11.2017,ADULT SOCIAL CARE,MEDACS HOMECARE,"1,017.72",LD LTS 18-64,SUPPORTED LIVING,2102743166
09.11.2017,ADULT SOCIAL CARE,MEDACS HOMECARE,"1,661.75",LD LTS 18-64,HOMECARE - SPOT,2102743158
09.11.2017,ADULT SOCIAL CARE,MIHOMECARE LTD,587.19,LD LTS 18-64,HOMECARE - C&V,2102743139
09.11.2017,ADULT SOCIAL CARE,MIHOMECARE LTD,816.96,LD LTS 18-64,HOMECARE - C&V,2102743116
09.11.2017,ADULT SOCIAL CARE,REDACTED PERSONAL DATA,"1,125.12",LD LTS 18-64,SUPPORTED LIVING,2102743085
09.11.2017,ADULT SOCIAL CARE,SURREY DOCKS FARM PROVIDENT SOCIETY,720,LD LTS 18-64,DAYCARE,2102743152
09.11.2017,ADULT SOCIAL CARE,MIHOMECARE LTD,"1,114.82",MEM LTS 18-64,HOMECARE - C&V,2102743142
09.11.2017,ADULT SOCIAL CARE,METRO HOMECARE LTD,441.28,MEM LTS 65+,HOMECARE - SPOT,2102743208
09.11.2017,ADULT SOCIAL CARE,METRO HOMECARE LTD,"1,061.83",MH LTS 18-64,HOMECARE - SPOT,2102743196
09.11.2017,ADULT SOCIAL CARE,MIHOMECARE LTD,629.74,MH LTS 18-64,HOMECARE - C&V,2102743106
09.11.2017,ADULT SOCIAL CARE,METRO HOMECARE LTD,337.86,MH LTS 65+,HOMECARE - C&V,2102743185
09.11.2017,ADULT SOCIAL CARE,METRO HOMECARE LTD,448.18,MH LTS 65+,HOMECARE - SPOT,2102743220
09.11.2017,ADULT SOCIAL CARE,METRO HOMECARE LTD,965.3,MH LTS 65+,HOMECARE - C&V,2102743194
09.11.2017,ADULT SOCIAL CARE,MEDACS HOMECARE,520.2,PHY LTS 18-64,SUPPORTED LIVING,2102743163
09.11.2017,ADULT SOCIAL CARE,METRO HOMECARE LTD,265.46,PHY LTS 18-64,HOMECARE - C&V,2102743201
09.11.2017,ADULT SOCIAL CARE,METRO HOMECARE LTD,317.17,PHY LTS 18-64,HOMECARE - SPOT,2102743204
09.11.2017,ADULT SOCIAL CARE,METRO HOMECARE LTD,427.49,PHY LTS 18-64,HOMECARE - SPOT,2102743191
09.11.2017,ADULT SOCIAL CARE,METRO HOMECARE LTD,434.39,PHY LTS 18-64,HOMECARE - SPOT,2102743200
09.11.2017,ADULT SOCIAL CARE,METRO HOMECARE LTD,465.41,PHY LTS 18-64,HOMECARE - SPOT,2102743211
09.11.2017,ADULT SOCIAL CARE,METRO HOMECARE LTD,"1,351.42",PHY LTS 18-64,HOMECARE - SPOT,2102743198
09.11.2017,ADULT SOCIAL CARE,MIHOMECARE LTD,263.83,PHY LTS 18-64,HOMECARE - C&V,2102743143
09.11.2017,ADULT SOCIAL CARE,MIHOMECARE LTD,285.1,PHY LTS 18-64,HOMECARE - C&V,2102743131
09.11.2017,ADULT SOCIAL CARE,MIHOMECARE LTD,289.34,PHY LTS 18-64,HOMECARE - C&V,2102743148
